{"text_format":"1","workbook":"xlsx","n_sheets":18,"sheets":["ST","DO","TO","DTC","DTB","DTA","DJ","TT","DS","TS","FLD","STT","FLT","XTM","PM","DL","DTOP","Pontos"],"not_rendered":{"charts":0,"images":1,"macros":1,"external_links":0,"defined_names":3,"comments":0,"pivot_tables":0},"unopened":[],"bounds":{"document_bytes":16777216,"sheet_cells":100000,"rows_first":2000,"rows_last":500,"rows_between":2000,"halvings":0,"cell_chars":16384,"cell_head_chars":4096},"cells_cut":0,"cells_raw":0,"read":"whole","date_system":"1900"}

{"sheet":"ST","index":0,"n_rows":112,"n_cols":28,"rows_kept":112,"cut":false,"hidden":false,"merged":[[6,3,6,6],[6,23,6,26],[6,19,6,22],[8,0,8,1],[7,3,7,4],[7,5,7,6],[7,7,7,8],[7,9,7,10],[7,11,7,12],[7,13,7,14],[7,15,7,16],[7,17,7,18],[7,19,7,20],[7,21,7,22],[7,23,7,24],[7,25,7,26],[5,23,5,26],[5,19,5,22],[6,15,6,18],[6,11,6,14],[6,7,6,10],[104,1,104,2],[105,1,105,2],[106,1,106,2],[103,1,103,7],[0,2,0,26],[1,2,1,26],[4,15,4,18],[4,11,4,14],[4,7,4,10],[4,3,4,6],[4,23,4,26],[4,19,4,22],[5,15,5,18],[5,11,5,14],[5,7,5,10],[5,3,5,6],[111,1,111,2],[111,3,111,7],[107,1,107,2],[108,1,108,2],[109,1,109,2],[110,1,110,2]]}
[]
[null,null,"CLASSIFICAÇÃO OFICIAL DO CAMPEONATO BRASILEIRO 2013 DE ARRANCADA 402 M. "]
[]
[]
[null,null,"Evento","1º",null,null,null,"2º",null,null,null,"3º",null,null,null,"4º",null,null,null,"5º",null,null,null,"6º"]
[null,null,"Local","VELOPARK",null,null,null,"Curitiba",null,null,null,"VELOPARK",null,null,null,"VELOPARK",null,null,null,null,null,null,null,"VELOPARK"]
[null,null,"Data","15 a 17/03",null,null,null,"03 a 05/05/2013",null,null,null,"16 a 18/08/2013",null,null,null,"27 a 29/09/2013",null,null,null,null,null,null,null,"17/11"]
[]
["STANDARD - ST",null,null,"bonus","bonus","bonus",null,"bonus","bonus","bonus",null,"bonus","bonus","bonus",null,"bonus","bonus","bonus",null,"bonus","bonus","bonus",null,"bonus","bonus","bonus"]
["POS","PILOTO","Nº","partic.","record","classif.","Prova","partic.","record","classif.","Prova","partic.","record","classif.","Prova","partic.","record","classif.","Prova","partic.","record","classif.","Prova","partic.","record","classif.","Prova","TOTAL"]
["1º","CLÓVIS WAECHTER",98,"x",null,75,100,0,null,0,null,"x",null,80,100,"X",null,80,40,null,null,null,null,40,null,160,40,{"$f":"SUM(D11:AA11)","v":715}]
["2º","EDUARDO ANDRETA",555,"X",null,65,20,0,null,0,null,"x",null,55,20,"X",null,65,80,null,null,null,null,40,null,140,80,565]
["3º","LEANDRO SCHULTZ",96,0,null,0,0,0,null,0,null,"x",null,70,60,"X",null,75,60,null,null,null,null,25,null,150,80,520]
["4º","MARCIO SOUZA",333,0,null,0,0,0,null,0,null,"X",null,35,80,"X",null,60,40,null,null,null,null,25,null,110,160,510]
["5º","OBERDAN TAETI",77,0,null,0,0,0,null,0,null,"X",null,65,60,"X",null,50,0,null,null,null,null,25,null,100,120,420]
["6º","VICENTE PELEGRINI",89,"X",null,55,20,0,null,0,null,"X",null,45,20,"X",null,45,20,null,null,null,null,40,null,30,120,395]
["7º","RODRIGO LAMAISON",15,"x",null,70,40,0,null,0,null,0,null,0,0,"X",null,55,100,null,null,null,null,25,null,90,0,380]
["8º","ROBERTO PORTANTIOLO",121,0,null,0,0,0,null,0,null,"X",null,60,20,"X",null,25,0,null,null,null,null,25,null,130,80,340]
["9º","JOSE LEONEL",30,0,null,0,0,0,null,0,null,0,null,0,0,0,null,0,0,null,null,null,null,10,null,120,200,330]
["10º","PAULO GONDAWSKI",28,0,null,0,0,0,null,0,null,"X",null,75,20,0,null,0,0,null,null,null,null,15,null,70,40,220]
["11º","EDUARDO MONTANO",333,"X",null,50,20,0,null,0,null,"X",null,25,0,0,null,0,0,null,null,null,null,25,null,40,40,200]
["12º","MARCOS RIBEIRO",335,0,null,0,0,"X",20,80,null,10,null,40,40,0,null,0,0,null,null,null,null,0,null,0,0,190]
["13º","ALEXANDRE BETINE",120,5,20,80,80,0,null,0,null,0,null,0,0,0,null,0,0,null,null,null,null,0,null,0,0,185]
["14º","ELIZEU BUZATO",82,"X",null,60,40,0,null,0,null,0,null,0,0,10,null,40,20,null,null,null,null,0,null,0,0,170]
["15º","RAFAEL PERONDI",777,0,null,0,0,0,null,0,null,"X",null,15,20,0,null,0,0,null,null,null,null,15,null,50,40,140]
["16º","JESUM KLEIN",107,0,null,0,0,0,null,0,null,0,null,0,0,0,null,0,0,null,null,null,null,10,null,80,40,130]
["17º","ALEXANDRE PAZICZEC",21,"X",null,45,0,0,null,0,null,10,null,30,40,0,null,0,0,null,null,null,null,0,null,0,0,125]
["18º","CHARLAN ZECHOW",3,0,null,0,0,0,null,0,null,0,null,0,0,5,null,70,40,null,null,null,null,0,null,0,0,115]
["19º","MARCIO LAMAISON",27,0,null,0,0,0,null,0,null,0,null,0,0,0,null,0,0,null,null,null,null,10,null,60,40,110]
["20º","VLADIMIR PÓVOA",96,5,null,40,60,0,null,0,null,0,null,0,0,0,null,0,0,null,null,null,null,0,null,0,0,105]
["21º","ADILSON PRIZYBICIEN",318,0,null,0,0,5,null,75,null,0,null,0,0,0,null,0,0,null,null,null,null,0,null,0,0,80]
["22º","ODIL NAZARI",68,0,null,0,0,0,null,0,null,5,null,50,20,0,null,0,0,null,null,null,null,0,null,0,0,75]
["23º","HENRIQUE LINK",777,0,null,0,0,0,null,0,null,0,null,0,0,5,null,35,20,null,null,null,null,0,null,0,0,60]
["24º","GUSTAVO SIMON",2907,0,null,0,0,0,null,0,null,0,null,0,0,5,null,30,20,null,null,null,null,0,null,0,0,55]
["25º","WELLINGTON BARRACO",690,0,null,0,0,0,null,0,null,5,null,10,40,0,null,0,0,null,null,null,null,0,null,0,0,55]
["26º","LIELSON STEFANON",25,0,null,0,0,0,null,0,null,5,null,0,0,0,null,0,0,null,null,null,null,0,null,0,0,5]
["27º",null,null,null,null,null,null,null,null,null,null,null,null,null,null,null,null,null,null,null,null,null,null,null,null,null,null,0]
["28º",null,null,null,null,null,null,null,null,null,null,null,null,null,null,null,null,null,null,null,null,null,null,null,null,null,null,0]
["29º",null,null,null,null,null,null,null,null,null,null,null,null,null,null,null,null,null,null,null,null,null,null,null,null,null,null,0]
["30º",null,null,null,null,null,null,null,null,null,null,null,null,null,null,null,null,null,null,null,null,null,null,null,null,null,null,0]
["31º",null,null,null,null,null,null,null,null,null,null,null,null,null,null,null,null,null,null,null,null,null,null,null,null,null,null,0]
["32º",null,null,null,null,null,null,null,null,null,null,null,null,null,null,null,null,null,null,null,null,null,null,null,null,null,null,0]
["33º",null,null,null,null,null,null,null,null,null,null,null,null,null,null,null,null,null,null,null,null,null,null,null,null,null,null,{"$f":"SUM(D43:AA43)","v":0}]
["34º",null,null,null,null,null,null,null,null,null,null,null,null,null,null,null,null,null,null,null,null,null,null,null,null,null,null,0]
["35º",null,null,null,null,null,null,null,null,null,null,null,null,null,null,null,null,null,null,null,null,null,null,null,null,null,null,0]
["36º",null,null,null,null,null,null,null,null,null,null,null,null,null,null,null,null,null,null,null,null,null,null,null,null,null,null,0]
["37º",null,null,null,null,null,null,null,null,null,null,null,null,null,null,null,null,null,null,null,null,null,null,null,null,null,null,0]
["38º",null,null,null,null,null,null,null,null,null,null,null,null,null,null,null,null,null,null,null,null,null,null,null,null,null,null,0]
["39º",null,null,null,null,null,null,null,null,null,null,null,null,null,null,null,null,null,null,null,null,null,null,null,null,null,null,0]
["40º",null,null,null,null,null,null,null,null,null,null,null,null,null,null,null,null,null,null,null,null,null,null,null,null,null,null,0]
["41º",null,null,null,null,null,null,null,null,null,null,null,null,null,null,null,null,null,null,null,null,null,null,null,null,null,null,0]
["42º",null,null,null,null,null,null,null,null,null,null,null,null,null,null,null,null,null,null,null,null,null,null,null,null,null,null,0]
["43º",null,null,null,null,null,null,null,null,null,null,null,null,null,null,null,null,null,null,null,null,null,null,null,null,null,null,0]
["44º",null,null,null,null,null,null,null,null,null,null,null,null,null,null,null,null,null,null,null,null,null,null,null,null,null,null,0]
["45º",null,null,null,null,null,null,null,null,null,null,null,null,null,null,null,null,null,null,null,null,null,null,null,null,null,null,0]
["46º",null,null,null,null,null,null,null,null,null,null,null,null,null,null,null,null,null,null,null,null,null,null,null,null,null,null,0]
["47º",null,null,null,null,null,null,null,null,null,null,null,null,null,null,null,null,null,null,null,null,null,null,null,null,null,null,0]
["48º",null,null,null,null,null,null,null,null,null,null,null,null,null,null,null,null,null,null,null,null,null,null,null,null,null,null,0]
["49º",null,null,null,null,null,null,null,null,null,null,null,null,null,null,null,null,null,null,null,null,null,null,null,null,null,null,0]
["50º",null,null,null,null,null,null,null,null,null,null,null,null,null,null,null,null,null,null,null,null,null,null,null,null,null,null,0]
["51º",null,null,null,null,null,null,null,null,null,null,null,null,null,null,null,null,null,null,null,null,null,null,null,null,null,null,0]
["52º",null,null,null,null,null,null,null,null,null,null,null,null,null,null,null,null,null,null,null,null,null,null,null,null,null,null,0]
["53º",null,null,null,null,null,null,null,null,null,null,null,null,null,null,null,null,null,null,null,null,null,null,null,null,null,null,0]
["54º",null,null,null,null,null,null,null,null,null,null,null,null,null,null,null,null,null,null,null,null,null,null,null,null,null,null,0]
["55º",null,null,null,null,null,null,null,null,null,null,null,null,null,null,null,null,null,null,null,null,null,null,null,null,null,null,0]
["56º",null,null,null,null,null,null,null,null,null,null,null,null,null,null,null,null,null,null,null,null,null,null,null,null,null,null,0]
["57º",null,null,null,null,null,null,null,null,null,null,null,null,null,null,null,null,null,null,null,null,null,null,null,null,null,null,0]
["58º",null,null,null,null,null,null,null,null,null,null,null,null,null,null,null,null,null,null,null,null,null,null,null,null,null,null,0]
["59º",null,null,null,null,null,null,null,null,null,null,null,null,null,null,null,null,null,null,null,null,null,null,null,null,null,null,0]
["60º",null,null,null,null,null,null,null,null,null,null,null,null,null,null,null,null,null,null,null,null,null,null,null,null,null,null,0]
["61º",null,null,null,null,null,null,null,null,null,null,null,null,null,null,null,null,null,null,null,null,null,null,null,null,null,null,0]
["62º",null,null,null,null,null,null,null,null,null,null,null,null,null,null,null,null,null,null,null,null,null,null,null,null,null,null,0]
["63º",null,null,null,null,null,null,null,null,null,null,null,null,null,null,null,null,null,null,null,null,null,null,null,null,null,null,0]
["64º",null,null,null,null,null,null,null,null,null,null,null,null,null,null,null,null,null,null,null,null,null,null,null,null,null,null,0]
["65º",null,null,null,null,null,null,null,null,null,null,null,null,null,null,null,null,null,null,null,null,null,null,null,null,null,null,{"$f":"SUM(D75:AA75)","v":0}]
["66º",null,null,null,null,null,null,null,null,null,null,null,null,null,null,null,null,null,null,null,null,null,null,null,null,null,null,0]
["67º",null,null,null,null,null,null,null,null,null,null,null,null,null,null,null,null,null,null,null,null,null,null,null,null,null,null,0]
["68º",null,null,null,null,null,null,null,null,null,null,null,null,null,null,null,null,null,null,null,null,null,null,null,null,null,null,0]
["69º",null,null,null,null,null,null,null,null,null,null,null,null,null,null,null,null,null,null,null,null,null,null,null,null,null,null,0]
["70º",null,null,null,null,null,null,null,null,null,null,null,null,null,null,null,null,null,null,null,null,null,null,null,null,null,null,0]
["71º",null,null,null,null,null,null,null,null,null,null,null,null,null,null,null,null,null,null,null,null,null,null,null,null,null,null,0]
["72º",null,null,null,null,null,null,null,null,null,null,null,null,null,null,null,null,null,null,null,null,null,null,null,null,null,null,0]
["73º",null,null,null,null,null,null,null,null,null,null,null,null,null,null,null,null,null,null,null,null,null,null,null,null,null,null,0]
["74º",null,null,null,null,null,null,null,null,null,null,null,null,null,null,null,null,null,null,null,null,null,null,null,null,null,null,0]
["75º",null,null,null,null,null,null,null,null,null,null,null,null,null,null,null,null,null,null,null,null,null,null,null,null,null,null,0]
["76º",null,null,null,null,null,null,null,null,null,null,null,null,null,null,null,null,null,null,null,null,null,null,null,null,null,null,0]
["77º",null,null,null,null,null,null,null,null,null,null,null,null,null,null,null,null,null,null,null,null,null,null,null,null,null,null,0]
["78º",null,null,null,null,null,null,null,null,null,null,null,null,null,null,null,null,null,null,null,null,null,null,null,null,null,null,0]
["79º",null,null,null,null,null,null,null,null,null,null,null,null,null,null,null,null,null,null,null,null,null,null,null,null,null,null,0]
["80º",null,null,null,null,null,null,null,null,null,null,null,null,null,null,null,null,null,null,null,null,null,null,null,null,null,null,0]
["81º",null,null,null,null,null,null,null,null,null,null,null,null,null,null,null,null,null,null,null,null,null,null,null,null,null,null,0]
["82º",null,null,null,null,null,null,null,null,null,null,null,null,null,null,null,null,null,null,null,null,null,null,null,null,null,null,0]
["83º",null,null,null,null,null,null,null,null,null,null,null,null,null,null,null,null,null,null,null,null,null,null,null,null,null,null,0]
["84º",null,null,null,null,null,null,null,null,null,null,null,null,null,null,null,null,null,null,null,null,null,null,null,null,null,null,0]
["85º",null,null,null,null,null,null,null,null,null,null,null,null,null,null,null,null,null,null,null,null,null,null,null,null,null,null,0]
["86º",null,null,null,null,null,null,null,null,null,null,null,null,null,null,null,null,null,null,null,null,null,null,null,null,null,null,0]
["87º",null,null,null,null,null,null,null,null,null,null,null,null,null,null,null,null,null,null,null,null,null,null,null,null,null,null,0]
["88º",null,null,null,null,null,null,null,null,null,null,null,null,null,null,null,null,null,null,null,null,null,null,null,null,null,null,0]
["89º",null,null,null,null,null,null,null,null,null,null,null,null,null,null,null,null,null,null,null,null,null,null,null,null,null,null,0]
["90º",null,null,null,null,null,null,null,null,null,null,null,null,null,null,null,null,null,null,null,null,null,null,null,null,null,null,0]
[]
[]
[null,"LEGENDA"]
[null,"BONIFICAÇÃO POR ETAPA PARTICIPADA"]
[null,"PARTICIPOU DE 1 ETAPA=",null,5]
[null,"PARTICIPOU DE 2 ETAPAS=",null,"1X+10"]
[null,"PARTICIPOU DE 3 ETAPAS=",null,"2X+15"]
[null,"PARTICIPOU DE 4 ETAPAS=",null,"3X+25"]
[null,"PARTICIPOU DE 5 ETAPAS",null,"4X+40"]
[null,"PARTICIPOU DE 6 ETAPAS=",null,"5X+50"]
[null,"BONUS RECORD",null,20]
[null,"PROVA EM BRANCO",null,"NÃO TEVE ELIMINATORIAS"]

{"sheet":"DO","index":1,"n_rows":111,"n_cols":28,"rows_kept":111,"cut":false,"hidden":false,"merged":[[7,19,7,20],[7,21,7,22],[7,23,7,24],[7,25,7,26],[0,2,0,26],[1,2,1,26],[4,15,4,18],[6,15,6,18],[5,15,5,18],[6,3,6,6],[5,3,5,6],[4,3,4,6],[6,23,6,26],[5,23,5,26],[4,23,4,26],[6,19,6,22],[5,19,5,22],[8,0,8,1],[4,19,4,22],[6,11,6,14],[5,11,5,14],[4,11,4,14],[6,7,6,10],[5,7,5,10],[4,7,4,10],[7,3,7,4],[7,5,7,6],[7,7,7,8],[7,9,7,10],[7,11,7,12],[7,13,7,14],[7,15,7,16],[7,17,7,18],[102,1,102,7],[103,1,103,2],[104,1,104,2],[105,1,105,2],[110,3,110,7],[106,1,106,2],[107,1,107,2],[108,1,108,2],[109,1,109,2],[110,1,110,2]]}
[]
[null,null,"CLASSIFICAÇÃO OFICIAL DO CAMPEONATO BRASILEIRO 2013 DE ARRANCADA 402 M. "]
[]
[]
[null,null,"Evento","1º",null,null,null,"2º",null,null,null,"3º",null,null,null,"4º",null,null,null,"5º",null,null,null,"6º"]
[null,null,"Local","VELOPARK",null,null,null,"Curitiba",null,null,null,"VELOPARK",null,null,null,"VELOPARK",null,null,null,null,null,null,null,"VELOPARK"]
[null,null,"Data","15 a 17/03",null,null,null,"03 a 05/05/2013",null,null,null,"16 a 18/08/2013",null,null,null,"27 a 29/09/2013",null,null,null,null,null,null,null,"17/11"]
[]
["DIANTEIRA ORIGINAL DO",null,null,"bonus","bonus","bonus",null,"bonus","bonus","bonus",null,"bonus","bonus","bonus",null,"bonus","bonus","bonus",null,"bonus","bonus","bonus",null,"bonus","bonus","bonus"]
["POS","PILOTO","Nº","partic.","record","classif.","Prova","partic.","record","classif.","Prova","partic.","record","classif.","Prova","partic.","record","classif.","Prova","partic.","record","classif.","Prova","partic.","record","classif.","Prova","TOTAL"]
["1º","JULIO DALLA ROSA",42,"x",20,80,100,0,null,0,null,"X",20,75,100,"X",20,75,80,null,null,null,null,40,null,150,200,{"$f":"SUM(D11:AA11)","v":960}]
["2º","MALTON PORTO",177,0,null,0,0,0,null,0,null,"X",null,70,60,"X",null,80,100,null,null,null,null,25,20,160,160,675]
["3º","IVO LEAL",79,"x",null,75,80,0,null,0,null,"X",null,65,60,"X",null,70,60,null,null,null,null,40,null,120,80,650]
["4º","PAULO SERGIO",728,0,null,0,0,0,null,0,null,0,null,0,0,0,null,0,0,null,null,null,null,10,null,130,120,260]
["5º","WELLINGTON MARCELINO",2301,0,null,0,0,0,null,0,null,0,null,0,0,0,null,0,0,null,null,null,null,10,null,140,80,230]
["6º","ALEXANDRE  BETINE",120,0,null,0,0,0,null,0,null,5,null,80,80,0,null,0,0,null,null,null,null,0,null,0,0,165]
["7º","PAULO GONDAWSKI",28,5,null,70,60,0,null,0,null,0,null,0,0,0,null,0,0,null,null,null,null,0,null,0,0,135]
["8º","ROMULO O. BRAGA",10,5,null,65,60,0,null,0,null,0,null,0,0,0,null,0,0,null,null,null,null,0,null,0,0,130]
["9º","ALESSANDRO BARRANCO",26,0,null,0,0,5,null,80,null,0,null,0,0,0,null,0,0,null,null,null,null,0,null,0,0,85]
["10º",null,null,null,null,null,null,null,null,null,null,null,null,null,null,null,null,null,null,null,null,null,null,null,null,null,null,0]
["11º",null,null,null,null,null,null,null,null,null,null,null,null,null,null,null,null,null,null,null,null,null,null,null,null,null,null,0]
["12º",null,null,null,null,null,null,null,null,null,null,null,null,null,null,null,null,null,null,null,null,null,null,null,null,null,null,0]
["13º",null,null,null,null,null,null,null,null,null,null,null,null,null,null,null,null,null,null,null,null,null,null,null,null,null,null,0]
["14º",null,null,null,null,null,null,null,null,null,null,null,null,null,null,null,null,null,null,null,null,null,null,null,null,null,null,0]
["15º",null,null,null,null,null,null,null,null,null,null,null,null,null,null,null,null,null,null,null,null,null,null,null,null,null,null,0]
["16º",null,null,null,null,null,null,null,null,null,null,null,null,null,null,null,null,null,null,null,null,null,null,null,null,null,null,0]
["17º",null,null,null,null,null,null,null,null,null,null,null,null,null,null,null,null,null,null,null,null,null,null,null,null,null,null,0]
["18º",null,null,null,null,null,null,null,null,null,null,null,null,null,null,null,null,null,null,null,null,null,null,null,null,null,null,0]
["19º",null,null,null,null,null,null,null,null,null,null,null,null,null,null,null,null,null,null,null,null,null,null,null,null,null,null,0]
["20º",null,null,null,null,null,null,null,null,null,null,null,null,null,null,null,null,null,null,null,null,null,null,null,null,null,null,0]
["21º",null,null,null,null,null,null,null,null,null,null,null,null,null,null,null,null,null,null,null,null,null,null,null,null,null,null,0]
["22º",null,null,null,null,null,null,null,null,null,null,null,null,null,null,null,null,null,null,null,null,null,null,null,null,null,null,0]
["23º",null,null,null,null,null,null,null,null,null,null,null,null,null,null,null,null,null,null,null,null,null,null,null,null,null,null,0]
["24º",null,null,null,null,null,null,null,null,null,null,null,null,null,null,null,null,null,null,null,null,null,null,null,null,null,null,0]
["25º",null,null,null,null,null,null,null,null,null,null,null,null,null,null,null,null,null,null,null,null,null,null,null,null,null,null,0]
["26º",null,null,null,null,null,null,null,null,null,null,null,null,null,null,null,null,null,null,null,null,null,null,null,null,null,null,0]
["27º",null,null,null,null,null,null,null,null,null,null,null,null,null,null,null,null,null,null,null,null,null,null,null,null,null,null,0]
["28º",null,null,null,null,null,null,null,null,null,null,null,null,null,null,null,null,null,null,null,null,null,null,null,null,null,null,0]
["29º",null,null,null,null,null,null,null,null,null,null,null,null,null,null,null,null,null,null,null,null,null,null,null,null,null,null,0]
["30º",null,null,null,null,null,null,null,null,null,null,null,null,null,null,null,null,null,null,null,null,null,null,null,null,null,null,0]
["31º",null,null,null,null,null,null,null,null,null,null,null,null,null,null,null,null,null,null,null,null,null,null,null,null,null,null,0]
["32º",null,null,null,null,null,null,null,null,null,null,null,null,null,null,null,null,null,null,null,null,null,null,null,null,null,null,0]
["33º",null,null,null,null,null,null,null,null,null,null,null,null,null,null,null,null,null,null,null,null,null,null,null,null,null,null,{"$f":"SUM(D43:AA43)","v":0}]
["34º",null,null,null,null,null,null,null,null,null,null,null,null,null,null,null,null,null,null,null,null,null,null,null,null,null,null,0]
["35º",null,null,null,null,null,null,null,null,null,null,null,null,null,null,null,null,null,null,null,null,null,null,null,null,null,null,0]
["36º",null,null,null,null,null,null,null,null,null,null,null,null,null,null,null,null,null,null,null,null,null,null,null,null,null,null,0]
["37º",null,null,null,null,null,null,null,null,null,null,null,null,null,null,null,null,null,null,null,null,null,null,null,null,null,null,0]
["38º",null,null,null,null,null,null,null,null,null,null,null,null,null,null,null,null,null,null,null,null,null,null,null,null,null,null,0]
["39º",null,null,null,null,null,null,null,null,null,null,null,null,null,null,null,null,null,null,null,null,null,null,null,null,null,null,0]
["40º",null,null,null,null,null,null,null,null,null,null,null,null,null,null,null,null,null,null,null,null,null,null,null,null,null,null,0]
["41º",null,null,null,null,null,null,null,null,null,null,null,null,null,null,null,null,null,null,null,null,null,null,null,null,null,null,0]
["42º",null,null,null,null,null,null,null,null,null,null,null,null,null,null,null,null,null,null,null,null,null,null,null,null,null,null,0]
["43º",null,null,null,null,null,null,null,null,null,null,null,null,null,null,null,null,null,null,null,null,null,null,null,null,null,null,0]
["44º",null,null,null,null,null,null,null,null,null,null,null,null,null,null,null,null,null,null,null,null,null,null,null,null,null,null,0]
["45º",null,null,null,null,null,null,null,null,null,null,null,null,null,null,null,null,null,null,null,null,null,null,null,null,null,null,0]
["46º",null,null,null,null,null,null,null,null,null,null,null,null,null,null,null,null,null,null,null,null,null,null,null,null,null,null,0]
["47º",null,null,null,null,null,null,null,null,null,null,null,null,null,null,null,null,null,null,null,null,null,null,null,null,null,null,0]
["48º",null,null,null,null,null,null,null,null,null,null,null,null,null,null,null,null,null,null,null,null,null,null,null,null,null,null,0]
["49º",null,null,null,null,null,null,null,null,null,null,null,null,null,null,null,null,null,null,null,null,null,null,null,null,null,null,0]
["50º",null,null,null,null,null,null,null,null,null,null,null,null,null,null,null,null,null,null,null,null,null,null,null,null,null,null,0]
["51º",null,null,null,null,null,null,null,null,null,null,null,null,null,null,null,null,null,null,null,null,null,null,null,null,null,null,0]
["52º",null,null,null,null,null,null,null,null,null,null,null,null,null,null,null,null,null,null,null,null,null,null,null,null,null,null,0]
["53º",null,null,null,null,null,null,null,null,null,null,null,null,null,null,null,null,null,null,null,null,null,null,null,null,null,null,0]
["54º",null,null,null,null,null,null,null,null,null,null,null,null,null,null,null,null,null,null,null,null,null,null,null,null,null,null,0]
["55º",null,null,null,null,null,null,null,null,null,null,null,null,null,null,null,null,null,null,null,null,null,null,null,null,null,null,0]
["56º",null,null,null,null,null,null,null,null,null,null,null,null,null,null,null,null,null,null,null,null,null,null,null,null,null,null,0]
["57º",null,null,null,null,null,null,null,null,null,null,null,null,null,null,null,null,null,null,null,null,null,null,null,null,null,null,0]
["58º",null,null,null,null,null,null,null,null,null,null,null,null,null,null,null,null,null,null,null,null,null,null,null,null,null,null,0]
["59º",null,null,null,null,null,null,null,null,null,null,null,null,null,null,null,null,null,null,null,null,null,null,null,null,null,null,0]
["60º",null,null,null,null,null,null,null,null,null,null,null,null,null,null,null,null,null,null,null,null,null,null,null,null,null,null,0]
["61º",null,null,null,null,null,null,null,null,null,null,null,null,null,null,null,null,null,null,null,null,null,null,null,null,null,null,0]
["62º",null,null,null,null,null,null,null,null,null,null,null,null,null,null,null,null,null,null,null,null,null,null,null,null,null,null,0]
["63º",null,null,null,null,null,null,null,null,null,null,null,null,null,null,null,null,null,null,null,null,null,null,null,null,null,null,0]
["64º",null,null,null,null,null,null,null,null,null,null,null,null,null,null,null,null,null,null,null,null,null,null,null,null,null,null,0]
["65º",null,null,null,null,null,null,null,null,null,null,null,null,null,null,null,null,null,null,null,null,null,null,null,null,null,null,{"$f":"SUM(D75:AA75)","v":0}]
["66º",null,null,null,null,null,null,null,null,null,null,null,null,null,null,null,null,null,null,null,null,null,null,null,null,null,null,0]
["67º",null,null,null,null,null,null,null,null,null,null,null,null,null,null,null,null,null,null,null,null,null,null,null,null,null,null,0]
["68º",null,null,null,null,null,null,null,null,null,null,null,null,null,null,null,null,null,null,null,null,null,null,null,null,null,null,0]
["69º",null,null,null,null,null,null,null,null,null,null,null,null,null,null,null,null,null,null,null,null,null,null,null,null,null,null,0]
["70º",null,null,null,null,null,null,null,null,null,null,null,null,null,null,null,null,null,null,null,null,null,null,null,null,null,null,0]
["71º",null,null,null,null,null,null,null,null,null,null,null,null,null,null,null,null,null,null,null,null,null,null,null,null,null,null,0]
["72º",null,null,null,null,null,null,null,null,null,null,null,null,null,null,null,null,null,null,null,null,null,null,null,null,null,null,0]
["73º",null,null,null,null,null,null,null,null,null,null,null,null,null,null,null,null,null,null,null,null,null,null,null,null,null,null,0]
["74º",null,null,null,null,null,null,null,null,null,null,null,null,null,null,null,null,null,null,null,null,null,null,null,null,null,null,0]
["75º",null,null,null,null,null,null,null,null,null,null,null,null,null,null,null,null,null,null,null,null,null,null,null,null,null,null,0]
["76º",null,null,null,null,null,null,null,null,null,null,null,null,null,null,null,null,null,null,null,null,null,null,null,null,null,null,0]
["77º",null,null,null,null,null,null,null,null,null,null,null,null,null,null,null,null,null,null,null,null,null,null,null,null,null,null,0]
["78º",null,null,null,null,null,null,null,null,null,null,null,null,null,null,null,null,null,null,null,null,null,null,null,null,null,null,0]
["79º",null,null,null,null,null,null,null,null,null,null,null,null,null,null,null,null,null,null,null,null,null,null,null,null,null,null,0]
["80º",null,null,null,null,null,null,null,null,null,null,null,null,null,null,null,null,null,null,null,null,null,null,null,null,null,null,0]
["81º",null,null,null,null,null,null,null,null,null,null,null,null,null,null,null,null,null,null,null,null,null,null,null,null,null,null,0]
["82º",null,null,null,null,null,null,null,null,null,null,null,null,null,null,null,null,null,null,null,null,null,null,null,null,null,null,0]
["83º",null,null,null,null,null,null,null,null,null,null,null,null,null,null,null,null,null,null,null,null,null,null,null,null,null,null,0]
["84º",null,null,null,null,null,null,null,null,null,null,null,null,null,null,null,null,null,null,null,null,null,null,null,null,null,null,0]
["85º",null,null,null,null,null,null,null,null,null,null,null,null,null,null,null,null,null,null,null,null,null,null,null,null,null,null,0]
["86º",null,null,null,null,null,null,null,null,null,null,null,null,null,null,null,null,null,null,null,null,null,null,null,null,null,null,0]
["87º",null,null,null,null,null,null,null,null,null,null,null,null,null,null,null,null,null,null,null,null,null,null,null,null,null,null,0]
["88º",null,null,null,null,null,null,null,null,null,null,null,null,null,null,null,null,null,null,null,null,null,null,null,null,null,null,0]
["89º",null,null,null,null,null,null,null,null,null,null,null,null,null,null,null,null,null,null,null,null,null,null,null,null,null,null,0]
["90º",null,null,null,null,null,null,null,null,null,null,null,null,null,null,null,null,null,null,null,null,null,null,null,null,null,null,0]
[]
[null,"LEGENDA"]
[null,"BONIFICAÇÃO POR ETAPA PARTICIPADA"]
[null,"PARTICIPOU DE 1 ETAPA=",null,5]
[null,"PARTICIPOU DE 2 ETAPAS=",null,"1X+10"]
[null,"PARTICIPOU DE 3 ETAPAS=",null,"2X+15"]
[null,"PARTICIPOU DE 4 ETAPAS=",null,"3X+25"]
[null,"PARTICIPOU DE 5 ETAPAS",null,"4X+40"]
[null,"PARTICIPOU DE 6 ETAPAS=",null,"5X+50"]
[null,"BONUS RECORD",null,20]
[null,"PROVA EM BRANCO",null,"NÃO TEVE ELIMINATORIAS"]

{"sheet":"TO","index":2,"n_rows":111,"n_cols":28,"rows_kept":111,"cut":false,"hidden":false,"merged":[[0,2,0,26],[1,2,1,26],[4,15,4,18],[6,15,6,18],[5,15,5,18],[6,3,6,6],[5,3,5,6],[4,3,4,6],[6,23,6,26],[5,23,5,26],[4,23,4,26],[6,19,6,22],[4,19,4,22],[6,11,6,14],[4,11,4,14],[5,7,5,10],[4,7,4,10],[7,23,7,24],[7,17,7,18],[7,25,7,26],[102,1,102,7],[103,1,103,2],[104,1,104,2],[5,19,5,22],[8,0,8,1],[7,3,7,4],[7,5,7,6],[7,7,7,8],[7,9,7,10],[7,11,7,12],[7,13,7,14],[7,15,7,16],[7,19,7,20],[7,21,7,22],[5,11,5,14],[6,7,6,10]]}
[]
[null,null,"CLASSIFICAÇÃO OFICIAL DO CAMPEONATO BRASILEIRO 2013 DE ARRANCADA 402 M. "]
[]
[]
[null,null,"Evento","1º",null,null,null,"2º",null,null,null,"3º",null,null,null,"4º",null,null,null,"5º",null,null,null,"6º"]
[null,null,"Local","VELOPARK",null,null,null,"Curitiba",null,null,null,"VELOPARK",null,null,null,"VELOPARK",null,null,null,null,null,null,null,"VELOPARK"]
[null,null,"Data","15 a 17/03",null,null,null,"03 a 05/05/2013",null,null,null,"16 a 18/08/2013",null,null,null,"27 a 29/09/2013",null,null,null,null,null,null,null,"17/11"]
[]
["TRASEIRA ORIGINAL -TO",null,null,"bonus","bonus","bonus",null,"bonus","bonus","bonus",null,"bonus","bonus","bonus",null,"bonus","bonus","bonus",null,"bonus","bonus","bonus",null,"bonus","bonus","bonus"]
["POS","PILOTO","Nº","partic.","record","classif.","Prova","partic.","record","classif.","Prova","partic.","record","classif.","Prova","partic.","record","classif.","Prova","partic.","record","classif.","Prova","partic.","record","classif.","Prova","TOTAL"]
["1º","BRENO CASTAGNON",22,"X",null,70,40,"X",null,70,null,"X",null,55,40,"X",null,60,60,null,null,null,null,50,null,140,80,{"$f":"SUM(D11:AA11)","v":665}]
["2º","RAUL CORREIA",101,0,null,0,0,"X",null,75,null,"X",null,80,60,0,null,0,0,null,null,null,null,25,null,150,200,590]
["3º","ALVARO DIAS",7,"X",null,65,0,0,null,0,null,"X",null,65,80,"X",null,80,100,null,null,null,null,40,null,130,0,560]
["4º","CLAUDIO CASTAGNON",12,"X",null,55,0,0,null,0,null,"X",null,45,0,"X",null,70,60,null,null,null,null,40,null,160,120,550]
["5º","THIAGO FERREIRA",200,"X",20,80,100,"X",20,80,null,15,null,50,100,0,null,0,0,null,null,null,null,0,null,0,0,465]
["6º","ALEXANDRE KROEFF",308,0,null,0,0,0,null,0,null,"X",20,75,40,0,null,0,0,null,null,null,null,15,null,120,160,430]
["7º","FRANSCISCO ZANETTI",70,0,null,0,0,0,null,0,null,0,null,0,0,"X",null,45,40,null,null,null,null,15,null,110,120,330]
["8º","ANDERSON CANANI",88,0,null,0,0,0,null,0,null,"X",null,70,60,10,null,75,80,null,null,null,null,0,null,0,0,295]
["9º","ISRAEL FONTANELLA",6767,0,null,0,0,0,null,0,null,"X",null,60,40,10,null,65,40,null,null,null,null,0,null,0,0,215]
["10º","LUCIANO PIUCO",76,5,null,75,80,0,null,0,null,0,null,0,0,0,null,0,0,null,null,null,null,0,null,0,0,160]
["11º","PEDRO NUNES",1,0,null,0,0,0,null,0,null,0,null,0,0,0,null,0,0,null,null,null,null,10,null,100,0,110]
["12º","ANDERSON HOSS",177,0,null,0,0,0,null,0,null,0,null,0,0,5,null,55,40,null,null,null,null,0,null,0,0,100]
["13º","VITOR CASARIN",1818,0,null,0,0,0,null,0,null,0,null,0,0,5,null,50,40,null,null,null,null,0,null,0,0,95]
["14º","DAVID AVILA",191,0,null,0,0,5,null,65,null,0,null,0,0,0,null,0,0,null,null,null,null,0,null,0,0,70]
["15º","ALAN P. GIOVANELLA",177,5,null,60,0,0,null,0,null,0,null,0,0,0,null,0,0,null,null,null,null,0,null,0,0,65]
["16º",null,null,null,null,null,null,null,null,null,null,null,null,null,null,null,null,null,null,null,null,null,null,null,null,null,null,0]
["17º",null,null,null,null,null,null,null,null,null,null,null,null,null,null,null,null,null,null,null,null,null,null,null,null,null,null,0]
["18º",null,null,null,null,null,null,null,null,null,null,null,null,null,null,null,null,null,null,null,null,null,null,null,null,null,null,0]
["19º",null,null,null,null,null,null,null,null,null,null,null,null,null,null,null,null,null,null,null,null,null,null,null,null,null,null,0]
["20º",null,null,null,null,null,null,null,null,null,null,null,null,null,null,null,null,null,null,null,null,null,null,null,null,null,null,0]
["21º",null,null,null,null,null,null,null,null,null,null,null,null,null,null,null,null,null,null,null,null,null,null,null,null,null,null,0]
["22º",null,null,null,null,null,null,null,null,null,null,null,null,null,null,null,null,null,null,null,null,null,null,null,null,null,null,0]
["23º",null,null,null,null,null,null,null,null,null,null,null,null,null,null,null,null,null,null,null,null,null,null,null,null,null,null,0]
["24º",null,null,null,null,null,null,null,null,null,null,null,null,null,null,null,null,null,null,null,null,null,null,null,null,null,null,0]
["25º",null,null,null,null,null,null,null,null,null,null,null,null,null,null,null,null,null,null,null,null,null,null,null,null,null,null,0]
["26º",null,null,null,null,null,null,null,null,null,null,null,null,null,null,null,null,null,null,null,null,null,null,null,null,null,null,0]
["27º",null,null,null,null,null,null,null,null,null,null,null,null,null,null,null,null,null,null,null,null,null,null,null,null,null,null,0]
["28º",null,null,null,null,null,null,null,null,null,null,null,null,null,null,null,null,null,null,null,null,null,null,null,null,null,null,0]
["29º",null,null,null,null,null,null,null,null,null,null,null,null,null,null,null,null,null,null,null,null,null,null,null,null,null,null,0]
["30º",null,null,null,null,null,null,null,null,null,null,null,null,null,null,null,null,null,null,null,null,null,null,null,null,null,null,0]
["31º",null,null,null,null,null,null,null,null,null,null,null,null,null,null,null,null,null,null,null,null,null,null,null,null,null,null,0]
["32º",null,null,null,null,null,null,null,null,null,null,null,null,null,null,null,null,null,null,null,null,null,null,null,null,null,null,0]
["33º",null,null,null,null,null,null,null,null,null,null,null,null,null,null,null,null,null,null,null,null,null,null,null,null,null,null,{"$f":"SUM(D43:AA43)","v":0}]
["34º",null,null,null,null,null,null,null,null,null,null,null,null,null,null,null,null,null,null,null,null,null,null,null,null,null,null,0]
["35º",null,null,null,null,null,null,null,null,null,null,null,null,null,null,null,null,null,null,null,null,null,null,null,null,null,null,0]
["36º",null,null,null,null,null,null,null,null,null,null,null,null,null,null,null,null,null,null,null,null,null,null,null,null,null,null,0]
["37º",null,null,null,null,null,null,null,null,null,null,null,null,null,null,null,null,null,null,null,null,null,null,null,null,null,null,0]
["38º",null,null,null,null,null,null,null,null,null,null,null,null,null,null,null,null,null,null,null,null,null,null,null,null,null,null,0]
["39º",null,null,null,null,null,null,null,null,null,null,null,null,null,null,null,null,null,null,null,null,null,null,null,null,null,null,0]
["40º",null,null,null,null,null,null,null,null,null,null,null,null,null,null,null,null,null,null,null,null,null,null,null,null,null,null,0]
["41º",null,null,null,null,null,null,null,null,null,null,null,null,null,null,null,null,null,null,null,null,null,null,null,null,null,null,0]
["42º",null,null,null,null,null,null,null,null,null,null,null,null,null,null,null,null,null,null,null,null,null,null,null,null,null,null,0]
["43º",null,null,null,null,null,null,null,null,null,null,null,null,null,null,null,null,null,null,null,null,null,null,null,null,null,null,0]
["44º",null,null,null,null,null,null,null,null,null,null,null,null,null,null,null,null,null,null,null,null,null,null,null,null,null,null,0]
["45º",null,null,null,null,null,null,null,null,null,null,null,null,null,null,null,null,null,null,null,null,null,null,null,null,null,null,0]
["46º",null,null,null,null,null,null,null,null,null,null,null,null,null,null,null,null,null,null,null,null,null,null,null,null,null,null,0]
["47º",null,null,null,null,null,null,null,null,null,null,null,null,null,null,null,null,null,null,null,null,null,null,null,null,null,null,0]
["48º",null,null,null,null,null,null,null,null,null,null,null,null,null,null,null,null,null,null,null,null,null,null,null,null,null,null,0]
["49º",null,null,null,null,null,null,null,null,null,null,null,null,null,null,null,null,null,null,null,null,null,null,null,null,null,null,0]
["50º",null,null,null,null,null,null,null,null,null,null,null,null,null,null,null,null,null,null,null,null,null,null,null,null,null,null,0]
["51º",null,null,null,null,null,null,null,null,null,null,null,null,null,null,null,null,null,null,null,null,null,null,null,null,null,null,0]
["52º",null,null,null,null,null,null,null,null,null,null,null,null,null,null,null,null,null,null,null,null,null,null,null,null,null,null,0]
["53º",null,null,null,null,null,null,null,null,null,null,null,null,null,null,null,null,null,null,null,null,null,null,null,null,null,null,0]
["54º",null,null,null,null,null,null,null,null,null,null,null,null,null,null,null,null,null,null,null,null,null,null,null,null,null,null,0]
["55º",null,null,null,null,null,null,null,null,null,null,null,null,null,null,null,null,null,null,null,null,null,null,null,null,null,null,0]
["56º",null,null,null,null,null,null,null,null,null,null,null,null,null,null,null,null,null,null,null,null,null,null,null,null,null,null,0]
["57º",null,null,null,null,null,null,null,null,null,null,null,null,null,null,null,null,null,null,null,null,null,null,null,null,null,null,0]
["58º",null,null,null,null,null,null,null,null,null,null,null,null,null,null,null,null,null,null,null,null,null,null,null,null,null,null,0]
["59º",null,null,null,null,null,null,null,null,null,null,null,null,null,null,null,null,null,null,null,null,null,null,null,null,null,null,0]
["60º",null,null,null,null,null,null,null,null,null,null,null,null,null,null,null,null,null,null,null,null,null,null,null,null,null,null,0]
["61º",null,null,null,null,null,null,null,null,null,null,null,null,null,null,null,null,null,null,null,null,null,null,null,null,null,null,0]
["62º",null,null,null,null,null,null,null,null,null,null,null,null,null,null,null,null,null,null,null,null,null,null,null,null,null,null,0]
["63º",null,null,null,null,null,null,null,null,null,null,null,null,null,null,null,null,null,null,null,null,null,null,null,null,null,null,0]
["64º",null,null,null,null,null,null,null,null,null,null,null,null,null,null,null,null,null,null,null,null,null,null,null,null,null,null,0]
["65º",null,null,null,null,null,null,null,null,null,null,null,null,null,null,null,null,null,null,null,null,null,null,null,null,null,null,{"$f":"SUM(D75:AA75)","v":0}]
["66º",null,null,null,null,null,null,null,null,null,null,null,null,null,null,null,null,null,null,null,null,null,null,null,null,null,null,0]
["67º",null,null,null,null,null,null,null,null,null,null,null,null,null,null,null,null,null,null,null,null,null,null,null,null,null,null,0]
["68º",null,null,null,null,null,null,null,null,null,null,null,null,null,null,null,null,null,null,null,null,null,null,null,null,null,null,0]
["69º",null,null,null,null,null,null,null,null,null,null,null,null,null,null,null,null,null,null,null,null,null,null,null,null,null,null,0]
["70º",null,null,null,null,null,null,null,null,null,null,null,null,null,null,null,null,null,null,null,null,null,null,null,null,null,null,0]
["71º",null,null,null,null,null,null,null,null,null,null,null,null,null,null,null,null,null,null,null,null,null,null,null,null,null,null,0]
["72º",null,null,null,null,null,null,null,null,null,null,null,null,null,null,null,null,null,null,null,null,null,null,null,null,null,null,0]
["73º",null,null,null,null,null,null,null,null,null,null,null,null,null,null,null,null,null,null,null,null,null,null,null,null,null,null,0]
["74º",null,null,null,null,null,null,null,null,null,null,null,null,null,null,null,null,null,null,null,null,null,null,null,null,null,null,0]
["75º",null,null,null,null,null,null,null,null,null,null,null,null,null,null,null,null,null,null,null,null,null,null,null,null,null,null,0]
["76º",null,null,null,null,null,null,null,null,null,null,null,null,null,null,null,null,null,null,null,null,null,null,null,null,null,null,0]
["77º",null,null,null,null,null,null,null,null,null,null,null,null,null,null,null,null,null,null,null,null,null,null,null,null,null,null,0]
["78º",null,null,null,null,null,null,null,null,null,null,null,null,null,null,null,null,null,null,null,null,null,null,null,null,null,null,0]
["79º",null,null,null,null,null,null,null,null,null,null,null,null,null,null,null,null,null,null,null,null,null,null,null,null,null,null,0]
["80º",null,null,null,null,null,null,null,null,null,null,null,null,null,null,null,null,null,null,null,null,null,null,null,null,null,null,0]
["81º",null,null,null,null,null,null,null,null,null,null,null,null,null,null,null,null,null,null,null,null,null,null,null,null,null,null,0]
["82º",null,null,null,null,null,null,null,null,null,null,null,null,null,null,null,null,null,null,null,null,null,null,null,null,null,null,0]
["83º",null,null,null,null,null,null,null,null,null,null,null,null,null,null,null,null,null,null,null,null,null,null,null,null,null,null,0]
["84º",null,null,null,null,null,null,null,null,null,null,null,null,null,null,null,null,null,null,null,null,null,null,null,null,null,null,0]
["85º",null,null,null,null,null,null,null,null,null,null,null,null,null,null,null,null,null,null,null,null,null,null,null,null,null,null,0]
["86º",null,null,null,null,null,null,null,null,null,null,null,null,null,null,null,null,null,null,null,null,null,null,null,null,null,null,0]
["87º",null,null,null,null,null,null,null,null,null,null,null,null,null,null,null,null,null,null,null,null,null,null,null,null,null,null,0]
["88º",null,null,null,null,null,null,null,null,null,null,null,null,null,null,null,null,null,null,null,null,null,null,null,null,null,null,0]
["89º",null,null,null,null,null,null,null,null,null,null,null,null,null,null,null,null,null,null,null,null,null,null,null,null,null,null,0]
["90º",null,null,null,null,null,null,null,null,null,null,null,null,null,null,null,null,null,null,null,null,null,null,null,null,null,null,0]
[]
[null,"LEGENDA"]
[null,"BONIFICAÇÃO POR ETAPA PARTICIPADA"]
[null,"PARTICIPOU DE 1 ETAPA=",null,5]
[null,"PARTICIPOU DE 2 ETAPAS=",null,"1X+10"]
[null,"PARTICIPOU DE 3 ETAPAS=",null,"2X+15"]
[null,"PARTICIPOU DE 4 ETAPAS=",null,"3X+25"]
[null,"PARTICIPOU DE 5 ETAPAS",null,"4X+40"]
[null,"PARTICIPOU DE 6 ETAPAS=",null,"5X+50"]
[null,"BONUS RECORD",null,20]
[null,"PROVA EM BRANCO",null,"NÃO TEVE ELIMINATORIAS"]

{"sheet":"DTC","index":3,"n_rows":111,"n_cols":28,"rows_kept":111,"cut":false,"hidden":false,"merged":[[7,19,7,20],[7,21,7,22],[7,23,7,24],[7,25,7,26],[0,2,0,26],[1,2,1,26],[4,15,4,18],[6,15,6,18],[5,15,5,18],[6,3,6,6],[5,3,5,6],[4,3,4,6],[6,23,6,26],[5,23,5,26],[4,23,4,26],[6,19,6,22],[5,19,5,22],[8,0,8,1],[4,19,4,22],[6,11,6,14],[5,11,5,14],[4,11,4,14],[6,7,6,10],[5,7,5,10],[4,7,4,10],[7,3,7,4],[7,5,7,6],[7,7,7,8],[7,9,7,10],[7,11,7,12],[7,13,7,14],[7,15,7,16],[7,17,7,18],[102,1,102,7],[103,1,103,2],[104,1,104,2],[105,1,105,2],[110,3,110,7],[106,1,106,2],[107,1,107,2],[108,1,108,2],[109,1,109,2],[110,1,110,2]]}
[]
[null,null,"CLASSIFICAÇÃO OFICIAL DO CAMPEONATO BRASILEIRO 2013 DE ARRANCADA 402 M. "]
[]
[]
[null,null,"Evento","1º",null,null,null,"2º",null,null,null,"3º",null,null,null,"4º",null,null,null,"5º",null,null,null,"6º"]
[null,null,"Local","VELOPARK ",null,null,null,"Curitiba",null,null,null,"VELOPARK",null,null,null,"VELOPARK",null,null,null,null,null,null,null,"VELOPARK "]
[null,null,"Data","15 a 17/03",null,null,null,"03 a 05/05/2013",null,null,null,"16 a 18/08/2013",null,null,null,"27 a 29/09/2013",null,null,null,null,null,null,null,"17/11"]
[]
["DIANTEIRA TURBO C - DTC",null,null,"bonus","bonus","bonus",null,"bonus","bonus","bonus",null,"bonus","bonus","bonus",null,"bonus","bonus","bonus",null,"bonus","bonus","bonus",null,"bonus","bonus","bonus"]
["POS","PILOTO","Nº","partic.","record","classif.","Prova","partic.","record","classif.","Prova","partic.","record","classif.","Prova","partic.","record","classif.","Prova","partic.","record","classif.","Prova","partic.","record","classif.","Prova","TOTAL"]
["1º","GINESIO CASSOL",286,"X",null,55,100,0,null,0,null,"X",null,80,100,"X",null,80,20,null,null,null,null,40,null,160,120,{"$f":"SUM(D11:AA11)","v":755}]
["2º","ROGERIO BERNARDI",1322,"X",null,40,0,"X",20,75,null,"X",null,30,40,"X",null,75,100,null,null,null,null,50,null,140,160,730]
["3º","FABIANO SERRO",336,"X",null,75,20,0,null,0,null,"X",null,65,60,"X",null,60,80,null,null,null,null,40,null,150,80,630]
["4º","FABIANO BORTONCELLO",168,"X",null,50,60,0,null,0,null,"X",null,60,40,"X",null,70,40,null,null,null,null,40,null,80,0,440]
["5º","MICHEL GOLIN",288,0,null,0,0,0,null,0,null,"X",null,70,20,"X",null,15,20,null,null,null,null,25,null,100,120,370]
["6º","ALEXANDRE BRITO",86,0,null,0,0,"X",null,80,null,"X",null,75,80,15,null,65,40,null,null,null,null,0,null,0,0,355]
["7º","ROMULO BRAGA",45,0,null,0,0,0,null,0,null,0,null,0,0,0,null,0,0,null,null,null,null,10,null,120,200,330]
["8º","UBIRAJARA INACIO",16,0,null,0,0,0,null,0,null,"X",null,35,0,"X",null,55,20,null,null,null,null,25,null,110,80,325]
["9º","THIAGO LUNA",8,0,null,0,0,0,null,0,null,"X",null,25,0,"X",null,45,20,null,null,null,null,25,null,90,80,285]
["10º","DIAN ALONSO",611,0,null,0,0,0,null,0,null,"X",null,55,20,"X",null,50,40,null,null,null,null,25,null,50,40,280]
["11º","WESLEY BRITO",777,0,null,0,0,0,null,0,null,0,null,0,0,0,null,0,0,null,null,null,null,10,null,130,80,220]
["12º","BRUNO TOZETTTI",47,"X",null,60,40,0,null,0,null,10,null,45,40,0,null,0,0,null,null,null,null,0,null,0,0,195]
["13º","IVAN COSTA SILVA",450,5,20,80,40,0,null,0,null,0,null,0,0,0,null,0,0,null,null,null,null,0,null,0,0,145]
["14º","RENAN ROANI",30,0,null,0,0,0,null,0,null,0,null,0,0,"X",null,30,0,null,null,null,null,15,null,60,40,145]
["15º","ANGELO A. GOBBO",157,"X",null,20,20,"X",null,45,null,15,null,40,0,0,null,0,0,null,null,null,null,0,null,0,0,140]
["16º","GIULIANO SIQUEIRA",878,"X",null,45,20,10,null,55,null,0,null,0,0,0,null,0,0,null,null,null,null,0,null,0,0,130]
["17º","RODRIGO MAZUCO",511,0,null,0,0,0,null,0,null,0,null,0,0,0,null,0,0,null,null,null,null,10,null,70,40,120]
["18º","LUIZ F. CEMINSKI",287,5,null,70,40,0,null,0,null,0,null,0,0,0,null,0,0,null,null,null,null,0,null,0,0,115]
["19º","NELSON MARTELLI",455,5,null,65,40,0,null,0,null,0,null,0,0,0,null,0,0,null,null,null,null,0,null,0,0,110]
["20º","WILLIAM PINHEIRO",808,"X",null,35,20,10,null,45,null,0,null,0,0,0,null,0,0,null,null,null,null,0,null,0,0,110]
["21º","CELSO CASTRO",293,0,null,0,0,0,null,0,null,0,null,0,0,"X",null,20,20,null,null,null,null,15,null,50,0,105]
["22º","FRANCISCO SANSHES",95,"X",null,15,20,0,null,0,null,0,null,0,0,10,null,40,20,null,null,null,null,0,null,0,0,105]
["23º","DIORGE RECKZIEGEL",801,0,null,0,0,0,null,0,null,"X",null,30,0,10,null,35,20,null,null,null,null,0,null,0,0,95]
["24º","NOEMAR ZATTI",55,0,null,0,0,0,null,0,null,0,null,0,0,0,null,0,0,null,null,null,null,10,null,40,40,90]
["25º","CESAR SABO",136,0,null,0,0,0,null,0,null,0,null,0,0,0,null,0,0,null,null,null,null,10,null,70,0,80]
["26º","CARLOS AUGUSTO",365,0,null,0,0,5,null,70,null,0,null,0,0,0,null,0,0,null,null,null,null,0,null,0,0,75]
["27º","DALMO ABREU",1113,0,null,0,0,5,null,65,null,0,null,0,0,0,null,0,0,null,null,null,null,0,null,0,0,70]
["28º","RAFAEL MANASSES",367,0,null,0,0,5,null,60,null,0,null,0,0,0,null,0,0,null,null,null,null,0,null,0,0,65]
["29º","WILLIAM KRAUSS",167,0,null,0,0,0,null,0,null,5,null,15,40,0,null,0,0,null,null,null,null,0,null,0,0,60]
["30º","ALFREDO O. NETO",172,0,null,0,0,5,null,50,null,0,null,0,0,0,null,0,0,null,null,null,null,0,null,0,0,55]
["31º","RAFAEL W. SESTREN",90,5,null,30,20,0,null,0,null,0,null,0,0,0,null,0,0,null,null,null,null,0,null,0,0,55]
["32º","ADALBERTO JAHN",51,0,null,0,0,0,null,0,null,5,null,5,40,0,null,0,0,null,null,null,null,0,null,0,0,50]
["33º","THIAGO BARNABÉ",4140,0,null,0,0,0,null,0,null,5,null,25,20,0,null,0,0,null,null,null,null,0,null,0,0,{"$f":"SUM(D43:AA43)","v":50}]
["34º","PATRICK PAULUK",85,0,null,0,0,5,null,40,null,0,null,0,0,0,null,0,0,null,null,null,null,0,null,0,0,45]
["35º","CLEBERSON MENDES",2,0,null,0,0,5,null,35,null,0,null,0,0,0,null,0,0,null,null,null,null,0,null,0,0,40]
["36º","LEANDRO SILVEIRA",444,0,null,0,0,5,null,30,null,0,null,0,0,0,null,0,0,null,null,null,null,0,null,0,0,35]
["37º","ALEXANDRE SCORÇATO",20,5,null,25,0,0,null,0,null,0,null,0,0,0,null,0,0,null,null,null,null,0,null,0,0,30]
["38º","ANTONIO MACEDO NETO",185,0,null,0,0,5,null,25,null,0,null,0,0,0,null,0,0,null,null,null,null,0,null,0,0,30]
["39º","MARCIO CORTES",859,0,null,0,0,0,null,0,null,0,null,0,0,5,null,25,0,null,null,null,null,0,null,0,0,30]
["40º","CLAUDIO PROGETTI",100,0,null,0,0,0,null,0,null,5,null,20,0,0,null,0,0,null,null,null,null,0,null,0,0,25]
["41º",null,null,null,null,null,null,null,null,null,null,null,null,null,null,null,null,null,null,null,null,null,null,null,null,null,null,0]
["42º",null,null,null,null,null,null,null,null,null,null,null,null,null,null,null,null,null,null,null,null,null,null,null,null,null,null,0]
["43º",null,null,null,null,null,null,null,null,null,null,null,null,null,null,null,null,null,null,null,null,null,null,null,null,null,null,0]
["44º",null,null,null,null,null,null,null,null,null,null,null,null,null,null,null,null,null,null,null,null,null,null,null,null,null,null,0]
["45º",null,null,null,null,null,null,null,null,null,null,null,null,null,null,null,null,null,null,null,null,null,null,null,null,null,null,0]
["46º",null,null,null,null,null,null,null,null,null,null,null,null,null,null,null,null,null,null,null,null,null,null,null,null,null,null,0]
["47º",null,null,null,null,null,null,null,null,null,null,null,null,null,null,null,null,null,null,null,null,null,null,null,null,null,null,0]
["48º",null,null,null,null,null,null,null,null,null,null,null,null,null,null,null,null,null,null,null,null,null,null,null,null,null,null,0]
["49º",null,null,null,null,null,null,null,null,null,null,null,null,null,null,null,null,null,null,null,null,null,null,null,null,null,null,0]
["50º",null,null,null,null,null,null,null,null,null,null,null,null,null,null,null,null,null,null,null,null,null,null,null,null,null,null,0]
["51º",null,null,null,null,null,null,null,null,null,null,null,null,null,null,null,null,null,null,null,null,null,null,null,null,null,null,0]
["52º",null,null,null,null,null,null,null,null,null,null,null,null,null,null,null,null,null,null,null,null,null,null,null,null,null,null,0]
["53º",null,null,null,null,null,null,null,null,null,null,null,null,null,null,null,null,null,null,null,null,null,null,null,null,null,null,0]
["54º",null,null,null,null,null,null,null,null,null,null,null,null,null,null,null,null,null,null,null,null,null,null,null,null,null,null,0]
["55º",null,null,null,null,null,null,null,null,null,null,null,null,null,null,null,null,null,null,null,null,null,null,null,null,null,null,0]
["56º",null,null,null,null,null,null,null,null,null,null,null,null,null,null,null,null,null,null,null,null,null,null,null,null,null,null,0]
["57º",null,null,null,null,null,null,null,null,null,null,null,null,null,null,null,null,null,null,null,null,null,null,null,null,null,null,0]
["58º",null,null,null,null,null,null,null,null,null,null,null,null,null,null,null,null,null,null,null,null,null,null,null,null,null,null,0]
["59º",null,null,null,null,null,null,null,null,null,null,null,null,null,null,null,null,null,null,null,null,null,null,null,null,null,null,0]
["60º",null,null,null,null,null,null,null,null,null,null,null,null,null,null,null,null,null,null,null,null,null,null,null,null,null,null,0]
["61º",null,null,null,null,null,null,null,null,null,null,null,null,null,null,null,null,null,null,null,null,null,null,null,null,null,null,0]
["62º",null,null,null,null,null,null,null,null,null,null,null,null,null,null,null,null,null,null,null,null,null,null,null,null,null,null,0]
["63º",null,null,null,null,null,null,null,null,null,null,null,null,null,null,null,null,null,null,null,null,null,null,null,null,null,null,0]
["64º",null,null,null,null,null,null,null,null,null,null,null,null,null,null,null,null,null,null,null,null,null,null,null,null,null,null,0]
["65º",null,null,null,null,null,null,null,null,null,null,null,null,null,null,null,null,null,null,null,null,null,null,null,null,null,null,{"$f":"SUM(D75:AA75)","v":0}]
["66º",null,null,null,null,null,null,null,null,null,null,null,null,null,null,null,null,null,null,null,null,null,null,null,null,null,null,0]
["67º",null,null,null,null,null,null,null,null,null,null,null,null,null,null,null,null,null,null,null,null,null,null,null,null,null,null,0]
["68º",null,null,null,null,null,null,null,null,null,null,null,null,null,null,null,null,null,null,null,null,null,null,null,null,null,null,0]
["69º",null,null,null,null,null,null,null,null,null,null,null,null,null,null,null,null,null,null,null,null,null,null,null,null,null,null,0]
["70º",null,null,null,null,null,null,null,null,null,null,null,null,null,null,null,null,null,null,null,null,null,null,null,null,null,null,0]
["71º",null,null,null,null,null,null,null,null,null,null,null,null,null,null,null,null,null,null,null,null,null,null,null,null,null,null,0]
["72º",null,null,null,null,null,null,null,null,null,null,null,null,null,null,null,null,null,null,null,null,null,null,null,null,null,null,0]
["73º",null,null,null,null,null,null,null,null,null,null,null,null,null,null,null,null,null,null,null,null,null,null,null,null,null,null,0]
["74º",null,null,null,null,null,null,null,null,null,null,null,null,null,null,null,null,null,null,null,null,null,null,null,null,null,null,0]
["75º",null,null,null,null,null,null,null,null,null,null,null,null,null,null,null,null,null,null,null,null,null,null,null,null,null,null,0]
["76º",null,null,null,null,null,null,null,null,null,null,null,null,null,null,null,null,null,null,null,null,null,null,null,null,null,null,0]
["77º",null,null,null,null,null,null,null,null,null,null,null,null,null,null,null,null,null,null,null,null,null,null,null,null,null,null,0]
["78º",null,null,null,null,null,null,null,null,null,null,null,null,null,null,null,null,null,null,null,null,null,null,null,null,null,null,0]
["79º",null,null,null,null,null,null,null,null,null,null,null,null,null,null,null,null,null,null,null,null,null,null,null,null,null,null,0]
["80º",null,null,null,null,null,null,null,null,null,null,null,null,null,null,null,null,null,null,null,null,null,null,null,null,null,null,0]
["81º",null,null,null,null,null,null,null,null,null,null,null,null,null,null,null,null,null,null,null,null,null,null,null,null,null,null,0]
["82º",null,null,null,null,null,null,null,null,null,null,null,null,null,null,null,null,null,null,null,null,null,null,null,null,null,null,0]
["83º",null,null,null,null,null,null,null,null,null,null,null,null,null,null,null,null,null,null,null,null,null,null,null,null,null,null,0]
["84º",null,null,null,null,null,null,null,null,null,null,null,null,null,null,null,null,null,null,null,null,null,null,null,null,null,null,0]
["85º",null,null,null,null,null,null,null,null,null,null,null,null,null,null,null,null,null,null,null,null,null,null,null,null,null,null,0]
["86º",null,null,null,null,null,null,null,null,null,null,null,null,null,null,null,null,null,null,null,null,null,null,null,null,null,null,0]
["87º",null,null,null,null,null,null,null,null,null,null,null,null,null,null,null,null,null,null,null,null,null,null,null,null,null,null,0]
["88º",null,null,null,null,null,null,null,null,null,null,null,null,null,null,null,null,null,null,null,null,null,null,null,null,null,null,0]
["89º",null,null,null,null,null,null,null,null,null,null,null,null,null,null,null,null,null,null,null,null,null,null,null,null,null,null,0]
["90º",null,null,null,null,null,null,null,null,null,null,null,null,null,null,null,null,null,null,null,null,null,null,null,null,null,null,0]
[]
[null,"LEGENDA"]
[null,"BONIFICAÇÃO POR ETAPA PARTICIPADA"]
[null,"PARTICIPOU DE 1 ETAPA=",null,5]
[null,"PARTICIPOU DE 2 ETAPAS=",null,"1X+10"]
[null,"PARTICIPOU DE 3 ETAPAS=",null,"2X+15"]
[null,"PARTICIPOU DE 4 ETAPAS=",null,"3X+25"]
[null,"PARTICIPOU DE 5 ETAPAS",null,"4X+40"]
[null,"PARTICIPOU DE 6 ETAPAS=",null,"5X+50"]
[null,"BONUS RECORD",null,20]
[null,"PROVA EM BRANCO",null,"NÃO TEVE ELIMINATORIAS"]

{"sheet":"DTB","index":4,"n_rows":112,"n_cols":28,"rows_kept":112,"cut":false,"hidden":false,"merged":[[7,11,7,12],[7,13,7,14],[4,11,4,14],[7,25,7,26],[7,15,7,16],[7,17,7,18],[7,19,7,20],[7,21,7,22],[7,23,7,24],[8,0,8,1],[6,7,6,10],[5,7,5,10],[4,7,4,10],[7,3,7,4],[7,5,7,6],[7,7,7,8],[7,9,7,10],[0,2,0,26],[1,2,1,26],[4,15,4,18],[6,15,6,18],[5,15,5,18],[6,3,6,6],[5,3,5,6],[4,3,4,6],[6,23,6,26],[5,23,5,26],[4,23,4,26],[6,19,6,22],[5,19,5,22],[4,19,4,22],[6,11,6,14],[5,11,5,14],[103,1,103,7],[104,1,104,2],[105,1,105,2],[106,1,106,2],[107,1,107,2],[108,1,108,2],[109,1,109,2],[110,1,110,2],[111,1,111,2],[111,3,111,7]]}
[]
[null,null,"CLASSIFICAÇÃO OFICIAL DO CAMPEONATO BRASILEIRO 2013 DE ARRANCADA 402 M. "]
[]
[]
[null,null,"Evento","1º",null,null,null,"2º",null,null,null,"3º",null,null,null,"4º",null,null,null,"5º",null,null,null,"6º"]
[null,null,"Local","VELOPARK",null,null,null,"Curitiba",null,null,null,"VELOPARK",null,null,null,"VELOPARK",null,null,null,null,null,null,null,"VELOPARK"]
[null,null,"Data","15 a17/03",null,null,null,"03 a 05/05/2013",null,null,null,"16 a 18/08/2013",null,null,null,"27 a 29/09/2013",null,null,null,null,null,null,null,"17/11"]
[]
["DIANTEIRA TURBO B DTB",null,null,"bonus","bonus","bonus",null,"bonus","bonus","bonus",null,"bonus","bonus","bonus",null,"bonus","bonus","bonus",null,"bonus","bonus","bonus",null,"bonus","bonus","bonus"]
["POS","PILOTO","Nº","partic.","record","classif.","Prova","partic.","record","classif.","Prova","partic.","record","classif.","Prova","partic.","record","classif.","Prova","partic.","record","classif.","Prova","partic.","record","classif.","Prova","TOTAL"]
["1º","VILSON FERREIRA",231,"X",null,80,100,"X",20,50,null,"X",null,75,60,"X",null,75,20,null,null,null,null,50,null,120,160,{"$f":"SUM(D11:AA11)","v":810}]
["2º","THIAGO VASCONCELOS",712,"X",20,75,60,"X",null,45,null,"X",null,50,40,"X",null,70,80,null,null,null,null,50,null,80,80,650]
["3º","WLADMIR CARRANZA",284,"X",null,55,80,"X",null,60,null,"X",null,80,40,"X",null,25,0,null,null,null,null,50,null,130,40,560]
["4º","CHARLES USCOCOVICH",34,"X",null,60,60,"X",null,35,null,0,null,0,0,"X",null,80,60,null,null,null,null,40,null,40,80,455]
["5º","JOACIR CORDOVA",2009,0,null,0,0,0,null,0,null,"X",null,0,0,"X",null,60,20,null,null,null,null,25,null,140,200,445]
["6º","ALEXANDRE H SILVA",901,0,null,0,0,0,null,0,null,0,null,0,0,"X",null,50,60,null,null,null,null,15,null,160,120,405]
["7º","LEANDRO BETINI",333,"X",null,0,0,0,null,0,null,"X",null,0,0,0,null,0,0,null,null,null,null,25,null,150,120,295]
["8º","EVANDRO REIS OLIVEIRA ",272,"x",null,65,40,0,null,0,null,10,null,70,100,0,null,0,0,null,null,null,null,0,null,0,0,285]
["9º","ALEXANDRE C. VASCONCELOS",258,"X",null,70,40,"X",null,0,null,0,null,0,0,0,null,0,0,null,null,null,null,25,null,90,40,265]
["10º","CARLOS NASCIMENTO",229,0,null,0,0,0,null,0,null,"X",null,0,0,"X",null,20,20,null,null,null,null,25,null,110,80,255]
["11º","MARCOS PAQUALINI",28,0,null,0,0,0,null,0,null,"X",null,30,40,"X",null,45,20,null,null,null,null,25,null,50,40,250]
["12º","THIAGO DA FONTE",998,0,null,0,0,0,null,0,null,"X",null,20,20,10,null,65,100,null,null,null,null,0,null,0,0,215]
["13º","FERNANDO SEVEGNANI",901,"X",null,0,0,0,null,0,null,"X",null,0,0,0,null,0,0,null,null,null,null,25,null,100,80,205]
["14º","RAFAEL FITIPALDI",1,"X",null,0,0,"X",null,0,null,0,null,0,0,"X",null,35,20,null,null,null,null,40,null,70,40,205]
["15º","IBERE SILVEIRA",473,"X",null,45,40,0,null,0,null,10,null,60,40,0,null,0,0,null,null,null,null,0,null,0,0,195]
["16º","JOSE ZARBIELLI",66,"X",null,0,0,"X",null,65,null,"X",null,0,0,"X",null,0,0,null,null,null,null,50,null,30,40,185]
["17º","KLEBER SILVA",431,"X",null,10,0,0,null,0,null,"X",null,65,40,"X",null,5,20,null,null,null,null,40,null,0,0,180]
["18º","FABIO COSTA",51,"X",null,40,0,"X",null,80,null,"X",null,0,0,25,null,0,0,null,null,null,null,0,null,0,0,145]
["19º","JAVIER MENDOZA ",286,"X",null,15,20,"X",null,25,null,0,null,0,0,"X",null,15,20,null,null,null,null,40,null,0,0,135]
["20º","FABIO FROZA",88,0,null,0,0,0,null,0,null,0,null,0,0,0,null,0,0,null,null,null,null,5,null,60,40,105]
["21º","ANDRÉ M AGUIAR",185,0,null,0,0,0,null,0,null,"X",null,5,20,"X",null,30,20,null,null,null,null,25,null,0,0,100]
["22º","ADALBERTO JAHN",27,0,null,0,0,"X",null,75,null,0,null,0,0,0,null,0,0,null,null,null,null,15,null,0,0,90]
["23º","ADRIANO PRADO",3,0,null,0,0,0,null,0,null,0,null,0,0,"X",null,55,20,null,null,null,null,15,null,0,0,90]
["24º","RICARDO TOTTI",5,"X",null,0,0,0,null,0,null,"X",null,0,0,"X",null,0,0,null,null,null,null,40,null,50,0,90]
["25º","CAMILA BRANDÃO ",29,"X",null,0,0,0,null,0,null,10,null,55,20,0,null,0,0,null,null,null,null,0,null,0,0,85]
["26º","CRISTIAN GIRARDELLO",413,"X",null,0,0,0,null,0,null,"X",null,35,20,0,null,0,0,null,null,null,null,25,null,0,0,80]
["27º","LUCIANO AGOTTANI",32,0,null,0,0,0,null,0,null,"X",null,45,20,10,null,0,0,null,null,null,null,0,null,0,0,75]
["28º","RONI MENDOÇA",285,0,null,0,0,5,null,70,null,0,null,0,0,0,null,0,0,null,null,null,null,0,null,0,0,75]
["29º","MATHEUS TOMBESI",21,0,null,0,0,0,null,0,null,"X",null,0,0,10,null,40,20,null,null,null,null,0,null,0,0,70]
["30º","ALVARO LUIS CASTRO",46,"X",null,35,20,10,null,0,null,0,null,0,0,0,null,0,0,null,null,null,null,0,null,0,0,65]
["31º","EVERSON BIASIO",732,"X",null,5,20,0,null,0,null,"X",null,0,0,"X",null,0,0,null,null,null,null,40,null,0,0,65]
["32º","FABIANO POLLIS",5,0,null,0,0,0,null,0,null,0,null,0,0,0,null,0,0,null,null,null,null,5,null,60,0,65]
["33º","ADRIANO CORDEIRO",18,0,null,0,0,5,null,55,null,0,null,0,0,0,null,0,0,null,null,null,null,0,null,0,0,{"$f":"SUM(D43:AA43)","v":60}]
["34º","GUSTAVO LUNA SANTOS",277,"X",null,25,20,0,null,0,null,"X",null,0,0,15,null,0,0,null,null,null,null,0,null,0,0,60]
["35º","CAIO TAVARES",1431,5,null,50,0,0,null,0,null,0,null,0,0,0,null,0,0,null,null,null,null,0,null,0,0,55]
["36º","DIEGO TRINTINAGLIA",6800,0,null,0,0,0,null,0,null,"X",null,0,0,"X",null,10,20,null,null,null,null,25,null,0,0,55]
["37º","EDSON O. MACHADO ",33,"X",null,0,0,10,null,40,null,0,null,0,0,0,null,0,0,null,null,null,null,0,null,0,0,50]
["38º","GUSTAVO BORK",299,0,null,0,0,0,null,0,null,5,null,25,20,0,null,0,0,null,null,null,null,0,null,0,0,50]
["39º","MARCEL FALATO",4,0,null,0,0,0,null,0,null,5,null,40,0,0,null,0,0,null,null,null,null,0,null,0,0,45]
["40º","RICARDO ARGENTA",222,5,null,20,20,0,null,0,null,0,null,0,0,0,null,0,0,null,null,null,null,0,null,0,0,45]
["41º","CELSO BUNILHA",582,"X",null,0,0,10,null,30,null,0,null,0,0,0,null,0,0,null,null,null,null,0,null,0,0,40]
["42º","ULISSES SOARES",1304,0,null,0,0,0,null,0,null,5,null,10,20,0,null,0,0,null,null,null,null,0,null,0,0,35]
["43º","WILLIAM TARABAIN",200,5,null,30,0,0,null,0,null,0,null,0,0,0,null,0,0,null,null,null,null,0,null,0,0,35]
["44º","CARLOS MARCOLAN",470,0,null,0,0,0,null,0,null,"X",null,0,0,"X",null,0,0,null,null,null,null,25,null,0,0,25]
["45º","CARLOS MOREIRA",26,0,null,0,0,5,null,20,null,0,null,0,0,0,null,0,0,null,null,null,null,0,null,0,0,25]
["46º","FERNANDO SEMENIUK",12,0,null,0,0,0,null,0,null,"X",null,0,0,"X",null,0,0,null,null,null,null,25,null,0,0,25]
["47º","FERNANDO YAMANAKA",961,"X",null,0,0,0,null,0,null,"X",null,0,0,0,null,0,0,null,null,null,null,25,null,0,0,25]
["48º","JOSÉ BARCELOS NETO",3331,"X",null,0,0,0,null,0,null,"X",null,0,0,0,null,0,0,null,null,null,null,25,null,0,0,25]
["49º","RANIER SESTREN ",81,"X",null,0,0,10,null,15,null,0,null,0,0,0,null,0,0,null,null,null,null,0,null,0,0,25]
["50º","CARLOS RODRIGUES",26,0,null,0,0,0,null,0,null,5,null,15,0,0,null,0,0,null,null,null,null,0,null,0,0,20]
["51º","ALCENIR FERNANDES",446,"X",null,0,0,"X",null,0,null,15,null,0,0,0,null,0,0,null,null,null,null,0,null,0,0,15]
["52º","DIOGO STOLTZ",915,0,null,0,0,5,null,10,null,0,null,0,0,0,null,0,0,null,null,null,null,0,null,0,0,15]
["53º","JOÃO CHUDZY",312,"X",null,0,0,0,null,0,null,0,null,0,0,0,null,0,0,null,null,null,null,15,null,0,0,15]
["54º","LEANDRO CARDOSO",99,0,null,0,0,0,null,0,null,"X",null,0,0,0,null,0,0,null,null,null,null,15,null,0,0,15]
["55º","ALESSANDRO WEISS",334,"X",null,0,0,10,null,0,null,0,null,0,0,0,null,0,0,null,null,null,null,0,null,0,0,10]
["56º","CARLOS CORREA SILVA",237,"X",null,0,0,0,null,0,null,10,null,0,0,0,null,0,0,null,null,null,null,0,null,0,0,10]
["57º","CLEBER CEMIN",30,"X",null,0,0,0,null,0,null,10,null,0,0,0,null,0,0,null,null,null,null,0,null,0,0,10]
["58º","GABRIEL PEREIRA",192,0,null,0,0,0,null,0,null,"X",null,0,0,10,null,0,0,null,null,null,null,0,null,0,0,10]
["59º","KAYO FERNANDES",99,0,null,0,0,"X",null,0,null,10,null,0,0,0,null,0,0,null,null,null,null,0,null,0,0,10]
["60º","LUIZ SOUZA",472,0,null,0,0,"X",null,0,null,10,null,0,0,0,null,0,0,null,null,null,null,0,null,0,0,10]
["61º","MARIO MARTINO",321,0,null,0,0,5,null,5,null,0,null,0,0,0,null,0,0,null,null,null,null,0,null,0,0,10]
["62º","PAULO SERGIO SOUZA",1975,"X",null,0,0,10,null,0,null,0,null,0,0,0,null,0,0,null,null,null,null,0,null,0,0,10]
["63º","VANIEL MARIN",282,0,null,0,0,0,null,0,null,"X",null,0,0,10,null,0,0,null,null,null,null,0,null,0,0,10]
["64º","VINICIOS PARTEKA",1402,"X",null,0,0,10,null,0,null,0,null,0,0,0,null,0,0,null,null,null,null,0,null,0,0,10]
["65º","ABES ELIAS",1983,0,null,0,0,0,null,0,null,5,null,0,0,0,null,0,0,null,null,null,null,0,null,0,0,{"$f":"SUM(D75:AA75)","v":5}]
["66º","ALISSON SILVA",102,0,null,0,0,0,null,0,null,5,null,0,0,0,null,0,0,null,null,null,null,0,null,0,0,5]
["67º","ANDRÉ GUEIROS",36,0,null,0,0,0,null,0,null,5,null,0,0,0,null,0,0,null,null,null,null,0,null,0,0,5]
["68º","ANGELO GOBBO",459,0,null,0,0,0,null,0,null,5,null,0,0,0,null,0,0,null,null,null,null,0,null,0,0,5]
["69º","CARLOS BRANCO SILVA",10,0,null,0,0,5,null,0,null,0,null,0,0,0,null,0,0,null,null,null,null,0,null,0,0,5]
["70º","CLAUDIONEI OLIVEIRA",306,5,null,0,0,0,null,0,null,0,null,0,0,0,null,0,0,null,null,null,null,0,null,0,0,5]
["71º","DANIEL SUSEJ",3003,5,null,0,0,0,null,0,null,0,null,0,0,0,null,0,0,null,null,null,null,0,null,0,0,5]
["72º","DANILO RODRIGUES",420,0,null,0,0,0,null,0,null,5,null,0,0,0,null,0,0,null,null,null,null,0,null,0,0,5]
["73º","DIEGO GARCIA ",1005,5,null,0,0,0,null,0,null,0,null,0,0,0,null,0,0,null,null,null,null,0,null,0,0,5]
["74º","ELSIO RODRIGUES",75,0,null,0,0,5,null,0,null,0,null,0,0,0,null,0,0,null,null,null,null,0,null,0,0,5]
["75º","EVERSON MEZZADRI",809,0,null,0,0,5,null,0,null,0,null,0,0,0,null,0,0,null,null,null,null,0,null,0,0,5]
["76º","FLAVIO ZABINI",85,0,null,0,0,5,null,0,null,0,null,0,0,0,null,0,0,null,null,null,null,0,null,0,0,5]
["77º","FRANCISCO SANCHES",95,0,null,0,0,0,null,0,null,5,null,0,0,0,null,0,0,null,null,null,null,0,null,0,0,5]
["78º","JAIRO BORGES",805,0,null,0,0,5,null,0,null,0,null,0,0,0,null,0,0,null,null,null,null,0,null,0,0,5]
["79º","JOSE DOLATTO",337,5,null,0,0,0,null,0,null,0,null,0,0,0,null,0,0,null,null,null,null,0,null,0,0,5]
["80º","LEONARDO SCOLIN",158,0,null,0,0,5,null,0,null,0,null,0,0,0,null,0,0,null,null,null,null,0,null,0,0,5]
["81º","MAICON CANESIN S.",285,5,null,0,0,0,null,0,null,0,null,0,0,0,null,0,0,null,null,null,null,0,null,0,0,5]
["82º","MARCEL FERREIRA",708,0,null,0,0,0,null,0,null,5,null,0,0,0,null,0,0,null,null,null,null,0,null,0,0,5]
["83º","MARCELO BERNARDES",376,5,null,0,0,0,null,0,null,0,null,0,0,0,null,0,0,null,null,null,null,0,null,0,0,5]
["84º","PAULO PETROV",1,0,null,0,0,0,null,0,null,5,null,0,0,0,null,0,0,null,null,null,null,0,null,0,0,5]
["85º","RENAN HIRT",157,0,null,0,0,5,null,0,null,0,null,0,0,0,null,0,0,null,null,null,null,0,null,0,0,5]
["86º","RICARDO BAPTISTA",40,0,null,0,0,5,null,0,null,0,null,0,0,0,null,0,0,null,null,null,null,0,null,0,0,5]
["87º","RODRIGO MAZUCO",511,0,null,0,0,0,null,0,null,5,null,0,0,0,null,0,0,null,null,null,null,0,null,0,0,5]
["88º","ROMULO O. BRAGA",45,5,null,0,0,0,null,0,null,0,null,0,0,0,null,0,0,null,null,null,null,0,null,0,0,5]
["89º","SALOMAO BITENCOURT",35,0,null,0,0,0,null,0,null,5,null,0,0,0,null,0,0,null,null,null,null,0,null,0,0,5]
["90º","SERGIO ZIMMER",35,0,null,0,0,5,null,0,null,0,null,0,0,0,null,0,0,null,null,null,null,0,null,0,0,5]
[]
[]
[null,"LEGENDA"]
[null,"BONIFICAÇÃO POR ETAPA PARTICIPADA"]
[null,"PARTICIPOU DE 1 ETAPA=",null,5]
[null,"PARTICIPOU DE 2 ETAPAS=",null,"1X+10"]
[null,"PARTICIPOU DE 3 ETAPAS=",null,"2X+15"]
[null,"PARTICIPOU DE 4 ETAPAS=",null,"3X+25"]
[null,"PARTICIPOU DE 5 ETAPAS",null,"4X+40"]
[null,"PARTICIPOU DE 6 ETAPAS=",null,"5X+50"]
[null,"BONUS RECORD",null,20]
[null,"PROVA EM BRANCO",null,"NÃO TEVE ELIMINATORIAS"]

{"sheet":"DTA","index":5,"n_rows":111,"n_cols":28,"rows_kept":111,"cut":false,"hidden":false,"merged":[[7,19,7,20],[7,21,7,22],[7,23,7,24],[7,25,7,26],[0,2,0,26],[1,2,1,26],[4,15,4,18],[6,15,6,18],[5,15,5,18],[6,3,6,6],[5,3,5,6],[4,3,4,6],[6,23,6,26],[5,23,5,26],[4,23,4,26],[6,19,6,22],[5,19,5,22],[8,0,8,1],[4,19,4,22],[6,11,6,14],[5,11,5,14],[4,11,4,14],[6,7,6,10],[5,7,5,10],[4,7,4,10],[7,3,7,4],[7,5,7,6],[7,7,7,8],[7,9,7,10],[7,11,7,12],[7,13,7,14],[7,15,7,16],[7,17,7,18],[102,1,102,7],[103,1,103,2],[104,1,104,2],[105,1,105,2]]}
[]
[null,null,"CLASSIFICAÇÃO OFICIAL DO CAMPEONATO BRASILEIRO 2013 DE ARRANCADA 402 M. "]
[]
[]
[null,null,"Evento","1º",null,null,null,"2º",null,null,null,"3º",null,null,null,"4º",null,null,null,"5º",null,null,null,"6º"]
[null,null,"Local","VELOPARK ",null,null,null,"Curitiba",null,null,null,"VELOPARK",null,null,null,"VELOPARK",null,null,null,null,null,null,null,"VELOPARK"]
[null,null,"Data","15 a 17/03",null,null,null,"03 a 05/05/2013",null,null,null,"16 a 18/08/2013",null,null,null,"27 a 29/09/2013",null,null,null,null,null,null,null,"17/11"]
[]
["DIANTEIRA TURBO A DTA",null,null,"bonus","bonus","bonus",null,"bonus","bonus","bonus",null,"bonus","bonus","bonus",null,"bonus","bonus","bonus",null,"bonus","bonus","bonus",null,"bonus","bonus","bonus"]
["POS","PILOTO","Nº","partic.","record","classif.","Prova","partic.","record","classif.","Prova","partic.","record","classif.","Prova","partic.","record","classif.","Prova","partic.","record","classif.","Prova","partic.","record","classif.","Prova","TOTAL"]
["1º","VALMOR MENEGATTI",5,"X",null,5,20,"X",null,80,null,"X",null,65,100,"X",null,60,40,null,null,null,null,50,null,160,160,{"$f":"SUM(D11:AA11)","v":740}]
["2º","RENATO BRIZOLARI",330,"X",null,25,0,0,null,0,null,"X",null,35,40,"X",null,75,60,null,null,null,null,40,null,150,200,625]
["3º","LEANDRO CASTILHOS ",778,"X",null,30,40,0,null,0,null,"X",null,80,0,"X",null,70,100,null,null,null,null,40,null,140,80,580]
["4º","PAULO E. S. RAMOS",222,"X",null,75,20,0,null,0,null,"X",null,70,40,"X",null,40,60,null,null,null,null,40,null,110,120,575]
["5º","ADRIANO SALTON",31,"X",20,80,40,0,null,0,null,"X",null,55,20,"X",null,20,80,null,null,null,null,40,null,120,80,555]
["6º","ALEX MORETON",229,"X",null,65,60,0,null,0,null,"X",null,60,40,"X",null,65,0,null,null,null,null,40,null,130,0,460]
["7º","MARCELO PREZOTO",316,"X",null,60,40,"X",null,75,null,"X",null,75,40,"X",null,15,0,null,null,null,null,50,null,30,40,425]
["8º","CARLOS L. CASTILHOS",7878,"X",null,70,60,0,null,0,null,"X",20,30,60,"X",null,80,40,null,null,null,null,40,null,20,0,420]
["9º","ALEXANDRE MIZUKAMI",2266,"X",null,35,100,0,null,0,null,"X",null,25,0,"X",null,50,20,null,null,null,null,40,null,100,0,370]
["10º","JONATAS TRESSINO",333,"X",null,40,80,0,null,0,null,"X",null,50,20,0,null,0,0,null,null,null,null,25,null,60,40,315]
["11º","EVERTON CARVALHO",171,"X",null,20,20,0,null,0,null,0,null,0,0,"X",null,45,20,null,null,null,null,25,null,90,80,300]
["12º","FELIPE ZARANZA",50,"X",null,55,20,0,null,0,null,0,null,0,0,"X",null,25,0,null,null,null,null,25,null,40,80,245]
["13º","ANDRÉ SCHIAVON",5,0,null,0,0,0,null,0,null,"X",null,45,20,"X",null,55,20,null,null,null,null,25,null,70,0,235]
["14º","JULIO MENDES",22,0,null,0,0,0,null,0,null,0,null,0,0,"X",null,30,20,null,null,null,null,15,null,80,80,225]
["15º","MARCELO MATUKIWA",44,"X",null,50,0,0,null,0,null,"X",null,15,0,0,null,0,0,null,null,null,null,25,null,50,0,140]
["16º","ADEMAR DAGOSTINI",38,0,null,0,0,0,null,0,null,5,null,40,60,0,null,0,0,null,null,null,null,0,null,0,0,105]
["17º","ROGERIO BERTELLI",2232,0,null,0,0,0,null,0,null,0,null,0,0,5,null,35,40,null,null,null,null,0,null,0,0,80]
["18º","ANDERSON RAMOS",15,0,null,0,0,5,null,70,null,0,null,0,0,0,null,0,0,null,null,null,null,0,null,0,0,75]
["19º","GUSTAVO GUIMARAES",285,0,null,0,0,5,null,65,null,0,null,0,0,0,null,0,0,null,null,null,null,0,null,0,0,70]
["20º","VILSON FERREIRA",51,0,null,0,0,5,null,60,null,0,null,0,0,0,null,0,0,null,null,null,null,0,null,0,0,65]
["21º","WILLIAM PINHEIRO",818,5,null,0,0,5,null,55,null,0,null,0,0,0,null,0,0,null,null,null,null,0,null,0,0,65]
["22º","ANDERSON BORRE",88,"X",null,0,0,10,null,50,null,0,null,0,0,0,null,0,0,null,null,null,null,0,null,0,0,60]
["23º","WILBER VALENTE",288,5,null,10,40,0,null,0,null,0,null,0,0,0,null,0,0,null,null,null,null,0,null,0,0,55]
["24º","RODRIGO S DO VALE",500,5,null,45,0,0,null,0,null,0,null,0,0,0,null,0,0,null,null,null,null,0,null,0,0,50]
["25º","ALESSANDRO BARRANCO",26,0,null,0,0,0,null,0,null,5,null,20,0,0,null,0,0,null,null,null,null,0,null,0,0,25]
["26º","RICARDO BORBA","115","X",null,0,0,0,null,0,null,0,null,0,0,0,null,0,0,null,null,null,null,15,null,10,0,25]
["27º","RODRIGO SEBBEN",237,5,null,15,0,0,null,0,null,0,null,0,0,0,null,0,0,null,null,null,null,0,null,0,0,20]
["28º","ELEMER NAGI",1012,0,null,0,0,0,null,0,null,5,null,10,0,0,null,0,0,null,null,null,null,0,null,0,0,15]
["29º","LUCIANO NICHETTI",711,0,null,0,0,0,null,0,null,5,null,5,0,0,null,0,0,null,null,null,null,0,null,0,0,10]
["30º","DENNIS F. GODOI",471,5,null,0,0,0,null,0,null,0,null,0,0,0,null,0,0,null,null,null,null,0,null,0,0,5]
["31º","EDERSON SCHIMIDT",16,5,null,0,0,0,null,0,null,0,null,0,0,0,null,0,0,null,null,null,null,0,null,0,0,5]
["32º","LEONARDO GARCIA",998,5,null,0,0,0,null,0,null,0,null,0,0,0,null,0,0,null,null,null,null,0,null,0,0,5]
["33º","SANDRO SOUZA",251,5,null,0,0,0,null,0,null,0,null,0,0,0,null,0,0,null,null,null,null,0,null,0,0,{"$f":"SUM(D43:AA43)","v":5}]
["34º",null,null,null,null,null,null,null,null,null,null,null,null,null,null,null,null,null,null,null,null,null,null,null,null,null,null,0]
["35º",null,null,null,null,null,null,null,null,null,null,null,null,null,null,null,null,null,null,null,null,null,null,null,null,null,null,0]
["36º",null,null,null,null,null,null,null,null,null,null,null,null,null,null,null,null,null,null,null,null,null,null,null,null,null,null,0]
["37º",null,null,null,null,null,null,null,null,null,null,null,null,null,null,null,null,null,null,null,null,null,null,null,null,null,null,0]
["38º",null,null,null,null,null,null,null,null,null,null,null,null,null,null,null,null,null,null,null,null,null,null,null,null,null,null,0]
["39º",null,null,null,null,null,null,null,null,null,null,null,null,null,null,null,null,null,null,null,null,null,null,null,null,null,null,0]
["40º",null,null,null,null,null,null,null,null,null,null,null,null,null,null,null,null,null,null,null,null,null,null,null,null,null,null,0]
["41º",null,null,null,null,null,null,null,null,null,null,null,null,null,null,null,null,null,null,null,null,null,null,null,null,null,null,0]
["42º",null,null,null,null,null,null,null,null,null,null,null,null,null,null,null,null,null,null,null,null,null,null,null,null,null,null,0]
["43º",null,null,null,null,null,null,null,null,null,null,null,null,null,null,null,null,null,null,null,null,null,null,null,null,null,null,0]
["44º",null,null,null,null,null,null,null,null,null,null,null,null,null,null,null,null,null,null,null,null,null,null,null,null,null,null,0]
["45º",null,null,null,null,null,null,null,null,null,null,null,null,null,null,null,null,null,null,null,null,null,null,null,null,null,null,0]
["46º",null,null,null,null,null,null,null,null,null,null,null,null,null,null,null,null,null,null,null,null,null,null,null,null,null,null,0]
["47º",null,null,null,null,null,null,null,null,null,null,null,null,null,null,null,null,null,null,null,null,null,null,null,null,null,null,0]
["48º",null,null,null,null,null,null,null,null,null,null,null,null,null,null,null,null,null,null,null,null,null,null,null,null,null,null,0]
["49º",null,null,null,null,null,null,null,null,null,null,null,null,null,null,null,null,null,null,null,null,null,null,null,null,null,null,0]
["50º",null,null,null,null,null,null,null,null,null,null,null,null,null,null,null,null,null,null,null,null,null,null,null,null,null,null,0]
["51º",null,null,null,null,null,null,null,null,null,null,null,null,null,null,null,null,null,null,null,null,null,null,null,null,null,null,0]
["52º",null,null,null,null,null,null,null,null,null,null,null,null,null,null,null,null,null,null,null,null,null,null,null,null,null,null,0]
["53º",null,null,null,null,null,null,null,null,null,null,null,null,null,null,null,null,null,null,null,null,null,null,null,null,null,null,0]
["54º",null,null,null,null,null,null,null,null,null,null,null,null,null,null,null,null,null,null,null,null,null,null,null,null,null,null,0]
["55º",null,null,null,null,null,null,null,null,null,null,null,null,null,null,null,null,null,null,null,null,null,null,null,null,null,null,0]
["56º",null,null,null,null,null,null,null,null,null,null,null,null,null,null,null,null,null,null,null,null,null,null,null,null,null,null,0]
["57º",null,null,null,null,null,null,null,null,null,null,null,null,null,null,null,null,null,null,null,null,null,null,null,null,null,null,0]
["58º",null,null,null,null,null,null,null,null,null,null,null,null,null,null,null,null,null,null,null,null,null,null,null,null,null,null,0]
["59º",null,null,null,null,null,null,null,null,null,null,null,null,null,null,null,null,null,null,null,null,null,null,null,null,null,null,0]
["60º",null,null,null,null,null,null,null,null,null,null,null,null,null,null,null,null,null,null,null,null,null,null,null,null,null,null,0]
["61º",null,null,null,null,null,null,null,null,null,null,null,null,null,null,null,null,null,null,null,null,null,null,null,null,null,null,0]
["62º",null,null,null,null,null,null,null,null,null,null,null,null,null,null,null,null,null,null,null,null,null,null,null,null,null,null,0]
["63º",null,null,null,null,null,null,null,null,null,null,null,null,null,null,null,null,null,null,null,null,null,null,null,null,null,null,0]
["64º",null,null,null,null,null,null,null,null,null,null,null,null,null,null,null,null,null,null,null,null,null,null,null,null,null,null,0]
["65º",null,null,null,null,null,null,null,null,null,null,null,null,null,null,null,null,null,null,null,null,null,null,null,null,null,null,{"$f":"SUM(D75:AA75)","v":0}]
["66º",null,null,null,null,null,null,null,null,null,null,null,null,null,null,null,null,null,null,null,null,null,null,null,null,null,null,0]
["67º",null,null,null,null,null,null,null,null,null,null,null,null,null,null,null,null,null,null,null,null,null,null,null,null,null,null,0]
["68º",null,null,null,null,null,null,null,null,null,null,null,null,null,null,null,null,null,null,null,null,null,null,null,null,null,null,0]
["69º",null,null,null,null,null,null,null,null,null,null,null,null,null,null,null,null,null,null,null,null,null,null,null,null,null,null,0]
["70º",null,null,null,null,null,null,null,null,null,null,null,null,null,null,null,null,null,null,null,null,null,null,null,null,null,null,0]
["71º",null,null,null,null,null,null,null,null,null,null,null,null,null,null,null,null,null,null,null,null,null,null,null,null,null,null,0]
["72º",null,null,null,null,null,null,null,null,null,null,null,null,null,null,null,null,null,null,null,null,null,null,null,null,null,null,0]
["73º",null,null,null,null,null,null,null,null,null,null,null,null,null,null,null,null,null,null,null,null,null,null,null,null,null,null,0]
["74º",null,null,null,null,null,null,null,null,null,null,null,null,null,null,null,null,null,null,null,null,null,null,null,null,null,null,0]
["75º",null,null,null,null,null,null,null,null,null,null,null,null,null,null,null,null,null,null,null,null,null,null,null,null,null,null,0]
["76º",null,null,null,null,null,null,null,null,null,null,null,null,null,null,null,null,null,null,null,null,null,null,null,null,null,null,0]
["77º",null,null,null,null,null,null,null,null,null,null,null,null,null,null,null,null,null,null,null,null,null,null,null,null,null,null,0]
["78º",null,null,null,null,null,null,null,null,null,null,null,null,null,null,null,null,null,null,null,null,null,null,null,null,null,null,0]
["79º",null,null,null,null,null,null,null,null,null,null,null,null,null,null,null,null,null,null,null,null,null,null,null,null,null,null,0]
["80º",null,null,null,null,null,null,null,null,null,null,null,null,null,null,null,null,null,null,null,null,null,null,null,null,null,null,0]
["81º",null,null,null,null,null,null,null,null,null,null,null,null,null,null,null,null,null,null,null,null,null,null,null,null,null,null,0]
["82º",null,null,null,null,null,null,null,null,null,null,null,null,null,null,null,null,null,null,null,null,null,null,null,null,null,null,0]
["83º",null,null,null,null,null,null,null,null,null,null,null,null,null,null,null,null,null,null,null,null,null,null,null,null,null,null,0]
["84º",null,null,null,null,null,null,null,null,null,null,null,null,null,null,null,null,null,null,null,null,null,null,null,null,null,null,0]
["85º",null,null,null,null,null,null,null,null,null,null,null,null,null,null,null,null,null,null,null,null,null,null,null,null,null,null,0]
["86º",null,null,null,null,null,null,null,null,null,null,null,null,null,null,null,null,null,null,null,null,null,null,null,null,null,null,0]
["87º",null,null,null,null,null,null,null,null,null,null,null,null,null,null,null,null,null,null,null,null,null,null,null,null,null,null,0]
["88º",null,null,null,null,null,null,null,null,null,null,null,null,null,null,null,null,null,null,null,null,null,null,null,null,null,null,0]
["89º",null,null,null,null,null,null,null,null,null,null,null,null,null,null,null,null,null,null,null,null,null,null,null,null,null,null,0]
["90º",null,null,null,null,null,null,null,null,null,null,null,null,null,null,null,null,null,null,null,null,null,null,null,null,null,null,0]
[]
[null,"LEGENDA"]
[null,"BONIFICAÇÃO POR ETAPA PARTICIPADA"]
[null,"PARTICIPOU DE 1 ETAPA=",null,5]
[null,"PARTICIPOU DE 2 ETAPAS=",null,"1X+10"]
[null,"PARTICIPOU DE 3 ETAPAS=",null,"2X+15"]
[null,"PARTICIPOU DE 4 ETAPAS=",null,"3X+25"]
[null,"PARTICIPOU DE 5 ETAPAS",null,"4X+40"]
[null,"PARTICIPOU DE 6 ETAPAS=",null,"5X+50"]
[null,"BONUS RECORD",null,20]
[null,"PROVA EM BRANCO",null,"NÃO TEVE ELIMINATORIAS"]

{"sheet":"DJ","index":6,"n_rows":111,"n_cols":28,"rows_kept":111,"cut":false,"hidden":false,"merged":[[7,19,7,20],[7,21,7,22],[7,23,7,24],[7,25,7,26],[0,2,0,26],[1,2,1,26],[4,15,4,18],[6,15,6,18],[5,15,5,18],[6,3,6,6],[5,3,5,6],[4,3,4,6],[6,23,6,26],[5,23,5,26],[4,23,4,26],[6,19,6,22],[5,19,5,22],[8,0,8,1],[4,19,4,22],[6,11,6,14],[5,11,5,14],[4,11,4,14],[6,7,6,10],[5,7,5,10],[4,7,4,10],[7,3,7,4],[7,5,7,6],[7,7,7,8],[7,9,7,10],[7,11,7,12],[7,13,7,14],[7,15,7,16],[7,17,7,18],[102,1,102,7],[103,1,103,2],[104,1,104,2],[105,1,105,2],[110,3,110,7],[106,1,106,2],[107,1,107,2],[108,1,108,2],[109,1,109,2],[110,1,110,2]]}
[]
[null,null,"CLASSIFICAÇÃO OFICIAL DO CAMPEONATO BRASILEIRO 2013 DE ARRANCADA 402 M. "]
[]
[]
[null,null,"Evento","1º",null,null,null,"2º",null,null,null,"3º",null,null,null,"4º",null,null,null,"5º",null,null,null,"6º"]
[null,null,"Local",null,null,null,null,null,null,null,null,"VELOPARK",null,null,null,"VELOPARK",null,null,null,null,null,null,null,"VP"]
[null,null,"Data",null,null,null,null,null,null,null,null,"16 a 18/08/2013",null,null,null,"27 a 29/09/2013",null,null,null,null,null,null,null,"17/11"]
[]
["DRAG JUNIOR",null,null,"bonus","bonus","bonus",null,"bonus","bonus","bonus",null,"bonus","bonus","bonus",null,"bonus","bonus","bonus",null,"bonus","bonus","bonus",null,"bonus","bonus","bonus"]
["POS","PILOTO","Nº","partic.","record","classif.","Prova","partic.","record","classif.","Prova","partic.","record","classif.","Prova","partic.","record","classif.","Prova","partic.","record","classif.","Prova","partic.","record","classif.","Prova","TOTAL"]
["1º","FELIPE LUNA",null,0,null,0,0,0,null,0,0,5,20,80,0,0,null,0,0,null,null,null,null,0,null,0,0,{"$f":"SUM(D11:AA11)","v":105}]
["2º","THOMAS SILVA",121,0,null,0,0,0,null,0,0,0,null,0,0,5,null,80,0,null,null,null,null,0,null,0,0,85]
["3º",null,null,null,null,null,null,null,null,null,null,null,null,null,null,null,null,null,null,null,null,null,null,null,null,null,null,0]
["4º",null,null,null,null,null,null,null,null,null,null,null,null,null,null,null,null,null,null,null,null,null,null,null,null,null,null,0]
["5º",null,null,null,null,null,null,null,null,null,null,null,null,null,null,null,null,null,null,null,null,null,null,null,null,null,null,0]
["6º",null,null,null,null,null,null,null,null,null,null,null,null,null,null,null,null,null,null,null,null,null,null,null,null,null,null,0]
["7º",null,null,null,null,null,null,null,null,null,null,null,null,null,null,null,null,null,null,null,null,null,null,null,null,null,null,0]
["8º",null,null,null,null,null,null,null,null,null,null,null,null,null,null,null,null,null,null,null,null,null,null,null,null,null,null,0]
["9º",null,null,null,null,null,null,null,null,null,null,null,null,null,null,null,null,null,null,null,null,null,null,null,null,null,null,0]
["10º",null,null,null,null,null,null,null,null,null,null,null,null,null,null,null,null,null,null,null,null,null,null,null,null,null,null,0]
["11º",null,null,null,null,null,null,null,null,null,null,null,null,null,null,null,null,null,null,null,null,null,null,null,null,null,null,0]
["12º",null,null,null,null,null,null,null,null,null,null,null,null,null,null,null,null,null,null,null,null,null,null,null,null,null,null,0]
["13º",null,null,null,null,null,null,null,null,null,null,null,null,null,null,null,null,null,null,null,null,null,null,null,null,null,null,0]
["14º",null,null,null,null,null,null,null,null,null,null,null,null,null,null,null,null,null,null,null,null,null,null,null,null,null,null,0]
["15º",null,null,null,null,null,null,null,null,null,null,null,null,null,null,null,null,null,null,null,null,null,null,null,null,null,null,0]
["16º",null,null,null,null,null,null,null,null,null,null,null,null,null,null,null,null,null,null,null,null,null,null,null,null,null,null,0]
["17º",null,null,null,null,null,null,null,null,null,null,null,null,null,null,null,null,null,null,null,null,null,null,null,null,null,null,0]
["18º",null,null,null,null,null,null,null,null,null,null,null,null,null,null,null,null,null,null,null,null,null,null,null,null,null,null,0]
["19º",null,null,null,null,null,null,null,null,null,null,null,null,null,null,null,null,null,null,null,null,null,null,null,null,null,null,0]
["20º",null,null,null,null,null,null,null,null,null,null,null,null,null,null,null,null,null,null,null,null,null,null,null,null,null,null,0]
["21º",null,null,null,null,null,null,null,null,null,null,null,null,null,null,null,null,null,null,null,null,null,null,null,null,null,null,0]
["22º",null,null,null,null,null,null,null,null,null,null,null,null,null,null,null,null,null,null,null,null,null,null,null,null,null,null,0]
["23º",null,null,null,null,null,null,null,null,null,null,null,null,null,null,null,null,null,null,null,null,null,null,null,null,null,null,0]
["24º",null,null,null,null,null,null,null,null,null,null,null,null,null,null,null,null,null,null,null,null,null,null,null,null,null,null,0]
["25º",null,null,null,null,null,null,null,null,null,null,null,null,null,null,null,null,null,null,null,null,null,null,null,null,null,null,0]
["26º",null,null,null,null,null,null,null,null,null,null,null,null,null,null,null,null,null,null,null,null,null,null,null,null,null,null,0]
["27º",null,null,null,null,null,null,null,null,null,null,null,null,null,null,null,null,null,null,null,null,null,null,null,null,null,null,0]
["28º",null,null,null,null,null,null,null,null,null,null,null,null,null,null,null,null,null,null,null,null,null,null,null,null,null,null,0]
["29º",null,null,null,null,null,null,null,null,null,null,null,null,null,null,null,null,null,null,null,null,null,null,null,null,null,null,0]
["30º",null,null,null,null,null,null,null,null,null,null,null,null,null,null,null,null,null,null,null,null,null,null,null,null,null,null,0]
["31º",null,null,null,null,null,null,null,null,null,null,null,null,null,null,null,null,null,null,null,null,null,null,null,null,null,null,0]
["32º",null,null,null,null,null,null,null,null,null,null,null,null,null,null,null,null,null,null,null,null,null,null,null,null,null,null,0]
["33º",null,null,null,null,null,null,null,null,null,null,null,null,null,null,null,null,null,null,null,null,null,null,null,null,null,null,{"$f":"SUM(D43:AA43)","v":0}]
["34º",null,null,null,null,null,null,null,null,null,null,null,null,null,null,null,null,null,null,null,null,null,null,null,null,null,null,0]
["35º",null,null,null,null,null,null,null,null,null,null,null,null,null,null,null,null,null,null,null,null,null,null,null,null,null,null,0]
["36º",null,null,null,null,null,null,null,null,null,null,null,null,null,null,null,null,null,null,null,null,null,null,null,null,null,null,0]
["37º",null,null,null,null,null,null,null,null,null,null,null,null,null,null,null,null,null,null,null,null,null,null,null,null,null,null,0]
["38º",null,null,null,null,null,null,null,null,null,null,null,null,null,null,null,null,null,null,null,null,null,null,null,null,null,null,0]
["39º",null,null,null,null,null,null,null,null,null,null,null,null,null,null,null,null,null,null,null,null,null,null,null,null,null,null,0]
["40º",null,null,null,null,null,null,null,null,null,null,null,null,null,null,null,null,null,null,null,null,null,null,null,null,null,null,0]
["41º",null,null,null,null,null,null,null,null,null,null,null,null,null,null,null,null,null,null,null,null,null,null,null,null,null,null,0]
["42º",null,null,null,null,null,null,null,null,null,null,null,null,null,null,null,null,null,null,null,null,null,null,null,null,null,null,0]
["43º",null,null,null,null,null,null,null,null,null,null,null,null,null,null,null,null,null,null,null,null,null,null,null,null,null,null,0]
["44º",null,null,null,null,null,null,null,null,null,null,null,null,null,null,null,null,null,null,null,null,null,null,null,null,null,null,0]
["45º",null,null,null,null,null,null,null,null,null,null,null,null,null,null,null,null,null,null,null,null,null,null,null,null,null,null,0]
["46º",null,null,null,null,null,null,null,null,null,null,null,null,null,null,null,null,null,null,null,null,null,null,null,null,null,null,0]
["47º",null,null,null,null,null,null,null,null,null,null,null,null,null,null,null,null,null,null,null,null,null,null,null,null,null,null,0]
["48º",null,null,null,null,null,null,null,null,null,null,null,null,null,null,null,null,null,null,null,null,null,null,null,null,null,null,0]
["49º",null,null,null,null,null,null,null,null,null,null,null,null,null,null,null,null,null,null,null,null,null,null,null,null,null,null,0]
["50º",null,null,null,null,null,null,null,null,null,null,null,null,null,null,null,null,null,null,null,null,null,null,null,null,null,null,0]
["51º",null,null,null,null,null,null,null,null,null,null,null,null,null,null,null,null,null,null,null,null,null,null,null,null,null,null,0]
["52º",null,null,null,null,null,null,null,null,null,null,null,null,null,null,null,null,null,null,null,null,null,null,null,null,null,null,0]
["53º",null,null,null,null,null,null,null,null,null,null,null,null,null,null,null,null,null,null,null,null,null,null,null,null,null,null,0]
["54º",null,null,null,null,null,null,null,null,null,null,null,null,null,null,null,null,null,null,null,null,null,null,null,null,null,null,0]
["55º",null,null,null,null,null,null,null,null,null,null,null,null,null,null,null,null,null,null,null,null,null,null,null,null,null,null,0]
["56º",null,null,null,null,null,null,null,null,null,null,null,null,null,null,null,null,null,null,null,null,null,null,null,null,null,null,0]
["57º",null,null,null,null,null,null,null,null,null,null,null,null,null,null,null,null,null,null,null,null,null,null,null,null,null,null,0]
["58º",null,null,null,null,null,null,null,null,null,null,null,null,null,null,null,null,null,null,null,null,null,null,null,null,null,null,0]
["59º",null,null,null,null,null,null,null,null,null,null,null,null,null,null,null,null,null,null,null,null,null,null,null,null,null,null,0]
["60º",null,null,null,null,null,null,null,null,null,null,null,null,null,null,null,null,null,null,null,null,null,null,null,null,null,null,0]
["61º",null,null,null,null,null,null,null,null,null,null,null,null,null,null,null,null,null,null,null,null,null,null,null,null,null,null,0]
["62º",null,null,null,null,null,null,null,null,null,null,null,null,null,null,null,null,null,null,null,null,null,null,null,null,null,null,0]
["63º",null,null,null,null,null,null,null,null,null,null,null,null,null,null,null,null,null,null,null,null,null,null,null,null,null,null,0]
["64º",null,null,null,null,null,null,null,null,null,null,null,null,null,null,null,null,null,null,null,null,null,null,null,null,null,null,0]
["65º",null,null,null,null,null,null,null,null,null,null,null,null,null,null,null,null,null,null,null,null,null,null,null,null,null,null,{"$f":"SUM(D75:AA75)","v":0}]
["66º",null,null,null,null,null,null,null,null,null,null,null,null,null,null,null,null,null,null,null,null,null,null,null,null,null,null,0]
["67º",null,null,null,null,null,null,null,null,null,null,null,null,null,null,null,null,null,null,null,null,null,null,null,null,null,null,0]
["68º",null,null,null,null,null,null,null,null,null,null,null,null,null,null,null,null,null,null,null,null,null,null,null,null,null,null,0]
["69º",null,null,null,null,null,null,null,null,null,null,null,null,null,null,null,null,null,null,null,null,null,null,null,null,null,null,0]
["70º",null,null,null,null,null,null,null,null,null,null,null,null,null,null,null,null,null,null,null,null,null,null,null,null,null,null,0]
["71º",null,null,null,null,null,null,null,null,null,null,null,null,null,null,null,null,null,null,null,null,null,null,null,null,null,null,0]
["72º",null,null,null,null,null,null,null,null,null,null,null,null,null,null,null,null,null,null,null,null,null,null,null,null,null,null,0]
["73º",null,null,null,null,null,null,null,null,null,null,null,null,null,null,null,null,null,null,null,null,null,null,null,null,null,null,0]
["74º",null,null,null,null,null,null,null,null,null,null,null,null,null,null,null,null,null,null,null,null,null,null,null,null,null,null,0]
["75º",null,null,null,null,null,null,null,null,null,null,null,null,null,null,null,null,null,null,null,null,null,null,null,null,null,null,0]
["76º",null,null,null,null,null,null,null,null,null,null,null,null,null,null,null,null,null,null,null,null,null,null,null,null,null,null,0]
["77º",null,null,null,null,null,null,null,null,null,null,null,null,null,null,null,null,null,null,null,null,null,null,null,null,null,null,0]
["78º",null,null,null,null,null,null,null,null,null,null,null,null,null,null,null,null,null,null,null,null,null,null,null,null,null,null,0]
["79º",null,null,null,null,null,null,null,null,null,null,null,null,null,null,null,null,null,null,null,null,null,null,null,null,null,null,0]
["80º",null,null,null,null,null,null,null,null,null,null,null,null,null,null,null,null,null,null,null,null,null,null,null,null,null,null,0]
["81º",null,null,null,null,null,null,null,null,null,null,null,null,null,null,null,null,null,null,null,null,null,null,null,null,null,null,0]
["82º",null,null,null,null,null,null,null,null,null,null,null,null,null,null,null,null,null,null,null,null,null,null,null,null,null,null,0]
["83º",null,null,null,null,null,null,null,null,null,null,null,null,null,null,null,null,null,null,null,null,null,null,null,null,null,null,0]
["84º",null,null,null,null,null,null,null,null,null,null,null,null,null,null,null,null,null,null,null,null,null,null,null,null,null,null,0]
["85º",null,null,null,null,null,null,null,null,null,null,null,null,null,null,null,null,null,null,null,null,null,null,null,null,null,null,0]
["86º",null,null,null,null,null,null,null,null,null,null,null,null,null,null,null,null,null,null,null,null,null,null,null,null,null,null,0]
["87º",null,null,null,null,null,null,null,null,null,null,null,null,null,null,null,null,null,null,null,null,null,null,null,null,null,null,0]
["88º",null,null,null,null,null,null,null,null,null,null,null,null,null,null,null,null,null,null,null,null,null,null,null,null,null,null,0]
["89º",null,null,null,null,null,null,null,null,null,null,null,null,null,null,null,null,null,null,null,null,null,null,null,null,null,null,0]
["90º",null,null,null,null,null,null,null,null,null,null,null,null,null,null,null,null,null,null,null,null,null,null,null,null,null,null,0]
[]
[null,"LEGENDA"]
[null,"BONIFICAÇÃO POR ETAPA PARTICIPADA"]
[null,"PARTICIPOU DE 1 ETAPA=",null,5]
[null,"PARTICIPOU DE 2 ETAPAS=",null,"1X+10"]
[null,"PARTICIPOU DE 3 ETAPAS=",null,"2X+15"]
[null,"PARTICIPOU DE 4 ETAPAS=",null,"3X+25"]
[null,"PARTICIPOU DE 5 ETAPAS",null,"4X+40"]
[null,"PARTICIPOU DE 6 ETAPAS=",null,"5X+50"]
[null,"BONUS RECORD",null,20]
[null,"PROVA EM BRANCO",null,"NÃO TEVE ELIMINATORIAS"]

{"sheet":"TT","index":7,"n_rows":111,"n_cols":28,"rows_kept":111,"cut":false,"hidden":false,"merged":[[0,2,0,26],[1,2,1,26],[4,15,4,18],[6,15,6,18],[5,15,5,18],[6,3,6,6],[5,3,5,6],[4,3,4,6],[6,23,6,26],[5,23,5,26],[4,23,4,26],[6,19,6,22],[4,19,4,22],[6,11,6,14],[4,11,4,14],[5,7,5,10],[4,7,4,10],[7,23,7,24],[7,17,7,18],[7,25,7,26],[102,1,102,7],[103,1,103,2],[104,1,104,2],[5,19,5,22],[8,0,8,1],[7,3,7,4],[7,5,7,6],[7,7,7,8],[7,9,7,10],[7,11,7,12],[7,13,7,14],[7,15,7,16],[7,19,7,20],[7,21,7,22],[5,11,5,14],[6,7,6,10]]}
[]
[null,null,"CLASSIFICAÇÃO OFICIAL DO CAMPEONATO BRASILEIRO 2013 DE ARRANCADA 402 M. "]
[]
[]
[null,null,"Evento","1º",null,null,null,"2º",null,null,null,"3º",null,null,null,"4º",null,null,null,"5º",null,null,null,"6º"]
[null,null,"Local","VELOPARK",null,null,null,"Curitiba",null,null,null,"VELOPARK",null,null,null,"VELOPARK",null,null,null,null,null,null,null,"VELOPARK"]
[null,null,"Data","15 a 17/03",null,null,null,"03 a 05/05/2013",null,null,null,"16 a 18/08/2013",null,null,null,"27 a 29/09/2013",null,null,null,null,null,null,null,"17/11"]
[]
["CATEGORIA TT",null,null,"bonus","bonus","bonus",null,"bonus","bonus","bonus",null,"bonus","bonus","bonus",null,"bonus","bonus","bonus",null,"bonus","bonus","bonus",null,"bonus","bonus","bonus"]
["POS","PILOTO","Nº","partic.","record","classif.","Prova","partic.","record","classif.","Prova","partic.","record","classif.","Prova","partic.","record","classif.","Prova","partic.","record","classif.","Prova","partic.","record","classif.","Prova","TOTAL"]
["1º","CLEVERSON BERTOLIM",875,"X",20,80,100,"X",null,70,null,"X",20,80,100,"X",20,75,0,null,null,null,null,50,null,160,0,{"$f":"SUM(D11:AA11)","v":775}]
["2º","FABRICIO CHICON",62,"X",null,60,40,0,null,0,null,"X",null,55,20,"X",null,80,0,null,null,null,null,40,null,130,80,505]
["3º","ANSELMO SEPP",1972,0,null,0,0,0,null,0,null,"X",null,70,40,"X",null,50,0,null,null,null,null,25,null,150,160,495]
["4º","CELSO CAMARGO",101,0,null,0,0,"X",20,80,null,"X",null,75,0,"X",null,70,0,null,null,null,null,40,null,120,80,485]
["5º","CRISTIAN CORDEIRO",333,0,null,0,0,0,null,0,null,0,null,0,0,0,null,0,0,null,null,null,null,5,null,140,200,345]
["6º","FABIANO PINTO",977,0,null,0,0,"X",null,55,null,"X",null,40,60,15,null,55,80,null,null,null,null,0,null,0,0,305]
["7º","CRISTIANO JULIO",333,"X",null,70,40,"X",null,75,null,0,null,0,0,15,null,60,40,null,null,null,null,0,null,0,0,300]
["8º","JEAN DALLA VALE",86,"X",null,65,0,"X",null,65,null,15,null,60,40,0,null,0,0,null,null,null,null,0,null,0,0,245]
["9º","BUBEN STAPENHORST",77,0,null,0,0,0,null,0,null,0,null,0,0,5,null,65,100,null,null,null,null,0,null,0,0,170]
["10º","THIAGO GASPARI",74,"X",null,75,0,0,null,0,null,10,null,50,0,0,null,0,0,null,null,null,null,0,null,0,0,135]
["11º","VANDERSON MAGNANTE",9,5,null,55,40,0,null,0,null,0,null,0,0,0,null,0,0,null,null,null,null,0,null,0,0,100]
["12º","LUIS FIGUEREDO",9,0,null,0,0,0,null,0,null,5,null,65,0,0,null,0,0,null,null,null,null,0,null,0,0,70]
["13º","ROGERRIO ROSA",533,0,null,0,0,0,null,0,null,5,null,45,20,0,null,0,0,null,null,null,null,0,null,0,0,70]
["14º","PATRICK SANTOS",176,0,null,0,0,5,null,60,null,0,null,0,0,0,null,0,0,null,null,null,null,0,null,0,0,65]
["15º","MARCUS DAMO",1710,0,null,0,0,5,null,50,null,0,null,0,0,0,null,0,0,null,null,null,null,0,null,0,0,55]
["16º","RODRIGO COHEN",234,5,null,50,0,0,null,0,null,0,null,0,0,0,null,0,0,null,null,null,null,0,null,0,0,55]
["17º","RUI FARIAS",52,0,null,0,0,5,null,45,null,0,null,0,0,0,null,0,0,null,null,null,null,0,null,0,0,50]
["18º","ANDERSON PARIZE",775,0,null,0,0,5,null,40,null,0,null,0,0,0,null,0,0,null,null,null,null,0,null,0,0,45]
["19º","PERCIO GONSALVES",974,0,null,0,0,5,null,35,null,0,null,0,0,0,null,0,0,null,null,null,null,0,null,0,0,40]
["20º","DIRCEU MARTINS",35,0,null,0,0,5,null,30,null,0,null,0,0,0,null,0,0,null,null,null,null,0,null,0,0,35]
["21º","PEDRO PISKA",1978,0,null,0,0,5,null,0,null,0,null,0,0,0,null,0,0,null,null,null,null,0,null,0,0,5]
["22º",null,null,null,null,null,null,null,null,null,null,null,null,null,null,null,null,null,null,null,null,null,null,null,null,null,null,0]
["23º",null,null,null,null,null,null,null,null,null,null,null,null,null,null,null,null,null,null,null,null,null,null,null,null,null,null,0]
["24º",null,null,null,null,null,null,null,null,null,null,null,null,null,null,null,null,null,null,null,null,null,null,null,null,null,null,0]
["25º",null,null,null,null,null,null,null,null,null,null,null,null,null,null,null,null,null,null,null,null,null,null,null,null,null,null,0]
["26º",null,null,null,null,null,null,null,null,null,null,null,null,null,null,null,null,null,null,null,null,null,null,null,null,null,null,0]
["27º",null,null,null,null,null,null,null,null,null,null,null,null,null,null,null,null,null,null,null,null,null,null,null,null,null,null,0]
["28º",null,null,null,null,null,null,null,null,null,null,null,null,null,null,null,null,null,null,null,null,null,null,null,null,null,null,0]
["29º",null,null,null,null,null,null,null,null,null,null,null,null,null,null,null,null,null,null,null,null,null,null,null,null,null,null,0]
["30º",null,null,null,null,null,null,null,null,null,null,null,null,null,null,null,null,null,null,null,null,null,null,null,null,null,null,0]
["31º",null,null,null,null,null,null,null,null,null,null,null,null,null,null,null,null,null,null,null,null,null,null,null,null,null,null,0]
["32º",null,null,null,null,null,null,null,null,null,null,null,null,null,null,null,null,null,null,null,null,null,null,null,null,null,null,0]
["33º",null,null,null,null,null,null,null,null,null,null,null,null,null,null,null,null,null,null,null,null,null,null,null,null,null,null,{"$f":"SUM(D43:AA43)","v":0}]
["34º",null,null,null,null,null,null,null,null,null,null,null,null,null,null,null,null,null,null,null,null,null,null,null,null,null,null,0]
["35º",null,null,null,null,null,null,null,null,null,null,null,null,null,null,null,null,null,null,null,null,null,null,null,null,null,null,0]
["36º",null,null,null,null,null,null,null,null,null,null,null,null,null,null,null,null,null,null,null,null,null,null,null,null,null,null,0]
["37º",null,null,null,null,null,null,null,null,null,null,null,null,null,null,null,null,null,null,null,null,null,null,null,null,null,null,0]
["38º",null,null,null,null,null,null,null,null,null,null,null,null,null,null,null,null,null,null,null,null,null,null,null,null,null,null,0]
["39º",null,null,null,null,null,null,null,null,null,null,null,null,null,null,null,null,null,null,null,null,null,null,null,null,null,null,0]
["40º",null,null,null,null,null,null,null,null,null,null,null,null,null,null,null,null,null,null,null,null,null,null,null,null,null,null,0]
["41º",null,null,null,null,null,null,null,null,null,null,null,null,null,null,null,null,null,null,null,null,null,null,null,null,null,null,0]
["42º",null,null,null,null,null,null,null,null,null,null,null,null,null,null,null,null,null,null,null,null,null,null,null,null,null,null,0]
["43º",null,null,null,null,null,null,null,null,null,null,null,null,null,null,null,null,null,null,null,null,null,null,null,null,null,null,0]
["44º",null,null,null,null,null,null,null,null,null,null,null,null,null,null,null,null,null,null,null,null,null,null,null,null,null,null,0]
["45º",null,null,null,null,null,null,null,null,null,null,null,null,null,null,null,null,null,null,null,null,null,null,null,null,null,null,0]
["46º",null,null,null,null,null,null,null,null,null,null,null,null,null,null,null,null,null,null,null,null,null,null,null,null,null,null,0]
["47º",null,null,null,null,null,null,null,null,null,null,null,null,null,null,null,null,null,null,null,null,null,null,null,null,null,null,0]
["48º",null,null,null,null,null,null,null,null,null,null,null,null,null,null,null,null,null,null,null,null,null,null,null,null,null,null,0]
["49º",null,null,null,null,null,null,null,null,null,null,null,null,null,null,null,null,null,null,null,null,null,null,null,null,null,null,0]
["50º",null,null,null,null,null,null,null,null,null,null,null,null,null,null,null,null,null,null,null,null,null,null,null,null,null,null,0]
["51º",null,null,null,null,null,null,null,null,null,null,null,null,null,null,null,null,null,null,null,null,null,null,null,null,null,null,0]
["52º",null,null,null,null,null,null,null,null,null,null,null,null,null,null,null,null,null,null,null,null,null,null,null,null,null,null,0]
["53º",null,null,null,null,null,null,null,null,null,null,null,null,null,null,null,null,null,null,null,null,null,null,null,null,null,null,0]
["54º",null,null,null,null,null,null,null,null,null,null,null,null,null,null,null,null,null,null,null,null,null,null,null,null,null,null,0]
["55º",null,null,null,null,null,null,null,null,null,null,null,null,null,null,null,null,null,null,null,null,null,null,null,null,null,null,0]
["56º",null,null,null,null,null,null,null,null,null,null,null,null,null,null,null,null,null,null,null,null,null,null,null,null,null,null,0]
["57º",null,null,null,null,null,null,null,null,null,null,null,null,null,null,null,null,null,null,null,null,null,null,null,null,null,null,0]
["58º",null,null,null,null,null,null,null,null,null,null,null,null,null,null,null,null,null,null,null,null,null,null,null,null,null,null,0]
["59º",null,null,null,null,null,null,null,null,null,null,null,null,null,null,null,null,null,null,null,null,null,null,null,null,null,null,0]
["60º",null,null,null,null,null,null,null,null,null,null,null,null,null,null,null,null,null,null,null,null,null,null,null,null,null,null,0]
["61º",null,null,null,null,null,null,null,null,null,null,null,null,null,null,null,null,null,null,null,null,null,null,null,null,null,null,0]
["62º",null,null,null,null,null,null,null,null,null,null,null,null,null,null,null,null,null,null,null,null,null,null,null,null,null,null,0]
["63º",null,null,null,null,null,null,null,null,null,null,null,null,null,null,null,null,null,null,null,null,null,null,null,null,null,null,0]
["64º",null,null,null,null,null,null,null,null,null,null,null,null,null,null,null,null,null,null,null,null,null,null,null,null,null,null,0]
["65º",null,null,null,null,null,null,null,null,null,null,null,null,null,null,null,null,null,null,null,null,null,null,null,null,null,null,{"$f":"SUM(D75:AA75)","v":0}]
["66º",null,null,null,null,null,null,null,null,null,null,null,null,null,null,null,null,null,null,null,null,null,null,null,null,null,null,0]
["67º",null,null,null,null,null,null,null,null,null,null,null,null,null,null,null,null,null,null,null,null,null,null,null,null,null,null,0]
["68º",null,null,null,null,null,null,null,null,null,null,null,null,null,null,null,null,null,null,null,null,null,null,null,null,null,null,0]
["69º",null,null,null,null,null,null,null,null,null,null,null,null,null,null,null,null,null,null,null,null,null,null,null,null,null,null,0]
["70º",null,null,null,null,null,null,null,null,null,null,null,null,null,null,null,null,null,null,null,null,null,null,null,null,null,null,0]
["71º",null,null,null,null,null,null,null,null,null,null,null,null,null,null,null,null,null,null,null,null,null,null,null,null,null,null,0]
["72º",null,null,null,null,null,null,null,null,null,null,null,null,null,null,null,null,null,null,null,null,null,null,null,null,null,null,0]
["73º",null,null,null,null,null,null,null,null,null,null,null,null,null,null,null,null,null,null,null,null,null,null,null,null,null,null,0]
["74º",null,null,null,null,null,null,null,null,null,null,null,null,null,null,null,null,null,null,null,null,null,null,null,null,null,null,0]
["75º",null,null,null,null,null,null,null,null,null,null,null,null,null,null,null,null,null,null,null,null,null,null,null,null,null,null,0]
["76º",null,null,null,null,null,null,null,null,null,null,null,null,null,null,null,null,null,null,null,null,null,null,null,null,null,null,0]
["77º",null,null,null,null,null,null,null,null,null,null,null,null,null,null,null,null,null,null,null,null,null,null,null,null,null,null,0]
["78º",null,null,null,null,null,null,null,null,null,null,null,null,null,null,null,null,null,null,null,null,null,null,null,null,null,null,0]
["79º",null,null,null,null,null,null,null,null,null,null,null,null,null,null,null,null,null,null,null,null,null,null,null,null,null,null,0]
["80º",null,null,null,null,null,null,null,null,null,null,null,null,null,null,null,null,null,null,null,null,null,null,null,null,null,null,0]
["81º",null,null,null,null,null,null,null,null,null,null,null,null,null,null,null,null,null,null,null,null,null,null,null,null,null,null,0]
["82º",null,null,null,null,null,null,null,null,null,null,null,null,null,null,null,null,null,null,null,null,null,null,null,null,null,null,0]
["83º",null,null,null,null,null,null,null,null,null,null,null,null,null,null,null,null,null,null,null,null,null,null,null,null,null,null,0]
["84º",null,null,null,null,null,null,null,null,null,null,null,null,null,null,null,null,null,null,null,null,null,null,null,null,null,null,0]
["85º",null,null,null,null,null,null,null,null,null,null,null,null,null,null,null,null,null,null,null,null,null,null,null,null,null,null,0]
["86º",null,null,null,null,null,null,null,null,null,null,null,null,null,null,null,null,null,null,null,null,null,null,null,null,null,null,0]
["87º",null,null,null,null,null,null,null,null,null,null,null,null,null,null,null,null,null,null,null,null,null,null,null,null,null,null,0]
["88º",null,null,null,null,null,null,null,null,null,null,null,null,null,null,null,null,null,null,null,null,null,null,null,null,null,null,0]
["89º",null,null,null,null,null,null,null,null,null,null,null,null,null,null,null,null,null,null,null,null,null,null,null,null,null,null,0]
["90º",null,null,null,null,null,null,null,null,null,null,null,null,null,null,null,null,null,null,null,null,null,null,null,null,null,null,0]
[]
[null,"LEGENDA"]
[null,"BONIFICAÇÃO POR ETAPA PARTICIPADA"]
[null,"PARTICIPOU DE 1 ETAPA=",null,5]
[null,"PARTICIPOU DE 2 ETAPAS=",null,"1X+10"]
[null,"PARTICIPOU DE 3 ETAPAS=",null,"2X+15"]
[null,"PARTICIPOU DE 4 ETAPAS=",null,"3X+25"]
[null,"PARTICIPOU DE 5 ETAPAS",null,"4X+40"]
[null,"PARTICIPOU DE 6 ETAPAS=",null,"5X+50"]
[null,"BONUS RECORD",null,20]
[null,"PROVA EM BRANCO",null,"NÃO TEVE ELIMINATORIAS"]

{"sheet":"DS","index":8,"n_rows":111,"n_cols":28,"rows_kept":111,"cut":false,"hidden":false,"merged":[[7,23,7,24],[7,17,7,18],[7,25,7,26],[0,2,0,26],[1,2,1,26],[4,15,4,18],[6,15,6,18],[5,15,5,18],[6,3,6,6],[5,3,5,6],[4,3,4,6],[6,23,6,26],[5,23,5,26],[4,23,4,26],[6,19,6,22],[102,1,102,7],[103,1,103,2],[5,19,5,22],[8,0,8,1],[7,3,7,4],[7,5,7,6],[7,7,7,8],[7,9,7,10],[7,11,7,12],[7,13,7,14],[7,15,7,16],[7,19,7,20],[7,21,7,22],[5,11,5,14],[6,7,6,10],[5,7,5,10],[4,19,4,22],[6,11,6,14],[4,11,4,14],[4,7,4,10]]}
[]
[null,null,"CLASSIFICAÇÃO OFICIAL DO CAMPEONATO BRASILEIRO 2013 DE ARRANCADA 402 M. "]
[]
[]
[null,null,"Evento","1º",null,null,null,"2º",null,null,null,"3º",null,null,null,"4º",null,null,null,"5º",null,null,null,"6º"]
[null,null,"Local","VELOPARK 15 A 17/03",null,null,null,"Curitiba",null,null,null,"VELOPARK",null,null,null,"VELOPARK",null,null,null,null,null,null,null,"VELOPARK"]
[null,null,"Data",null,null,null,null,"03 a 05/05/2013",null,null,null,"16 a 18/08/2013",null,null,null,"27 a 29/09/2013",null,null,null,null,null,null,null,"17/11"]
[]
["DIANTEIRA SUPER - DS",null,null,"bonus","bonus","bonus",null,"bonus","bonus","bonus",null,"bonus","bonus","bonus",null,"bonus","bonus","bonus",null,"bonus","bonus","bonus",null,"bonus","bonus","bonus"]
["POS","PILOTO","Nº","partic.","record","classif.","Prova","partic.","record","classif.","Prova","partic.","record","classif.","Prova","partic.","record","classif.","Prova","partic.","record","classif.","Prova","partic.","record","classif.","Prova","TOTAL"]
["1º","HARRISSON MARQUES",222,0,null,0,0,"X",20,80,null,"X",20,80,100,0,null,0,0,null,null,null,null,25,null,160,160,{"$f":"SUM(D11:AA11)","v":645}]
["2º","RODRIGO BERNIERI",80,0,null,0,0,0,null,0,null,"x",null,75,80,"X",null,80,100,null,null,null,null,25,null,140,120,620]
["3º","VINICIUS BERTA",119,0,null,0,0,0,null,0,null,"x",null,65,60,0,null,0,0,null,null,null,null,15,null,150,200,490]
["4º","EVANIR FORTUNATO",747,0,null,0,0,0,null,0,null,0,null,0,0,"X",null,70,60,null,null,null,null,15,null,130,80,355]
["5º","LUIZ BONACORSO",2100,0,null,0,0,0,null,0,null,"X",null,70,0,0,null,0,0,null,null,null,null,15,null,120,80,285]
["6º","IGOR ZIMERMANN",5,0,null,0,0,0,null,0,null,0,null,0,0,5,null,75,80,null,null,null,null,0,null,0,0,160]
["7º","ALBERTO OHPIS",17,0,null,0,0,5,null,75,null,0,null,0,0,0,null,0,0,null,null,null,null,0,null,0,0,80]
["8º",null,null,null,null,null,null,null,null,null,null,null,null,null,null,null,null,null,null,null,null,null,null,null,null,null,null,0]
["9º",null,null,null,null,null,null,null,null,null,null,null,null,null,null,null,null,null,null,null,null,null,null,null,null,null,null,0]
["10º",null,null,null,null,null,null,null,null,null,null,null,null,null,null,null,null,null,null,null,null,null,null,null,null,null,null,0]
["11º",null,null,null,null,null,null,null,null,null,null,null,null,null,null,null,null,null,null,null,null,null,null,null,null,null,null,0]
["12º",null,null,null,null,null,null,null,null,null,null,null,null,null,null,null,null,null,null,null,null,null,null,null,null,null,null,0]
["13º",null,null,null,null,null,null,null,null,null,null,null,null,null,null,null,null,null,null,null,null,null,null,null,null,null,null,0]
["14º",null,null,null,null,null,null,null,null,null,null,null,null,null,null,null,null,null,null,null,null,null,null,null,null,null,null,0]
["15º",null,null,null,null,null,null,null,null,null,null,null,null,null,null,null,null,null,null,null,null,null,null,null,null,null,null,0]
["16º",null,null,null,null,null,null,null,null,null,null,null,null,null,null,null,null,null,null,null,null,null,null,null,null,null,null,0]
["17º",null,null,null,null,null,null,null,null,null,null,null,null,null,null,null,null,null,null,null,null,null,null,null,null,null,null,0]
["18º",null,null,null,null,null,null,null,null,null,null,null,null,null,null,null,null,null,null,null,null,null,null,null,null,null,null,0]
["19º",null,null,null,null,null,null,null,null,null,null,null,null,null,null,null,null,null,null,null,null,null,null,null,null,null,null,0]
["20º",null,null,null,null,null,null,null,null,null,null,null,null,null,null,null,null,null,null,null,null,null,null,null,null,null,null,0]
["21º",null,null,null,null,null,null,null,null,null,null,null,null,null,null,null,null,null,null,null,null,null,null,null,null,null,null,0]
["22º",null,null,null,null,null,null,null,null,null,null,null,null,null,null,null,null,null,null,null,null,null,null,null,null,null,null,0]
["23º",null,null,null,null,null,null,null,null,null,null,null,null,null,null,null,null,null,null,null,null,null,null,null,null,null,null,0]
["24º",null,null,null,null,null,null,null,null,null,null,null,null,null,null,null,null,null,null,null,null,null,null,null,null,null,null,0]
["25º",null,null,null,null,null,null,null,null,null,null,null,null,null,null,null,null,null,null,null,null,null,null,null,null,null,null,0]
["26º",null,null,null,null,null,null,null,null,null,null,null,null,null,null,null,null,null,null,null,null,null,null,null,null,null,null,0]
["27º",null,null,null,null,null,null,null,null,null,null,null,null,null,null,null,null,null,null,null,null,null,null,null,null,null,null,0]
["28º",null,null,null,null,null,null,null,null,null,null,null,null,null,null,null,null,null,null,null,null,null,null,null,null,null,null,0]
["29º",null,null,null,null,null,null,null,null,null,null,null,null,null,null,null,null,null,null,null,null,null,null,null,null,null,null,0]
["30º",null,null,null,null,null,null,null,null,null,null,null,null,null,null,null,null,null,null,null,null,null,null,null,null,null,null,0]
["31º",null,null,null,null,null,null,null,null,null,null,null,null,null,null,null,null,null,null,null,null,null,null,null,null,null,null,0]
["32º",null,null,null,null,null,null,null,null,null,null,null,null,null,null,null,null,null,null,null,null,null,null,null,null,null,null,0]
["33º",null,null,null,null,null,null,null,null,null,null,null,null,null,null,null,null,null,null,null,null,null,null,null,null,null,null,{"$f":"SUM(D43:AA43)","v":0}]
["34º",null,null,null,null,null,null,null,null,null,null,null,null,null,null,null,null,null,null,null,null,null,null,null,null,null,null,0]
["35º",null,null,null,null,null,null,null,null,null,null,null,null,null,null,null,null,null,null,null,null,null,null,null,null,null,null,0]
["36º",null,null,null,null,null,null,null,null,null,null,null,null,null,null,null,null,null,null,null,null,null,null,null,null,null,null,0]
["37º",null,null,null,null,null,null,null,null,null,null,null,null,null,null,null,null,null,null,null,null,null,null,null,null,null,null,0]
["38º",null,null,null,null,null,null,null,null,null,null,null,null,null,null,null,null,null,null,null,null,null,null,null,null,null,null,0]
["39º",null,null,null,null,null,null,null,null,null,null,null,null,null,null,null,null,null,null,null,null,null,null,null,null,null,null,0]
["40º",null,null,null,null,null,null,null,null,null,null,null,null,null,null,null,null,null,null,null,null,null,null,null,null,null,null,0]
["41º",null,null,null,null,null,null,null,null,null,null,null,null,null,null,null,null,null,null,null,null,null,null,null,null,null,null,0]
["42º",null,null,null,null,null,null,null,null,null,null,null,null,null,null,null,null,null,null,null,null,null,null,null,null,null,null,0]
["43º",null,null,null,null,null,null,null,null,null,null,null,null,null,null,null,null,null,null,null,null,null,null,null,null,null,null,0]
["44º",null,null,null,null,null,null,null,null,null,null,null,null,null,null,null,null,null,null,null,null,null,null,null,null,null,null,0]
["45º",null,null,null,null,null,null,null,null,null,null,null,null,null,null,null,null,null,null,null,null,null,null,null,null,null,null,0]
["46º",null,null,null,null,null,null,null,null,null,null,null,null,null,null,null,null,null,null,null,null,null,null,null,null,null,null,0]
["47º",null,null,null,null,null,null,null,null,null,null,null,null,null,null,null,null,null,null,null,null,null,null,null,null,null,null,0]
["48º",null,null,null,null,null,null,null,null,null,null,null,null,null,null,null,null,null,null,null,null,null,null,null,null,null,null,0]
["49º",null,null,null,null,null,null,null,null,null,null,null,null,null,null,null,null,null,null,null,null,null,null,null,null,null,null,0]
["50º",null,null,null,null,null,null,null,null,null,null,null,null,null,null,null,null,null,null,null,null,null,null,null,null,null,null,0]
["51º",null,null,null,null,null,null,null,null,null,null,null,null,null,null,null,null,null,null,null,null,null,null,null,null,null,null,0]
["52º",null,null,null,null,null,null,null,null,null,null,null,null,null,null,null,null,null,null,null,null,null,null,null,null,null,null,0]
["53º",null,null,null,null,null,null,null,null,null,null,null,null,null,null,null,null,null,null,null,null,null,null,null,null,null,null,0]
["54º",null,null,null,null,null,null,null,null,null,null,null,null,null,null,null,null,null,null,null,null,null,null,null,null,null,null,0]
["55º",null,null,null,null,null,null,null,null,null,null,null,null,null,null,null,null,null,null,null,null,null,null,null,null,null,null,0]
["56º",null,null,null,null,null,null,null,null,null,null,null,null,null,null,null,null,null,null,null,null,null,null,null,null,null,null,0]
["57º",null,null,null,null,null,null,null,null,null,null,null,null,null,null,null,null,null,null,null,null,null,null,null,null,null,null,0]
["58º",null,null,null,null,null,null,null,null,null,null,null,null,null,null,null,null,null,null,null,null,null,null,null,null,null,null,0]
["59º",null,null,null,null,null,null,null,null,null,null,null,null,null,null,null,null,null,null,null,null,null,null,null,null,null,null,0]
["60º",null,null,null,null,null,null,null,null,null,null,null,null,null,null,null,null,null,null,null,null,null,null,null,null,null,null,0]
["61º",null,null,null,null,null,null,null,null,null,null,null,null,null,null,null,null,null,null,null,null,null,null,null,null,null,null,0]
["62º",null,null,null,null,null,null,null,null,null,null,null,null,null,null,null,null,null,null,null,null,null,null,null,null,null,null,0]
["63º",null,null,null,null,null,null,null,null,null,null,null,null,null,null,null,null,null,null,null,null,null,null,null,null,null,null,0]
["64º",null,null,null,null,null,null,null,null,null,null,null,null,null,null,null,null,null,null,null,null,null,null,null,null,null,null,0]
["65º",null,null,null,null,null,null,null,null,null,null,null,null,null,null,null,null,null,null,null,null,null,null,null,null,null,null,{"$f":"SUM(D75:AA75)","v":0}]
["66º",null,null,null,null,null,null,null,null,null,null,null,null,null,null,null,null,null,null,null,null,null,null,null,null,null,null,0]
["67º",null,null,null,null,null,null,null,null,null,null,null,null,null,null,null,null,null,null,null,null,null,null,null,null,null,null,0]
["68º",null,null,null,null,null,null,null,null,null,null,null,null,null,null,null,null,null,null,null,null,null,null,null,null,null,null,0]
["69º",null,null,null,null,null,null,null,null,null,null,null,null,null,null,null,null,null,null,null,null,null,null,null,null,null,null,0]
["70º",null,null,null,null,null,null,null,null,null,null,null,null,null,null,null,null,null,null,null,null,null,null,null,null,null,null,0]
["71º",null,null,null,null,null,null,null,null,null,null,null,null,null,null,null,null,null,null,null,null,null,null,null,null,null,null,0]
["72º",null,null,null,null,null,null,null,null,null,null,null,null,null,null,null,null,null,null,null,null,null,null,null,null,null,null,0]
["73º",null,null,null,null,null,null,null,null,null,null,null,null,null,null,null,null,null,null,null,null,null,null,null,null,null,null,0]
["74º",null,null,null,null,null,null,null,null,null,null,null,null,null,null,null,null,null,null,null,null,null,null,null,null,null,null,0]
["75º",null,null,null,null,null,null,null,null,null,null,null,null,null,null,null,null,null,null,null,null,null,null,null,null,null,null,0]
["76º",null,null,null,null,null,null,null,null,null,null,null,null,null,null,null,null,null,null,null,null,null,null,null,null,null,null,0]
["77º",null,null,null,null,null,null,null,null,null,null,null,null,null,null,null,null,null,null,null,null,null,null,null,null,null,null,0]
["78º",null,null,null,null,null,null,null,null,null,null,null,null,null,null,null,null,null,null,null,null,null,null,null,null,null,null,0]
["79º",null,null,null,null,null,null,null,null,null,null,null,null,null,null,null,null,null,null,null,null,null,null,null,null,null,null,0]
["80º",null,null,null,null,null,null,null,null,null,null,null,null,null,null,null,null,null,null,null,null,null,null,null,null,null,null,0]
["81º",null,null,null,null,null,null,null,null,null,null,null,null,null,null,null,null,null,null,null,null,null,null,null,null,null,null,0]
["82º",null,null,null,null,null,null,null,null,null,null,null,null,null,null,null,null,null,null,null,null,null,null,null,null,null,null,0]
["83º",null,null,null,null,null,null,null,null,null,null,null,null,null,null,null,null,null,null,null,null,null,null,null,null,null,null,0]
["84º",null,null,null,null,null,null,null,null,null,null,null,null,null,null,null,null,null,null,null,null,null,null,null,null,null,null,0]
["85º",null,null,null,null,null,null,null,null,null,null,null,null,null,null,null,null,null,null,null,null,null,null,null,null,null,null,0]
["86º",null,null,null,null,null,null,null,null,null,null,null,null,null,null,null,null,null,null,null,null,null,null,null,null,null,null,0]
["87º",null,null,null,null,null,null,null,null,null,null,null,null,null,null,null,null,null,null,null,null,null,null,null,null,null,null,0]
["88º",null,null,null,null,null,null,null,null,null,null,null,null,null,null,null,null,null,null,null,null,null,null,null,null,null,null,0]
["89º",null,null,null,null,null,null,null,null,null,null,null,null,null,null,null,null,null,null,null,null,null,null,null,null,null,null,0]
["90º",null,null,null,null,null,null,null,null,null,null,null,null,null,null,null,null,null,null,null,null,null,null,null,null,null,null,0]
[]
[null,"LEGENDA"]
[null,"BONIFICAÇÃO POR ETAPA PARTICIPADA"]
[null,"PARTICIPOU DE 1 ETAPA=",null,5]
[null,"PARTICIPOU DE 2 ETAPAS=",null,"1X+10"]
[null,"PARTICIPOU DE 3 ETAPAS=",null,"2X+15"]
[null,"PARTICIPOU DE 4 ETAPAS=",null,"3X+25"]
[null,"PARTICIPOU DE 5 ETAPAS",null,"4X+40"]
[null,"PARTICIPOU DE 6 ETAPAS=",null,"5X+50"]
[null,"BONUS RECORD",null,20]
[null,"PROVA EM BRANCO",null,"NÃO TEVE ELIMINATORIAS"]

{"sheet":"TS","index":9,"n_rows":111,"n_cols":28,"rows_kept":111,"cut":false,"hidden":false,"merged":[[7,19,7,20],[7,21,7,22],[7,23,7,24],[7,25,7,26],[0,2,0,26],[1,2,1,26],[4,15,4,18],[6,15,6,18],[5,15,5,18],[6,3,6,6],[5,3,5,6],[4,3,4,6],[6,23,6,26],[5,23,5,26],[4,23,4,26],[6,19,6,22],[5,19,5,22],[8,0,8,1],[4,19,4,22],[6,11,6,14],[5,11,5,14],[4,11,4,14],[6,7,6,10],[5,7,5,10],[4,7,4,10],[7,3,7,4],[7,5,7,6],[7,7,7,8],[7,9,7,10],[7,11,7,12],[7,13,7,14],[7,15,7,16],[7,17,7,18],[102,1,102,7],[103,1,103,2],[104,1,104,2],[105,1,105,2],[110,3,110,7],[106,1,106,2],[107,1,107,2],[108,1,108,2],[109,1,109,2],[110,1,110,2]]}
[]
[null,null,"CLASSIFICAÇÃO OFICIAL DO CAMPEONATO BRASILEIRO 2013 DE ARRANCADA 402 M. "]
[]
[]
[null,null,"Evento","1º",null,null,null,"2º",null,null,null,"3º",null,null,null,"4º",null,null,null,"5º",null,null,null,"6º"]
[null,null,"Local","VELOPARK ",null,null,null,"Curitiba",null,null,null,"VELOPARK",null,null,null,"VELOPARK",null,null,null,null,null,null,null,"VELOPARK"]
[null,null,"Data","15 a 17/03",null,null,null,"03 a 05/05/2013",null,null,null,"16 a 18/08/2013",null,null,null,"27 a 29/09/2013",null,null,null,null,null,null,null,"17/11"]
[]
["TRASEIRA SUPER  TS",null,null,"bonus","bonus","bonus",null,"bonus","bonus","bonus",null,"bonus","bonus","bonus",null,"bonus","bonus","bonus",null,"bonus","bonus","bonus",null,"bonus","bonus","bonus"]
["POS","PILOTO","Nº","partic.","record","classif.","Prova","partic.","record","classif.","Prova","partic.","record","classif.","Prova","partic.","record","classif.","Prova","partic.","record","classif.","Prova","partic.","record","classif.","Prova","TOTAL"]
["1º","GUSTAVO CASTANON",10,"X",20,75,100,0,null,0,null,"X",null,75,80,"X",20,80,100,null,null,null,null,40,null,160,200,{"$f":"SUM(D11:AA11)","v":950}]
["2º","MARCIO VALMOR JULIO",332,"X",null,80,0,"X",20,80,null,"X",20,80,100,"X",null,75,80,null,null,null,null,50,null,140,0,725]
["3º","MANOEL CASTANON",11,"X",null,65,0,"X",null,70,null,0,null,0,0,15,null,70,0,null,null,null,null,0,null,0,0,220]
["4º","RODERJAN",88,0,null,0,0,0,null,0,null,0,null,0,0,0,null,0,0,null,null,null,null,10,null,150,0,160]
["5º","JAIRO DALLA VALLE",35,5,null,70,60,0,null,0,null,0,null,0,0,0,null,0,0,null,null,null,null,0,null,0,0,135]
["6º","DIEGO BUZATO",88,0,null,0,0,5,null,75,null,0,null,0,0,0,null,0,0,null,null,null,null,0,null,0,0,80]
["7º",null,null,null,null,null,null,null,null,null,null,null,null,null,null,null,null,null,null,null,null,null,null,null,null,null,null,0]
["8º",null,null,null,null,null,null,null,null,null,null,null,null,null,null,null,null,null,null,null,null,null,null,null,null,null,null,0]
["9º",null,null,null,null,null,null,null,null,null,null,null,null,null,null,null,null,null,null,null,null,null,null,null,null,null,null,0]
["10º",null,null,null,null,null,null,null,null,null,null,null,null,null,null,null,null,null,null,null,null,null,null,null,null,null,null,0]
["11º",null,null,null,null,null,null,null,null,null,null,null,null,null,null,null,null,null,null,null,null,null,null,null,null,null,null,0]
["12º",null,null,null,null,null,null,null,null,null,null,null,null,null,null,null,null,null,null,null,null,null,null,null,null,null,null,0]
["13º",null,null,null,null,null,null,null,null,null,null,null,null,null,null,null,null,null,null,null,null,null,null,null,null,null,null,0]
["14º",null,null,null,null,null,null,null,null,null,null,null,null,null,null,null,null,null,null,null,null,null,null,null,null,null,null,0]
["15º",null,null,null,null,null,null,null,null,null,null,null,null,null,null,null,null,null,null,null,null,null,null,null,null,null,null,0]
["16º",null,null,null,null,null,null,null,null,null,null,null,null,null,null,null,null,null,null,null,null,null,null,null,null,null,null,0]
["17º",null,null,null,null,null,null,null,null,null,null,null,null,null,null,null,null,null,null,null,null,null,null,null,null,null,null,0]
["18º",null,null,null,null,null,null,null,null,null,null,null,null,null,null,null,null,null,null,null,null,null,null,null,null,null,null,0]
["19º",null,null,null,null,null,null,null,null,null,null,null,null,null,null,null,null,null,null,null,null,null,null,null,null,null,null,0]
["20º",null,null,null,null,null,null,null,null,null,null,null,null,null,null,null,null,null,null,null,null,null,null,null,null,null,null,0]
["21º",null,null,null,null,null,null,null,null,null,null,null,null,null,null,null,null,null,null,null,null,null,null,null,null,null,null,0]
["22º",null,null,null,null,null,null,null,null,null,null,null,null,null,null,null,null,null,null,null,null,null,null,null,null,null,null,0]
["23º",null,null,null,null,null,null,null,null,null,null,null,null,null,null,null,null,null,null,null,null,null,null,null,null,null,null,0]
["24º",null,null,null,null,null,null,null,null,null,null,null,null,null,null,null,null,null,null,null,null,null,null,null,null,null,null,0]
["25º",null,null,null,null,null,null,null,null,null,null,null,null,null,null,null,null,null,null,null,null,null,null,null,null,null,null,0]
["26º",null,null,null,null,null,null,null,null,null,null,null,null,null,null,null,null,null,null,null,null,null,null,null,null,null,null,0]
["27º",null,null,null,null,null,null,null,null,null,null,null,null,null,null,null,null,null,null,null,null,null,null,null,null,null,null,0]
["28º",null,null,null,null,null,null,null,null,null,null,null,null,null,null,null,null,null,null,null,null,null,null,null,null,null,null,0]
["29º",null,null,null,null,null,null,null,null,null,null,null,null,null,null,null,null,null,null,null,null,null,null,null,null,null,null,0]
["30º",null,null,null,null,null,null,null,null,null,null,null,null,null,null,null,null,null,null,null,null,null,null,null,null,null,null,0]
["31º",null,null,null,null,null,null,null,null,null,null,null,null,null,null,null,null,null,null,null,null,null,null,null,null,null,null,0]
["32º",null,null,null,null,null,null,null,null,null,null,null,null,null,null,null,null,null,null,null,null,null,null,null,null,null,null,0]
["33º",null,null,null,null,null,null,null,null,null,null,null,null,null,null,null,null,null,null,null,null,null,null,null,null,null,null,{"$f":"SUM(D43:AA43)","v":0}]
["34º",null,null,null,null,null,null,null,null,null,null,null,null,null,null,null,null,null,null,null,null,null,null,null,null,null,null,0]
["35º",null,null,null,null,null,null,null,null,null,null,null,null,null,null,null,null,null,null,null,null,null,null,null,null,null,null,0]
["36º",null,null,null,null,null,null,null,null,null,null,null,null,null,null,null,null,null,null,null,null,null,null,null,null,null,null,0]
["37º",null,null,null,null,null,null,null,null,null,null,null,null,null,null,null,null,null,null,null,null,null,null,null,null,null,null,0]
["38º",null,null,null,null,null,null,null,null,null,null,null,null,null,null,null,null,null,null,null,null,null,null,null,null,null,null,0]
["39º",null,null,null,null,null,null,null,null,null,null,null,null,null,null,null,null,null,null,null,null,null,null,null,null,null,null,0]
["40º",null,null,null,null,null,null,null,null,null,null,null,null,null,null,null,null,null,null,null,null,null,null,null,null,null,null,0]
["41º",null,null,null,null,null,null,null,null,null,null,null,null,null,null,null,null,null,null,null,null,null,null,null,null,null,null,0]
["42º",null,null,null,null,null,null,null,null,null,null,null,null,null,null,null,null,null,null,null,null,null,null,null,null,null,null,0]
["43º",null,null,null,null,null,null,null,null,null,null,null,null,null,null,null,null,null,null,null,null,null,null,null,null,null,null,0]
["44º",null,null,null,null,null,null,null,null,null,null,null,null,null,null,null,null,null,null,null,null,null,null,null,null,null,null,0]
["45º",null,null,null,null,null,null,null,null,null,null,null,null,null,null,null,null,null,null,null,null,null,null,null,null,null,null,0]
["46º",null,null,null,null,null,null,null,null,null,null,null,null,null,null,null,null,null,null,null,null,null,null,null,null,null,null,0]
["47º",null,null,null,null,null,null,null,null,null,null,null,null,null,null,null,null,null,null,null,null,null,null,null,null,null,null,0]
["48º",null,null,null,null,null,null,null,null,null,null,null,null,null,null,null,null,null,null,null,null,null,null,null,null,null,null,0]
["49º",null,null,null,null,null,null,null,null,null,null,null,null,null,null,null,null,null,null,null,null,null,null,null,null,null,null,0]
["50º",null,null,null,null,null,null,null,null,null,null,null,null,null,null,null,null,null,null,null,null,null,null,null,null,null,null,0]
["51º",null,null,null,null,null,null,null,null,null,null,null,null,null,null,null,null,null,null,null,null,null,null,null,null,null,null,0]
["52º",null,null,null,null,null,null,null,null,null,null,null,null,null,null,null,null,null,null,null,null,null,null,null,null,null,null,0]
["53º",null,null,null,null,null,null,null,null,null,null,null,null,null,null,null,null,null,null,null,null,null,null,null,null,null,null,0]
["54º",null,null,null,null,null,null,null,null,null,null,null,null,null,null,null,null,null,null,null,null,null,null,null,null,null,null,0]
["55º",null,null,null,null,null,null,null,null,null,null,null,null,null,null,null,null,null,null,null,null,null,null,null,null,null,null,0]
["56º",null,null,null,null,null,null,null,null,null,null,null,null,null,null,null,null,null,null,null,null,null,null,null,null,null,null,0]
["57º",null,null,null,null,null,null,null,null,null,null,null,null,null,null,null,null,null,null,null,null,null,null,null,null,null,null,0]
["58º",null,null,null,null,null,null,null,null,null,null,null,null,null,null,null,null,null,null,null,null,null,null,null,null,null,null,0]
["59º",null,null,null,null,null,null,null,null,null,null,null,null,null,null,null,null,null,null,null,null,null,null,null,null,null,null,0]
["60º",null,null,null,null,null,null,null,null,null,null,null,null,null,null,null,null,null,null,null,null,null,null,null,null,null,null,0]
["61º",null,null,null,null,null,null,null,null,null,null,null,null,null,null,null,null,null,null,null,null,null,null,null,null,null,null,0]
["62º",null,null,null,null,null,null,null,null,null,null,null,null,null,null,null,null,null,null,null,null,null,null,null,null,null,null,0]
["63º",null,null,null,null,null,null,null,null,null,null,null,null,null,null,null,null,null,null,null,null,null,null,null,null,null,null,0]
["64º",null,null,null,null,null,null,null,null,null,null,null,null,null,null,null,null,null,null,null,null,null,null,null,null,null,null,0]
["65º",null,null,null,null,null,null,null,null,null,null,null,null,null,null,null,null,null,null,null,null,null,null,null,null,null,null,{"$f":"SUM(D75:AA75)","v":0}]
["66º",null,null,null,null,null,null,null,null,null,null,null,null,null,null,null,null,null,null,null,null,null,null,null,null,null,null,0]
["67º",null,null,null,null,null,null,null,null,null,null,null,null,null,null,null,null,null,null,null,null,null,null,null,null,null,null,0]
["68º",null,null,null,null,null,null,null,null,null,null,null,null,null,null,null,null,null,null,null,null,null,null,null,null,null,null,0]
["69º",null,null,null,null,null,null,null,null,null,null,null,null,null,null,null,null,null,null,null,null,null,null,null,null,null,null,0]
["70º",null,null,null,null,null,null,null,null,null,null,null,null,null,null,null,null,null,null,null,null,null,null,null,null,null,null,0]
["71º",null,null,null,null,null,null,null,null,null,null,null,null,null,null,null,null,null,null,null,null,null,null,null,null,null,null,0]
["72º",null,null,null,null,null,null,null,null,null,null,null,null,null,null,null,null,null,null,null,null,null,null,null,null,null,null,0]
["73º",null,null,null,null,null,null,null,null,null,null,null,null,null,null,null,null,null,null,null,null,null,null,null,null,null,null,0]
["74º",null,null,null,null,null,null,null,null,null,null,null,null,null,null,null,null,null,null,null,null,null,null,null,null,null,null,0]
["75º",null,null,null,null,null,null,null,null,null,null,null,null,null,null,null,null,null,null,null,null,null,null,null,null,null,null,0]
["76º",null,null,null,null,null,null,null,null,null,null,null,null,null,null,null,null,null,null,null,null,null,null,null,null,null,null,0]
["77º",null,null,null,null,null,null,null,null,null,null,null,null,null,null,null,null,null,null,null,null,null,null,null,null,null,null,0]
["78º",null,null,null,null,null,null,null,null,null,null,null,null,null,null,null,null,null,null,null,null,null,null,null,null,null,null,0]
["79º",null,null,null,null,null,null,null,null,null,null,null,null,null,null,null,null,null,null,null,null,null,null,null,null,null,null,0]
["80º",null,null,null,null,null,null,null,null,null,null,null,null,null,null,null,null,null,null,null,null,null,null,null,null,null,null,0]
["81º",null,null,null,null,null,null,null,null,null,null,null,null,null,null,null,null,null,null,null,null,null,null,null,null,null,null,0]
["82º",null,null,null,null,null,null,null,null,null,null,null,null,null,null,null,null,null,null,null,null,null,null,null,null,null,null,0]
["83º",null,null,null,null,null,null,null,null,null,null,null,null,null,null,null,null,null,null,null,null,null,null,null,null,null,null,0]
["84º",null,null,null,null,null,null,null,null,null,null,null,null,null,null,null,null,null,null,null,null,null,null,null,null,null,null,0]
["85º",null,null,null,null,null,null,null,null,null,null,null,null,null,null,null,null,null,null,null,null,null,null,null,null,null,null,0]
["86º",null,null,null,null,null,null,null,null,null,null,null,null,null,null,null,null,null,null,null,null,null,null,null,null,null,null,0]
["87º",null,null,null,null,null,null,null,null,null,null,null,null,null,null,null,null,null,null,null,null,null,null,null,null,null,null,0]
["88º",null,null,null,null,null,null,null,null,null,null,null,null,null,null,null,null,null,null,null,null,null,null,null,null,null,null,0]
["89º",null,null,null,null,null,null,null,null,null,null,null,null,null,null,null,null,null,null,null,null,null,null,null,null,null,null,0]
["90º",null,null,null,null,null,null,null,null,null,null,null,null,null,null,null,null,null,null,null,null,null,null,null,null,null,null,0]
[]
[null,"LEGENDA"]
[null,"BONIFICAÇÃO POR ETAPA PARTICIPADA"]
[null,"PARTICIPOU DE 1 ETAPA=",null,5]
[null,"PARTICIPOU DE 2 ETAPAS=",null,"1X+10"]
[null,"PARTICIPOU DE 3 ETAPAS=",null,"2X+15"]
[null,"PARTICIPOU DE 4 ETAPAS=",null,"3X+25"]
[null,"PARTICIPOU DE 5 ETAPAS",null,"4X+40"]
[null,"PARTICIPOU DE 6 ETAPAS=",null,"5X+50"]
[null,"BONUS RECORD",null,20]
[null,"PROVA EM BRANCO",null,"NÃO TEVE ELIMINATORIAS"]

{"sheet":"FLD","index":10,"n_rows":111,"n_cols":28,"rows_kept":111,"cut":false,"hidden":false,"merged":[[7,19,7,20],[7,21,7,22],[7,23,7,24],[7,25,7,26],[0,2,0,26],[1,2,1,26],[4,15,4,18],[6,15,6,18],[5,15,5,18],[6,3,6,6],[5,3,5,6],[4,3,4,6],[6,23,6,26],[5,23,5,26],[4,23,4,26],[6,19,6,22],[5,19,5,22],[8,0,8,1],[4,19,4,22],[6,11,6,14],[5,11,5,14],[4,11,4,14],[6,7,6,10],[5,7,5,10],[4,7,4,10],[7,3,7,4],[7,5,7,6],[7,7,7,8],[7,9,7,10],[7,11,7,12],[7,13,7,14],[7,15,7,16],[7,17,7,18],[102,1,102,7],[103,1,103,2],[104,1,104,2],[105,1,105,2],[110,3,110,7],[106,1,106,2],[107,1,107,2],[108,1,108,2],[109,1,109,2],[110,1,110,2]]}
[]
[null,null,"CLASSIFICAÇÃO OFICIAL DO CAMPEONATO BRASILEIRO 2013 DE ARRANCADA 402 M. "]
[]
[]
[null,null,"Evento","1º",null,null,null,"2º",null,null,null,"3º",null,null,null,"4º",null,null,null,"5º",null,null,null,"6º"]
[null,null,"Local","VELOPARK ",null,null,null,"Curitiba",null,null,null,"VELOPARK",null,null,null,"VELOPARK",null,null,null,null,null,null,null,"VELOAPARK"]
[null,null,"Data","15 a 17/03",null,null,null,"03 a 05/05/2013",null,null,null,"16 a 18/08/2013",null,null,null,"27 a 29/09/2013",null,null,null,null,null,null,null,"17/11"]
[]
["FORÇA LIVRE DIANTEIRA FLD",null,null,"bonus","bonus","bonus",null,"bonus","bonus","bonus",null,"bonus","bonus","bonus",null,"bonus","bonus","bonus",null,"bonus","bonus","bonus",null,"bonus","bonus","bonus"]
["POS","PILOTO","Nº","partic.","record","classif.","Prova","partic.","record","classif.","Prova","partic.","record","classif.","Prova","partic.","record","classif.","Prova","partic.","record","classif.","Prova","partic.","record","classif.","Prova","TOTAL"]
["1º","AIRTON CARRARO",9,"X",null,75,100,"X",null,80,null,"X",null,75,40,"X",null,60,60,null,null,null,null,50,null,140,120,{"$f":"SUM(D11:AA11)","v":800}]
["2º","LUIZ DONATO",494,0,null,0,0,0,null,0,null,"X",20,65,100,"X",null,70,100,null,null,null,null,25,null,160,160,700]
["3º","JÕAO TASSO",39,0,null,0,0,0,null,0,null,"X",null,80,0,"X",null,75,60,null,null,null,null,25,null,130,120,490]
["4º","JADER KROLOW",938,"X",null,60,0,0,null,0,null,"X",null,60,40,"X",null,65,40,null,null,null,null,40,null,120,0,425]
["5º","JOSÉ R. PASQUALETE",55,"X",null,70,80,0,null,0,null,"X",null,70,40,0,null,0,0,null,null,null,null,25,null,110,0,395]
["6º","CARLOS BENTO",286,0,null,0,0,0,null,0,null,0,null,0,0,0,null,0,0,null,null,null,null,10,20,150,200,380]
["7º","JEAN CARLO SISTI",206,"X",null,65,0,0,null,0,null,"X",null,55,0,0,null,0,0,null,null,null,null,25,null,100,0,245]
["8º","EDUARDO BONAMIGO",25,0,null,0,0,0,null,0,null,0,null,0,0,5,null,80,80,null,null,null,null,0,null,0,0,165]
["9º","ALESSANDRO BARRANCO",26,0,null,0,0,0,null,0,null,0,null,0,0,5,null,55,40,null,null,null,null,0,null,0,0,100]
["10º","ELIZALDO PAIZ",78,0,null,0,0,0,null,0,null,0,null,0,0,5,null,50,40,null,null,null,null,0,null,0,0,95]
["11º","MAICON CANESIN",285,5,null,80,0,0,null,0,null,0,null,0,0,0,null,0,0,null,null,null,null,0,null,0,0,85]
["12º","SERGIO GANGA",3900,0,null,0,0,5,null,75,null,0,null,0,0,0,null,0,0,null,null,null,null,0,null,0,0,80]
["13º","IVO HOLTZ",1700,0,null,0,0,5,null,70,null,0,null,0,0,0,null,0,0,null,null,null,null,0,null,0,0,75]
["14º","TATIANA XAVIER",46,0,null,0,0,5,null,65,null,0,null,0,0,0,null,0,0,null,null,null,null,0,null,0,0,70]
["15º",null,null,null,null,null,null,null,null,null,null,null,null,null,null,null,null,null,null,null,null,null,null,null,null,null,null,0]
["16º",null,null,null,null,null,null,null,null,null,null,null,null,null,null,null,null,null,null,null,null,null,null,null,null,null,null,0]
["17º",null,null,null,null,null,null,null,null,null,null,null,null,null,null,null,null,null,null,null,null,null,null,null,null,null,null,0]
["18º",null,null,null,null,null,null,null,null,null,null,null,null,null,null,null,null,null,null,null,null,null,null,null,null,null,null,0]
["19º",null,null,null,null,null,null,null,null,null,null,null,null,null,null,null,null,null,null,null,null,null,null,null,null,null,null,0]
["20º",null,null,null,null,null,null,null,null,null,null,null,null,null,null,null,null,null,null,null,null,null,null,null,null,null,null,0]
["21º",null,null,null,null,null,null,null,null,null,null,null,null,null,null,null,null,null,null,null,null,null,null,null,null,null,null,0]
["22º",null,null,null,null,null,null,null,null,null,null,null,null,null,null,null,null,null,null,null,null,null,null,null,null,null,null,0]
["23º",null,null,null,null,null,null,null,null,null,null,null,null,null,null,null,null,null,null,null,null,null,null,null,null,null,null,0]
["24º",null,null,null,null,null,null,null,null,null,null,null,null,null,null,null,null,null,null,null,null,null,null,null,null,null,null,0]
["25º",null,null,null,null,null,null,null,null,null,null,null,null,null,null,null,null,null,null,null,null,null,null,null,null,null,null,0]
["26º",null,null,null,null,null,null,null,null,null,null,null,null,null,null,null,null,null,null,null,null,null,null,null,null,null,null,0]
["27º",null,null,null,null,null,null,null,null,null,null,null,null,null,null,null,null,null,null,null,null,null,null,null,null,null,null,0]
["28º",null,null,null,null,null,null,null,null,null,null,null,null,null,null,null,null,null,null,null,null,null,null,null,null,null,null,0]
["29º",null,null,null,null,null,null,null,null,null,null,null,null,null,null,null,null,null,null,null,null,null,null,null,null,null,null,0]
["30º",null,null,null,null,null,null,null,null,null,null,null,null,null,null,null,null,null,null,null,null,null,null,null,null,null,null,0]
["31º",null,null,null,null,null,null,null,null,null,null,null,null,null,null,null,null,null,null,null,null,null,null,null,null,null,null,0]
["32º",null,null,null,null,null,null,null,null,null,null,null,null,null,null,null,null,null,null,null,null,null,null,null,null,null,null,0]
["33º",null,null,null,null,null,null,null,null,null,null,null,null,null,null,null,null,null,null,null,null,null,null,null,null,null,null,{"$f":"SUM(D43:AA43)","v":0}]
["34º",null,null,null,null,null,null,null,null,null,null,null,null,null,null,null,null,null,null,null,null,null,null,null,null,null,null,0]
["35º",null,null,null,null,null,null,null,null,null,null,null,null,null,null,null,null,null,null,null,null,null,null,null,null,null,null,0]
["36º",null,null,null,null,null,null,null,null,null,null,null,null,null,null,null,null,null,null,null,null,null,null,null,null,null,null,0]
["37º",null,null,null,null,null,null,null,null,null,null,null,null,null,null,null,null,null,null,null,null,null,null,null,null,null,null,0]
["38º",null,null,null,null,null,null,null,null,null,null,null,null,null,null,null,null,null,null,null,null,null,null,null,null,null,null,0]
["39º",null,null,null,null,null,null,null,null,null,null,null,null,null,null,null,null,null,null,null,null,null,null,null,null,null,null,0]
["40º",null,null,null,null,null,null,null,null,null,null,null,null,null,null,null,null,null,null,null,null,null,null,null,null,null,null,0]
["41º",null,null,null,null,null,null,null,null,null,null,null,null,null,null,null,null,null,null,null,null,null,null,null,null,null,null,0]
["42º",null,null,null,null,null,null,null,null,null,null,null,null,null,null,null,null,null,null,null,null,null,null,null,null,null,null,0]
["43º",null,null,null,null,null,null,null,null,null,null,null,null,null,null,null,null,null,null,null,null,null,null,null,null,null,null,0]
["44º",null,null,null,null,null,null,null,null,null,null,null,null,null,null,null,null,null,null,null,null,null,null,null,null,null,null,0]
["45º",null,null,null,null,null,null,null,null,null,null,null,null,null,null,null,null,null,null,null,null,null,null,null,null,null,null,0]
["46º",null,null,null,null,null,null,null,null,null,null,null,null,null,null,null,null,null,null,null,null,null,null,null,null,null,null,0]
["47º",null,null,null,null,null,null,null,null,null,null,null,null,null,null,null,null,null,null,null,null,null,null,null,null,null,null,0]
["48º",null,null,null,null,null,null,null,null,null,null,null,null,null,null,null,null,null,null,null,null,null,null,null,null,null,null,0]
["49º",null,null,null,null,null,null,null,null,null,null,null,null,null,null,null,null,null,null,null,null,null,null,null,null,null,null,0]
["50º",null,null,null,null,null,null,null,null,null,null,null,null,null,null,null,null,null,null,null,null,null,null,null,null,null,null,0]
["51º",null,null,null,null,null,null,null,null,null,null,null,null,null,null,null,null,null,null,null,null,null,null,null,null,null,null,0]
["52º",null,null,null,null,null,null,null,null,null,null,null,null,null,null,null,null,null,null,null,null,null,null,null,null,null,null,0]
["53º",null,null,null,null,null,null,null,null,null,null,null,null,null,null,null,null,null,null,null,null,null,null,null,null,null,null,0]
["54º",null,null,null,null,null,null,null,null,null,null,null,null,null,null,null,null,null,null,null,null,null,null,null,null,null,null,0]
["55º",null,null,null,null,null,null,null,null,null,null,null,null,null,null,null,null,null,null,null,null,null,null,null,null,null,null,0]
["56º",null,null,null,null,null,null,null,null,null,null,null,null,null,null,null,null,null,null,null,null,null,null,null,null,null,null,0]
["57º",null,null,null,null,null,null,null,null,null,null,null,null,null,null,null,null,null,null,null,null,null,null,null,null,null,null,0]
["58º",null,null,null,null,null,null,null,null,null,null,null,null,null,null,null,null,null,null,null,null,null,null,null,null,null,null,0]
["59º",null,null,null,null,null,null,null,null,null,null,null,null,null,null,null,null,null,null,null,null,null,null,null,null,null,null,0]
["60º",null,null,null,null,null,null,null,null,null,null,null,null,null,null,null,null,null,null,null,null,null,null,null,null,null,null,0]
["61º",null,null,null,null,null,null,null,null,null,null,null,null,null,null,null,null,null,null,null,null,null,null,null,null,null,null,0]
["62º",null,null,null,null,null,null,null,null,null,null,null,null,null,null,null,null,null,null,null,null,null,null,null,null,null,null,0]
["63º",null,null,null,null,null,null,null,null,null,null,null,null,null,null,null,null,null,null,null,null,null,null,null,null,null,null,0]
["64º",null,null,null,null,null,null,null,null,null,null,null,null,null,null,null,null,null,null,null,null,null,null,null,null,null,null,0]
["65º",null,null,null,null,null,null,null,null,null,null,null,null,null,null,null,null,null,null,null,null,null,null,null,null,null,null,{"$f":"SUM(D75:AA75)","v":0}]
["66º",null,null,null,null,null,null,null,null,null,null,null,null,null,null,null,null,null,null,null,null,null,null,null,null,null,null,0]
["67º",null,null,null,null,null,null,null,null,null,null,null,null,null,null,null,null,null,null,null,null,null,null,null,null,null,null,0]
["68º",null,null,null,null,null,null,null,null,null,null,null,null,null,null,null,null,null,null,null,null,null,null,null,null,null,null,0]
["69º",null,null,null,null,null,null,null,null,null,null,null,null,null,null,null,null,null,null,null,null,null,null,null,null,null,null,0]
["70º",null,null,null,null,null,null,null,null,null,null,null,null,null,null,null,null,null,null,null,null,null,null,null,null,null,null,0]
["71º",null,null,null,null,null,null,null,null,null,null,null,null,null,null,null,null,null,null,null,null,null,null,null,null,null,null,0]
["72º",null,null,null,null,null,null,null,null,null,null,null,null,null,null,null,null,null,null,null,null,null,null,null,null,null,null,0]
["73º",null,null,null,null,null,null,null,null,null,null,null,null,null,null,null,null,null,null,null,null,null,null,null,null,null,null,0]
["74º",null,null,null,null,null,null,null,null,null,null,null,null,null,null,null,null,null,null,null,null,null,null,null,null,null,null,0]
["75º",null,null,null,null,null,null,null,null,null,null,null,null,null,null,null,null,null,null,null,null,null,null,null,null,null,null,0]
["76º",null,null,null,null,null,null,null,null,null,null,null,null,null,null,null,null,null,null,null,null,null,null,null,null,null,null,0]
["77º",null,null,null,null,null,null,null,null,null,null,null,null,null,null,null,null,null,null,null,null,null,null,null,null,null,null,0]
["78º",null,null,null,null,null,null,null,null,null,null,null,null,null,null,null,null,null,null,null,null,null,null,null,null,null,null,0]
["79º",null,null,null,null,null,null,null,null,null,null,null,null,null,null,null,null,null,null,null,null,null,null,null,null,null,null,0]
["80º",null,null,null,null,null,null,null,null,null,null,null,null,null,null,null,null,null,null,null,null,null,null,null,null,null,null,0]
["81º",null,null,null,null,null,null,null,null,null,null,null,null,null,null,null,null,null,null,null,null,null,null,null,null,null,null,0]
["82º",null,null,null,null,null,null,null,null,null,null,null,null,null,null,null,null,null,null,null,null,null,null,null,null,null,null,0]
["83º",null,null,null,null,null,null,null,null,null,null,null,null,null,null,null,null,null,null,null,null,null,null,null,null,null,null,0]
["84º",null,null,null,null,null,null,null,null,null,null,null,null,null,null,null,null,null,null,null,null,null,null,null,null,null,null,0]
["85º",null,null,null,null,null,null,null,null,null,null,null,null,null,null,null,null,null,null,null,null,null,null,null,null,null,null,0]
["86º",null,null,null,null,null,null,null,null,null,null,null,null,null,null,null,null,null,null,null,null,null,null,null,null,null,null,0]
["87º",null,null,null,null,null,null,null,null,null,null,null,null,null,null,null,null,null,null,null,null,null,null,null,null,null,null,0]
["88º",null,null,null,null,null,null,null,null,null,null,null,null,null,null,null,null,null,null,null,null,null,null,null,null,null,null,0]
["89º",null,null,null,null,null,null,null,null,null,null,null,null,null,null,null,null,null,null,null,null,null,null,null,null,null,null,0]
["90º",null,null,null,null,null,null,null,null,null,null,null,null,null,null,null,null,null,null,null,null,null,null,null,null,null,null,0]
[]
[null,"LEGENDA"]
[null,"BONIFICAÇÃO POR ETAPA PARTICIPADA"]
[null,"PARTICIPOU DE 1 ETAPA=",null,5]
[null,"PARTICIPOU DE 2 ETAPAS=",null,"1X+10"]
[null,"PARTICIPOU DE 3 ETAPAS=",null,"2X+15"]
[null,"PARTICIPOU DE 4 ETAPAS=",null,"3X+25"]
[null,"PARTICIPOU DE 5 ETAPAS",null,"4X+40"]
[null,"PARTICIPOU DE 6 ETAPAS=",null,"5X+50"]
[null,"BONUS RECORD",null,20]
[null,"PROVA EM BRANCO",null,"NÃO TEVE ELIMINATORIAS"]

{"sheet":"STT","index":11,"n_rows":111,"n_cols":28,"rows_kept":111,"cut":false,"hidden":false,"merged":[[7,19,7,20],[7,21,7,22],[7,23,7,24],[7,25,7,26],[0,2,0,26],[1,2,1,26],[4,15,4,18],[6,15,6,18],[5,15,5,18],[6,3,6,6],[5,3,5,6],[4,3,4,6],[6,23,6,26],[5,23,5,26],[4,23,4,26],[6,19,6,22],[5,19,5,22],[8,0,8,1],[4,19,4,22],[6,11,6,14],[5,11,5,14],[4,11,4,14],[6,7,6,10],[5,7,5,10],[4,7,4,10],[7,3,7,4],[7,5,7,6],[7,7,7,8],[7,9,7,10],[7,11,7,12],[7,13,7,14],[7,15,7,16],[7,17,7,18],[102,1,102,7],[103,1,103,2],[104,1,104,2],[105,1,105,2]]}
[]
[null,null,"CLASSIFICAÇÃO OFICIAL DO CAMPEONATO BRASILEIRO 2013 DE ARRANCADA 402 M. "]
[]
[]
[null,null,"Evento","1º",null,null,null,"2º",null,null,null,"3º",null,null,null,"4º",null,null,null,"5º",null,null,null,"6º"]
[null,null,"Local","VELOPARK",null,null,null,"Curitiba",null,null,null,"VELOPARK",null,null,null,"VELOPARK",null,null,null,null,null,null,null,"VELOPARK"]
[null,null,"Data","15 a 17/03",null,null,null,"03 a 05/05/2013",null,null,null,"16 a 18/08/2013",null,null,null,"27 a 29/09/2013",null,null,null,null,null,null,null,"17/11"]
[]
["STREET TRAÇÃO TRASEIRA STT",null,null,"bonus","bonus","bonus",null,"bonus","bonus","bonus",null,"bonus","bonus","bonus",null,"bonus","bonus","bonus",null,"bonus","bonus","bonus",null,"bonus","bonus","bonus"]
["POS","PILOTO","Nº","partic.","record","classif.","Prova","partic.","record","classif.","Prova","partic.","record","classif.","Prova","partic.","record","classif.","Prova","partic.","record","classif.","Prova","partic.","record","classif.","Prova","TOTAL"]
["1º","GIOVANI CHEMIN",1979,"X",null,80,100,"X",20,80,null,"X",null,75,80,"X",null,70,60,null,null,null,null,50,null,130,80,{"$f":"SUM(D11:AA11)","v":825}]
["2º","CRISTIAN CORDEIRO",332,0,null,0,0,0,null,0,null,"X",20,80,100,"X",null,80,60,null,null,null,null,25,null,160,200,725]
["3º","ARIELSON MUTERLE","167","X",null,60,40,0,null,0,null,"X",null,65,60,"X",null,65,80,null,null,null,null,40,null,140,160,710]
["4º","VILSON FERREORA",2,0,null,0,0,0,null,0,null,0,null,0,0,"X",null,75,100,null,null,null,null,15,null,120,120,430]
["5º","PEDRO PISKA",1978,0,null,0,0,"X",null,65,null,0,null,0,0,0,null,0,0,null,null,null,null,15,null,150,80,310]
["6º","MARCIO VALMOR",332,"X",20,75,80,10,null,75,null,0,null,0,0,0,null,0,0,null,null,null,null,0,null,0,0,260]
["7º","GILMAR TROVO",79,0,null,0,0,"X",null,40,null,0,null,0,0,0,null,0,0,null,null,null,null,15,null,110,80,245]
["8º","CRISTIANO BATISTA",3110,0,null,0,0,0,null,0,null,"X",null,70,60,10,null,60,40,null,null,null,null,0,null,0,0,240]
["9º","IVAN SOUZA",788,0,null,0,0,0,null,0,null,0,null,0,0,0,null,0,0,null,null,null,null,10,null,100,120,230]
["10º","RONEI HUMMES",30,"X",null,55,40,0,null,0,null,10,null,50,40,0,null,0,0,null,null,null,null,0,null,0,0,195]
["11º","MARCELO BELMIRO",20,0,null,0,0,"X",null,25,null,10,null,60,40,0,null,0,0,null,null,null,null,0,null,0,0,135]
["12º","EDILSON HEEMAN",76,0,null,0,0,"X",null,50,null,10,null,55,0,0,null,0,0,null,null,null,null,0,null,0,0,115]
["13º","GIOVANNI IARROCHESKI",13,5,null,70,40,0,null,0,null,0,null,0,0,0,null,0,0,null,null,null,null,0,null,0,0,115]
["14º","ALVARO TEXEIRA DIAS",7,5,null,65,40,0,null,0,null,0,null,0,0,0,null,0,0,null,null,null,null,0,null,0,0,110]
["15º","VITOR CASARIN",1818,0,null,0,0,0,null,0,null,0,null,0,0,5,null,55,40,null,null,null,null,0,null,0,0,100]
["16º","CLOVIS WATCHMANN",25,0,null,0,0,0,null,0,null,0,null,0,0,5,null,50,40,null,null,null,null,0,null,0,0,95]
["17º","LUCAS MIRANDA",46,0,null,0,0,5,null,70,null,0,null,0,0,0,null,0,0,null,null,null,null,0,null,0,0,75]
["18º","JOSE CARVALHO",6,0,null,0,0,5,null,60,null,0,null,0,0,0,null,0,0,null,null,null,null,0,null,0,0,65]
["19º","EMERSON HEEMAN",170,0,null,0,0,5,null,55,null,0,null,0,0,0,null,0,0,null,null,null,null,0,null,0,0,60]
["20º","DANILO AIZONA",56,0,null,0,0,5,null,45,null,0,null,0,0,0,null,0,0,null,null,null,null,0,null,0,0,50]
["21º","GILCARLO PROSDOCIMO",75,0,null,0,0,5,null,35,null,0,null,0,0,0,null,0,0,null,null,null,null,0,null,0,0,40]
["22º","LEANDRO KOVALSKI",38,0,null,0,0,5,null,30,null,0,null,0,0,0,null,0,0,null,null,null,null,0,null,0,0,35]
["23º","LUIZ GRECA",17,0,null,0,0,5,null,20,null,0,null,0,0,0,null,0,0,null,null,null,null,0,null,0,0,25]
["24º","CLEBER BORGES",69,0,null,0,0,5,null,15,null,0,null,0,0,0,null,0,0,null,null,null,null,0,null,0,0,20]
["25º",null,null,null,null,null,null,null,null,null,null,null,null,null,null,null,null,null,null,null,null,null,null,null,null,null,null,0]
["26º",null,null,null,null,null,null,null,null,null,null,null,null,null,null,null,null,null,null,null,null,null,null,null,null,null,null,0]
["27º",null,null,null,null,null,null,null,null,null,null,null,null,null,null,null,null,null,null,null,null,null,null,null,null,null,null,0]
["28º",null,null,null,null,null,null,null,null,null,null,null,null,null,null,null,null,null,null,null,null,null,null,null,null,null,null,0]
["29º",null,null,null,null,null,null,null,null,null,null,null,null,null,null,null,null,null,null,null,null,null,null,null,null,null,null,0]
["30º",null,null,null,null,null,null,null,null,null,null,null,null,null,null,null,null,null,null,null,null,null,null,null,null,null,null,0]
["31º",null,null,null,null,null,null,null,null,null,null,null,null,null,null,null,null,null,null,null,null,null,null,null,null,null,null,0]
["32º",null,null,null,null,null,null,null,null,null,null,null,null,null,null,null,null,null,null,null,null,null,null,null,null,null,null,0]
["33º",null,null,null,null,null,null,null,null,null,null,null,null,null,null,null,null,null,null,null,null,null,null,null,null,null,null,{"$f":"SUM(D43:AA43)","v":0}]
["34º",null,null,null,null,null,null,null,null,null,null,null,null,null,null,null,null,null,null,null,null,null,null,null,null,null,null,0]
["35º",null,null,null,null,null,null,null,null,null,null,null,null,null,null,null,null,null,null,null,null,null,null,null,null,null,null,0]
["36º",null,null,null,null,null,null,null,null,null,null,null,null,null,null,null,null,null,null,null,null,null,null,null,null,null,null,0]
["37º",null,null,null,null,null,null,null,null,null,null,null,null,null,null,null,null,null,null,null,null,null,null,null,null,null,null,0]
["38º",null,null,null,null,null,null,null,null,null,null,null,null,null,null,null,null,null,null,null,null,null,null,null,null,null,null,0]
["39º",null,null,null,null,null,null,null,null,null,null,null,null,null,null,null,null,null,null,null,null,null,null,null,null,null,null,0]
["40º",null,null,null,null,null,null,null,null,null,null,null,null,null,null,null,null,null,null,null,null,null,null,null,null,null,null,0]
["41º",null,null,null,null,null,null,null,null,null,null,null,null,null,null,null,null,null,null,null,null,null,null,null,null,null,null,0]
["42º",null,null,null,null,null,null,null,null,null,null,null,null,null,null,null,null,null,null,null,null,null,null,null,null,null,null,0]
["43º",null,null,null,null,null,null,null,null,null,null,null,null,null,null,null,null,null,null,null,null,null,null,null,null,null,null,0]
["44º",null,null,null,null,null,null,null,null,null,null,null,null,null,null,null,null,null,null,null,null,null,null,null,null,null,null,0]
["45º",null,null,null,null,null,null,null,null,null,null,null,null,null,null,null,null,null,null,null,null,null,null,null,null,null,null,0]
["46º",null,null,null,null,null,null,null,null,null,null,null,null,null,null,null,null,null,null,null,null,null,null,null,null,null,null,0]
["47º",null,null,null,null,null,null,null,null,null,null,null,null,null,null,null,null,null,null,null,null,null,null,null,null,null,null,0]
["48º",null,null,null,null,null,null,null,null,null,null,null,null,null,null,null,null,null,null,null,null,null,null,null,null,null,null,0]
["49º",null,null,null,null,null,null,null,null,null,null,null,null,null,null,null,null,null,null,null,null,null,null,null,null,null,null,0]
["50º",null,null,null,null,null,null,null,null,null,null,null,null,null,null,null,null,null,null,null,null,null,null,null,null,null,null,0]
["51º",null,null,null,null,null,null,null,null,null,null,null,null,null,null,null,null,null,null,null,null,null,null,null,null,null,null,0]
["52º",null,null,null,null,null,null,null,null,null,null,null,null,null,null,null,null,null,null,null,null,null,null,null,null,null,null,0]
["53º",null,null,null,null,null,null,null,null,null,null,null,null,null,null,null,null,null,null,null,null,null,null,null,null,null,null,0]
["54º",null,null,null,null,null,null,null,null,null,null,null,null,null,null,null,null,null,null,null,null,null,null,null,null,null,null,0]
["55º",null,null,null,null,null,null,null,null,null,null,null,null,null,null,null,null,null,null,null,null,null,null,null,null,null,null,0]
["56º",null,null,null,null,null,null,null,null,null,null,null,null,null,null,null,null,null,null,null,null,null,null,null,null,null,null,0]
["57º",null,null,null,null,null,null,null,null,null,null,null,null,null,null,null,null,null,null,null,null,null,null,null,null,null,null,0]
["58º",null,null,null,null,null,null,null,null,null,null,null,null,null,null,null,null,null,null,null,null,null,null,null,null,null,null,0]
["59º",null,null,null,null,null,null,null,null,null,null,null,null,null,null,null,null,null,null,null,null,null,null,null,null,null,null,0]
["60º",null,null,null,null,null,null,null,null,null,null,null,null,null,null,null,null,null,null,null,null,null,null,null,null,null,null,0]
["61º",null,null,null,null,null,null,null,null,null,null,null,null,null,null,null,null,null,null,null,null,null,null,null,null,null,null,0]
["62º",null,null,null,null,null,null,null,null,null,null,null,null,null,null,null,null,null,null,null,null,null,null,null,null,null,null,0]
["63º",null,null,null,null,null,null,null,null,null,null,null,null,null,null,null,null,null,null,null,null,null,null,null,null,null,null,0]
["64º",null,null,null,null,null,null,null,null,null,null,null,null,null,null,null,null,null,null,null,null,null,null,null,null,null,null,0]
["65º",null,null,null,null,null,null,null,null,null,null,null,null,null,null,null,null,null,null,null,null,null,null,null,null,null,null,{"$f":"SUM(D75:AA75)","v":0}]
["66º",null,null,null,null,null,null,null,null,null,null,null,null,null,null,null,null,null,null,null,null,null,null,null,null,null,null,0]
["67º",null,null,null,null,null,null,null,null,null,null,null,null,null,null,null,null,null,null,null,null,null,null,null,null,null,null,0]
["68º",null,null,null,null,null,null,null,null,null,null,null,null,null,null,null,null,null,null,null,null,null,null,null,null,null,null,0]
["69º",null,null,null,null,null,null,null,null,null,null,null,null,null,null,null,null,null,null,null,null,null,null,null,null,null,null,0]
["70º",null,null,null,null,null,null,null,null,null,null,null,null,null,null,null,null,null,null,null,null,null,null,null,null,null,null,0]
["71º",null,null,null,null,null,null,null,null,null,null,null,null,null,null,null,null,null,null,null,null,null,null,null,null,null,null,0]
["72º",null,null,null,null,null,null,null,null,null,null,null,null,null,null,null,null,null,null,null,null,null,null,null,null,null,null,0]
["73º",null,null,null,null,null,null,null,null,null,null,null,null,null,null,null,null,null,null,null,null,null,null,null,null,null,null,0]
["74º",null,null,null,null,null,null,null,null,null,null,null,null,null,null,null,null,null,null,null,null,null,null,null,null,null,null,0]
["75º",null,null,null,null,null,null,null,null,null,null,null,null,null,null,null,null,null,null,null,null,null,null,null,null,null,null,0]
["76º",null,null,null,null,null,null,null,null,null,null,null,null,null,null,null,null,null,null,null,null,null,null,null,null,null,null,0]
["77º",null,null,null,null,null,null,null,null,null,null,null,null,null,null,null,null,null,null,null,null,null,null,null,null,null,null,0]
["78º",null,null,null,null,null,null,null,null,null,null,null,null,null,null,null,null,null,null,null,null,null,null,null,null,null,null,0]
["79º",null,null,null,null,null,null,null,null,null,null,null,null,null,null,null,null,null,null,null,null,null,null,null,null,null,null,0]
["80º",null,null,null,null,null,null,null,null,null,null,null,null,null,null,null,null,null,null,null,null,null,null,null,null,null,null,0]
["81º",null,null,null,null,null,null,null,null,null,null,null,null,null,null,null,null,null,null,null,null,null,null,null,null,null,null,0]
["82º",null,null,null,null,null,null,null,null,null,null,null,null,null,null,null,null,null,null,null,null,null,null,null,null,null,null,0]
["83º",null,null,null,null,null,null,null,null,null,null,null,null,null,null,null,null,null,null,null,null,null,null,null,null,null,null,0]
["84º",null,null,null,null,null,null,null,null,null,null,null,null,null,null,null,null,null,null,null,null,null,null,null,null,null,null,0]
["85º",null,null,null,null,null,null,null,null,null,null,null,null,null,null,null,null,null,null,null,null,null,null,null,null,null,null,0]
["86º",null,null,null,null,null,null,null,null,null,null,null,null,null,null,null,null,null,null,null,null,null,null,null,null,null,null,0]
["87º",null,null,null,null,null,null,null,null,null,null,null,null,null,null,null,null,null,null,null,null,null,null,null,null,null,null,0]
["88º",null,null,null,null,null,null,null,null,null,null,null,null,null,null,null,null,null,null,null,null,null,null,null,null,null,null,0]
["89º",null,null,null,null,null,null,null,null,null,null,null,null,null,null,null,null,null,null,null,null,null,null,null,null,null,null,0]
["90º",null,null,null,null,null,null,null,null,null,null,null,null,null,null,null,null,null,null,null,null,null,null,null,null,null,null,0]
[]
[null,"LEGENDA"]
[null,"BONIFICAÇÃO POR ETAPA PARTICIPADA"]
[null,"PARTICIPOU DE 1 ETAPA=",null,5]
[null,"PARTICIPOU DE 2 ETAPAS=",null,"1X+10"]
[null,"PARTICIPOU DE 3 ETAPAS=",null,"2X+15"]
[null,"PARTICIPOU DE 4 ETAPAS=",null,"3X+25"]
[null,"PARTICIPOU DE 5 ETAPAS",null,"4X+40"]
[null,"PARTICIPOU DE 6 ETAPAS=",null,"5X+50"]
[null,"BONUS RECORD",null,20]
[null,"PROVA EM BRANCO",null,"NÃO TEVE ELIMINATORIAS"]

{"sheet":"FLT","index":12,"n_rows":111,"n_cols":28,"rows_kept":111,"cut":false,"hidden":false,"merged":[[7,19,7,20],[7,21,7,22],[7,23,7,24],[7,25,7,26],[0,2,0,26],[1,2,1,26],[4,15,4,18],[6,15,6,18],[5,15,5,18],[6,3,6,6],[5,3,5,6],[4,3,4,6],[6,23,6,26],[5,23,5,26],[4,23,4,26],[6,19,6,22],[5,19,5,22],[8,0,8,1],[4,19,4,22],[6,11,6,14],[5,11,5,14],[4,11,4,14],[6,7,6,10],[5,7,5,10],[4,7,4,10],[7,3,7,4],[7,5,7,6],[7,7,7,8],[7,9,7,10],[7,11,7,12],[7,13,7,14],[7,15,7,16],[7,17,7,18],[102,1,102,7],[103,1,103,2],[104,1,104,2],[105,1,105,2],[110,3,110,7],[106,1,106,2],[107,1,107,2],[108,1,108,2],[109,1,109,2],[110,1,110,2]]}
[]
[null,null,"CLASSIFICAÇÃO OFICIAL DO CAMPEONATO BRASILEIRO 2013 DE ARRANCADA 402 M. "]
[]
[]
[null,null,"Evento","1º",null,null,null,"2º",null,null,null,"3º",null,null,null,"4º",null,null,null,"5º",null,null,null,"6º"]
[null,null,"Local","VELOPARK ",null,null,null,"Curitiba",null,null,null,"VELOPARK",null,null,null,"VELOPARK",null,null,null,null,null,null,null,"VELOPARK"]
[null,null,"Data","15 a 17/03",null,null,null,"03 a 05/05/2013",null,null,null,"16 a 18/08/2013",null,null,null,"27 a 29/09/2013",null,null,null,null,null,null,null,"17/11"]
[]
["FORÇA LIVRE TRASEIRA FLT",null,null,"bonus","bonus","bonus",null,"bonus","bonus","bonus",null,"bonus","bonus","bonus",null,"bonus","bonus","bonus",null,"bonus","bonus","bonus",null,"bonus","bonus","bonus"]
["POS","PILOTO","Nº","partic.","record","classif.","Prova","partic.","record","classif.","Prova","partic.","record","classif.","Prova","partic.","record","classif.","Prova","partic.","record","classif.","Prova","partic.","record","classif.","Prova","TOTAL"]
["1º","ANDERSON MALTEZO",11,"X",null,70,60,"X",null,70,null,"X",null,65,100,"X",null,75,100,null,null,null,null,50,null,130,160,{"$f":"SUM(D11:AA11)","v":880}]
["2º","ALEX SANDER SILVA",181,"X",null,75,100,"X",null,80,null,"X",20,80,60,0,null,0,0,null,null,null,null,40,null,140,0,595]
["3º","GLEISON MOREIRA",2,0,null,0,0,0,null,0,null,"X",null,75,80,"X",null,80,0,null,null,null,null,25,null,150,80,490]
["4º","MARCOS MARTINS",10,0,null,0,0,"X",null,65,null,0,null,0,0,0,null,0,0,null,null,null,null,15,null,160,200,440]
["5º","VALDEMIR BORBA",197,0,null,0,0,0,null,0,null,"X",null,70,60,0,null,0,0,null,null,null,null,15,null,120,120,385]
["6º","CRISTIAN F CASTRO",92,"X",null,80,80,10,20,75,null,0,null,0,0,0,null,0,0,null,null,null,null,0,null,0,0,265]
["7º","RAFAEL MORENO",3,0,null,0,0,0,null,0,null,0,null,0,0,0,null,0,0,null,null,null,null,5,null,110,0,115]
["8º",null,null,null,null,null,null,null,null,null,null,null,null,null,null,null,null,null,null,null,null,null,null,null,null,null,null,0]
["9º",null,null,null,null,null,null,null,null,null,null,null,null,null,null,null,null,null,null,null,null,null,null,null,null,null,null,0]
["10º",null,null,null,null,null,null,null,null,null,null,null,null,null,null,null,null,null,null,null,null,null,null,null,null,null,null,0]
["11º",null,null,null,null,null,null,null,null,null,null,null,null,null,null,null,null,null,null,null,null,null,null,null,null,null,null,0]
["12º",null,null,null,null,null,null,null,null,null,null,null,null,null,null,null,null,null,null,null,null,null,null,null,null,null,null,0]
["13º",null,null,null,null,null,null,null,null,null,null,null,null,null,null,null,null,null,null,null,null,null,null,null,null,null,null,0]
["14º",null,null,null,null,null,null,null,null,null,null,null,null,null,null,null,null,null,null,null,null,null,null,null,null,null,null,0]
["15º",null,null,null,null,null,null,null,null,null,null,null,null,null,null,null,null,null,null,null,null,null,null,null,null,null,null,0]
["16º",null,null,null,null,null,null,null,null,null,null,null,null,null,null,null,null,null,null,null,null,null,null,null,null,null,null,0]
["17º",null,null,null,null,null,null,null,null,null,null,null,null,null,null,null,null,null,null,null,null,null,null,null,null,null,null,0]
["18º",null,null,null,null,null,null,null,null,null,null,null,null,null,null,null,null,null,null,null,null,null,null,null,null,null,null,0]
["19º",null,null,null,null,null,null,null,null,null,null,null,null,null,null,null,null,null,null,null,null,null,null,null,null,null,null,0]
["20º",null,null,null,null,null,null,null,null,null,null,null,null,null,null,null,null,null,null,null,null,null,null,null,null,null,null,0]
["21º",null,null,null,null,null,null,null,null,null,null,null,null,null,null,null,null,null,null,null,null,null,null,null,null,null,null,0]
["22º",null,null,null,null,null,null,null,null,null,null,null,null,null,null,null,null,null,null,null,null,null,null,null,null,null,null,0]
["23º",null,null,null,null,null,null,null,null,null,null,null,null,null,null,null,null,null,null,null,null,null,null,null,null,null,null,0]
["24º",null,null,null,null,null,null,null,null,null,null,null,null,null,null,null,null,null,null,null,null,null,null,null,null,null,null,0]
["25º",null,null,null,null,null,null,null,null,null,null,null,null,null,null,null,null,null,null,null,null,null,null,null,null,null,null,0]
["26º",null,null,null,null,null,null,null,null,null,null,null,null,null,null,null,null,null,null,null,null,null,null,null,null,null,null,0]
["27º",null,null,null,null,null,null,null,null,null,null,null,null,null,null,null,null,null,null,null,null,null,null,null,null,null,null,0]
["28º",null,null,null,null,null,null,null,null,null,null,null,null,null,null,null,null,null,null,null,null,null,null,null,null,null,null,0]
["29º",null,null,null,null,null,null,null,null,null,null,null,null,null,null,null,null,null,null,null,null,null,null,null,null,null,null,0]
["30º",null,null,null,null,null,null,null,null,null,null,null,null,null,null,null,null,null,null,null,null,null,null,null,null,null,null,0]
["31º",null,null,null,null,null,null,null,null,null,null,null,null,null,null,null,null,null,null,null,null,null,null,null,null,null,null,0]
["32º",null,null,null,null,null,null,null,null,null,null,null,null,null,null,null,null,null,null,null,null,null,null,null,null,null,null,0]
["33º",null,null,null,null,null,null,null,null,null,null,null,null,null,null,null,null,null,null,null,null,null,null,null,null,null,null,{"$f":"SUM(D43:AA43)","v":0}]
["34º",null,null,null,null,null,null,null,null,null,null,null,null,null,null,null,null,null,null,null,null,null,null,null,null,null,null,0]
["35º",null,null,null,null,null,null,null,null,null,null,null,null,null,null,null,null,null,null,null,null,null,null,null,null,null,null,0]
["36º",null,null,null,null,null,null,null,null,null,null,null,null,null,null,null,null,null,null,null,null,null,null,null,null,null,null,0]
["37º",null,null,null,null,null,null,null,null,null,null,null,null,null,null,null,null,null,null,null,null,null,null,null,null,null,null,0]
["38º",null,null,null,null,null,null,null,null,null,null,null,null,null,null,null,null,null,null,null,null,null,null,null,null,null,null,0]
["39º",null,null,null,null,null,null,null,null,null,null,null,null,null,null,null,null,null,null,null,null,null,null,null,null,null,null,0]
["40º",null,null,null,null,null,null,null,null,null,null,null,null,null,null,null,null,null,null,null,null,null,null,null,null,null,null,0]
["41º",null,null,null,null,null,null,null,null,null,null,null,null,null,null,null,null,null,null,null,null,null,null,null,null,null,null,0]
["42º",null,null,null,null,null,null,null,null,null,null,null,null,null,null,null,null,null,null,null,null,null,null,null,null,null,null,0]
["43º",null,null,null,null,null,null,null,null,null,null,null,null,null,null,null,null,null,null,null,null,null,null,null,null,null,null,0]
["44º",null,null,null,null,null,null,null,null,null,null,null,null,null,null,null,null,null,null,null,null,null,null,null,null,null,null,0]
["45º",null,null,null,null,null,null,null,null,null,null,null,null,null,null,null,null,null,null,null,null,null,null,null,null,null,null,0]
["46º",null,null,null,null,null,null,null,null,null,null,null,null,null,null,null,null,null,null,null,null,null,null,null,null,null,null,0]
["47º",null,null,null,null,null,null,null,null,null,null,null,null,null,null,null,null,null,null,null,null,null,null,null,null,null,null,0]
["48º",null,null,null,null,null,null,null,null,null,null,null,null,null,null,null,null,null,null,null,null,null,null,null,null,null,null,0]
["49º",null,null,null,null,null,null,null,null,null,null,null,null,null,null,null,null,null,null,null,null,null,null,null,null,null,null,0]
["50º",null,null,null,null,null,null,null,null,null,null,null,null,null,null,null,null,null,null,null,null,null,null,null,null,null,null,0]
["51º",null,null,null,null,null,null,null,null,null,null,null,null,null,null,null,null,null,null,null,null,null,null,null,null,null,null,0]
["52º",null,null,null,null,null,null,null,null,null,null,null,null,null,null,null,null,null,null,null,null,null,null,null,null,null,null,0]
["53º",null,null,null,null,null,null,null,null,null,null,null,null,null,null,null,null,null,null,null,null,null,null,null,null,null,null,0]
["54º",null,null,null,null,null,null,null,null,null,null,null,null,null,null,null,null,null,null,null,null,null,null,null,null,null,null,0]
["55º",null,null,null,null,null,null,null,null,null,null,null,null,null,null,null,null,null,null,null,null,null,null,null,null,null,null,0]
["56º",null,null,null,null,null,null,null,null,null,null,null,null,null,null,null,null,null,null,null,null,null,null,null,null,null,null,0]
["57º",null,null,null,null,null,null,null,null,null,null,null,null,null,null,null,null,null,null,null,null,null,null,null,null,null,null,0]
["58º",null,null,null,null,null,null,null,null,null,null,null,null,null,null,null,null,null,null,null,null,null,null,null,null,null,null,0]
["59º",null,null,null,null,null,null,null,null,null,null,null,null,null,null,null,null,null,null,null,null,null,null,null,null,null,null,0]
["60º",null,null,null,null,null,null,null,null,null,null,null,null,null,null,null,null,null,null,null,null,null,null,null,null,null,null,0]
["61º",null,null,null,null,null,null,null,null,null,null,null,null,null,null,null,null,null,null,null,null,null,null,null,null,null,null,0]
["62º",null,null,null,null,null,null,null,null,null,null,null,null,null,null,null,null,null,null,null,null,null,null,null,null,null,null,0]
["63º",null,null,null,null,null,null,null,null,null,null,null,null,null,null,null,null,null,null,null,null,null,null,null,null,null,null,0]
["64º",null,null,null,null,null,null,null,null,null,null,null,null,null,null,null,null,null,null,null,null,null,null,null,null,null,null,0]
["65º",null,null,null,null,null,null,null,null,null,null,null,null,null,null,null,null,null,null,null,null,null,null,null,null,null,null,{"$f":"SUM(D75:AA75)","v":0}]
["66º",null,null,null,null,null,null,null,null,null,null,null,null,null,null,null,null,null,null,null,null,null,null,null,null,null,null,0]
["67º",null,null,null,null,null,null,null,null,null,null,null,null,null,null,null,null,null,null,null,null,null,null,null,null,null,null,0]
["68º",null,null,null,null,null,null,null,null,null,null,null,null,null,null,null,null,null,null,null,null,null,null,null,null,null,null,0]
["69º",null,null,null,null,null,null,null,null,null,null,null,null,null,null,null,null,null,null,null,null,null,null,null,null,null,null,0]
["70º",null,null,null,null,null,null,null,null,null,null,null,null,null,null,null,null,null,null,null,null,null,null,null,null,null,null,0]
["71º",null,null,null,null,null,null,null,null,null,null,null,null,null,null,null,null,null,null,null,null,null,null,null,null,null,null,0]
["72º",null,null,null,null,null,null,null,null,null,null,null,null,null,null,null,null,null,null,null,null,null,null,null,null,null,null,0]
["73º",null,null,null,null,null,null,null,null,null,null,null,null,null,null,null,null,null,null,null,null,null,null,null,null,null,null,0]
["74º",null,null,null,null,null,null,null,null,null,null,null,null,null,null,null,null,null,null,null,null,null,null,null,null,null,null,0]
["75º",null,null,null,null,null,null,null,null,null,null,null,null,null,null,null,null,null,null,null,null,null,null,null,null,null,null,0]
["76º",null,null,null,null,null,null,null,null,null,null,null,null,null,null,null,null,null,null,null,null,null,null,null,null,null,null,0]
["77º",null,null,null,null,null,null,null,null,null,null,null,null,null,null,null,null,null,null,null,null,null,null,null,null,null,null,0]
["78º",null,null,null,null,null,null,null,null,null,null,null,null,null,null,null,null,null,null,null,null,null,null,null,null,null,null,0]
["79º",null,null,null,null,null,null,null,null,null,null,null,null,null,null,null,null,null,null,null,null,null,null,null,null,null,null,0]
["80º",null,null,null,null,null,null,null,null,null,null,null,null,null,null,null,null,null,null,null,null,null,null,null,null,null,null,0]
["81º",null,null,null,null,null,null,null,null,null,null,null,null,null,null,null,null,null,null,null,null,null,null,null,null,null,null,0]
["82º",null,null,null,null,null,null,null,null,null,null,null,null,null,null,null,null,null,null,null,null,null,null,null,null,null,null,0]
["83º",null,null,null,null,null,null,null,null,null,null,null,null,null,null,null,null,null,null,null,null,null,null,null,null,null,null,0]
["84º",null,null,null,null,null,null,null,null,null,null,null,null,null,null,null,null,null,null,null,null,null,null,null,null,null,null,0]
["85º",null,null,null,null,null,null,null,null,null,null,null,null,null,null,null,null,null,null,null,null,null,null,null,null,null,null,0]
["86º",null,null,null,null,null,null,null,null,null,null,null,null,null,null,null,null,null,null,null,null,null,null,null,null,null,null,0]
["87º",null,null,null,null,null,null,null,null,null,null,null,null,null,null,null,null,null,null,null,null,null,null,null,null,null,null,0]
["88º",null,null,null,null,null,null,null,null,null,null,null,null,null,null,null,null,null,null,null,null,null,null,null,null,null,null,0]
["89º",null,null,null,null,null,null,null,null,null,null,null,null,null,null,null,null,null,null,null,null,null,null,null,null,null,null,0]
["90º",null,null,null,null,null,null,null,null,null,null,null,null,null,null,null,null,null,null,null,null,null,null,null,null,null,null,0]
[]
[null,"LEGENDA"]
[null,"BONIFICAÇÃO POR ETAPA PARTICIPADA"]
[null,"PARTICIPOU DE 1 ETAPA=",null,5]
[null,"PARTICIPOU DE 2 ETAPAS=",null,"1X+10"]
[null,"PARTICIPOU DE 3 ETAPAS=",null,"2X+15"]
[null,"PARTICIPOU DE 4 ETAPAS=",null,"3X+25"]
[null,"PARTICIPOU DE 5 ETAPAS",null,"4X+40"]
[null,"PARTICIPOU DE 6 ETAPAS=",null,"5X+50"]
[null,"BONUS RECORD",null,20]
[null,"PROVA EM BRANCO",null,"NÃO TEVE ELIMINATORIAS"]

{"sheet":"XTM","index":13,"n_rows":111,"n_cols":28,"rows_kept":111,"cut":false,"hidden":false,"merged":[[7,23,7,24],[7,17,7,18],[7,25,7,26],[0,2,0,26],[1,2,1,26],[4,15,4,18],[6,15,6,18],[5,15,5,18],[6,3,6,6],[5,3,5,6],[4,3,4,6],[6,23,6,26],[5,23,5,26],[4,23,4,26],[6,19,6,22],[102,1,102,7],[103,1,103,2],[5,19,5,22],[8,0,8,1],[7,3,7,4],[7,5,7,6],[7,7,7,8],[7,9,7,10],[7,11,7,12],[7,13,7,14],[7,15,7,16],[7,19,7,20],[7,21,7,22],[5,11,5,14],[6,7,6,10],[5,7,5,10],[4,19,4,22],[6,11,6,14],[4,11,4,14],[4,7,4,10]]}
[]
[null,null,"CLASSIFICAÇÃO OFICIAL DO CAMPEONATO BRASILEIRO 2013 DE ARRANCADA 402 M. "]
[]
[]
[null,null,"Evento","1º",null,null,null,"2º",null,null,null,"3º",null,null,null,"4º",null,null,null,"5º",null,null,null,"6º"]
[null,null,"Local","VELOPARK",null,null,null,"Curitiba",null,null,null,"VELOPARK",null,null,null,"VELOPARK",null,null,null,null,null,null,null,"VELOPARK"]
[null,null,"Data","15 a 17/03",null,null,null,"03 a 05/05/2013",null,null,null,"16 a 18/08/2013",null,null,null,"27 a 29/09/2013",null,null,null,null,null,null,null,"17/11"]
[]
["XTM 10.5",null,null,"bonus","bonus","bonus",null,"bonus","bonus","bonus",null,"bonus","bonus","bonus",null,"bonus","bonus","bonus",null,"bonus","bonus","bonus",null,"bonus","bonus","bonus"]
["POS","PILOTO","Nº","partic.","record","classif.","Prova","partic.","record","classif.","Prova","partic.","record","classif.","Prova","partic.","record","classif.","Prova","partic.","record","classif.","Prova","partic.","record","classif.","Prova","TOTAL"]
["1º","CRISTIANO JULIO",331,"X",null,80,100,"X",null,75,null,"X",null,80,100,"X",null,65,80,null,null,null,null,50,null,140,80,{"$f":"SUM(D11:AA11)","v":850}]
["2º","DANIEL RANIOWSKI",17,"X",null,70,40,"X",null,80,null,0,null,0,0,"X",null,55,0,null,null,null,null,40,null,130,160,575]
["3º","RAFAEL ANTONETTI",77,"X",null,50,0,0,null,0,null,"X",null,60,40,"X",20,80,100,null,null,null,null,40,null,150,0,540]
["4º","GELSON DIAS SILVA",11,"X",null,40,0,0,null,0,null,"X",null,70,60,0,null,0,0,null,null,null,null,25,null,120,80,395]
["5º","CARLOS DAUD",245,0,null,0,0,0,null,0,null,0,null,0,0,0,null,0,0,null,null,null,null,5,20,160,200,385]
["6º","FABIO COSTA",21,0,null,0,0,"X",null,70,null,"X",null,65,0,15,null,75,0,null,null,null,null,0,null,0,0,225]
["7º","VITOR ANERIS",88,0,null,0,0,0,null,0,null,0,null,0,0,0,null,0,0,null,null,null,null,5,null,110,80,195]
["8º","RICARDO M. VAZ",471,5,null,75,80,0,null,0,null,0,null,0,0,0,null,0,0,null,null,null,null,0,null,0,0,160]
["9º","ALEXANDRE LOURENÇO",44,0,null,0,0,0,null,0,null,5,null,75,60,0,null,0,0,null,null,null,null,0,null,0,0,140]
["10º","SANDRO BRUNO",234,5,null,65,60,0,null,0,null,0,null,0,0,0,null,0,0,null,null,null,null,0,null,0,0,130]
["11º","PEDRO NUNES",111,0,null,0,0,0,null,0,null,0,null,0,0,5,null,60,60,null,null,null,null,0,null,0,0,125]
["12º","CRISTIAN CORDEIRO",333,0,null,0,0,0,null,0,null,0,null,0,0,5,null,70,40,null,null,null,null,0,null,0,0,115]
["13º","ADRIANO REIS",74,0,null,0,0,5,null,65,null,0,null,0,0,0,null,0,0,null,null,null,null,0,null,0,0,70]
["14º","FLORIANO SOEIRO",47,5,null,60,0,0,null,0,null,0,null,0,0,0,null,0,0,null,null,null,null,0,null,0,0,65]
["15º","CLEVERSON BERTOLIN",111,0,null,0,0,0,null,0,null,5,null,55,0,0,null,0,0,null,null,null,null,0,null,0,0,60]
["16º","GUSTAVO MONTEIRO",84,5,null,55,0,0,null,0,null,0,null,0,0,0,null,0,0,null,null,null,null,0,null,0,0,60]
["17º","JEAN DOLBERTGH",2501,0,null,0,0,5,null,55,null,0,null,0,0,0,null,0,0,null,null,null,null,0,null,0,0,60]
["18º",null,null,null,null,null,null,null,null,null,null,null,null,null,null,null,null,null,null,null,null,null,null,null,null,null,null,0]
["19º",null,null,null,null,null,null,null,null,null,null,null,null,null,null,null,null,null,null,null,null,null,null,null,null,null,null,0]
["20º",null,null,null,null,null,null,null,null,null,null,null,null,null,null,null,null,null,null,null,null,null,null,null,null,null,null,0]
["21º",null,null,null,null,null,null,null,null,null,null,null,null,null,null,null,null,null,null,null,null,null,null,null,null,null,null,0]
["22º",null,null,null,null,null,null,null,null,null,null,null,null,null,null,null,null,null,null,null,null,null,null,null,null,null,null,0]
["23º",null,null,null,null,null,null,null,null,null,null,null,null,null,null,null,null,null,null,null,null,null,null,null,null,null,null,0]
["24º",null,null,null,null,null,null,null,null,null,null,null,null,null,null,null,null,null,null,null,null,null,null,null,null,null,null,0]
["25º",null,null,null,null,null,null,null,null,null,null,null,null,null,null,null,null,null,null,null,null,null,null,null,null,null,null,0]
["26º",null,null,null,null,null,null,null,null,null,null,null,null,null,null,null,null,null,null,null,null,null,null,null,null,null,null,0]
["27º",null,null,null,null,null,null,null,null,null,null,null,null,null,null,null,null,null,null,null,null,null,null,null,null,null,null,0]
["28º",null,null,null,null,null,null,null,null,null,null,null,null,null,null,null,null,null,null,null,null,null,null,null,null,null,null,0]
["29º",null,null,null,null,null,null,null,null,null,null,null,null,null,null,null,null,null,null,null,null,null,null,null,null,null,null,0]
["30º",null,null,null,null,null,null,null,null,null,null,null,null,null,null,null,null,null,null,null,null,null,null,null,null,null,null,0]
["31º",null,null,null,null,null,null,null,null,null,null,null,null,null,null,null,null,null,null,null,null,null,null,null,null,null,null,0]
["32º",null,null,null,null,null,null,null,null,null,null,null,null,null,null,null,null,null,null,null,null,null,null,null,null,null,null,0]
["33º",null,null,null,null,null,null,null,null,null,null,null,null,null,null,null,null,null,null,null,null,null,null,null,null,null,null,{"$f":"SUM(D43:AA43)","v":0}]
["34º",null,null,null,null,null,null,null,null,null,null,null,null,null,null,null,null,null,null,null,null,null,null,null,null,null,null,0]
["35º",null,null,null,null,null,null,null,null,null,null,null,null,null,null,null,null,null,null,null,null,null,null,null,null,null,null,0]
["36º",null,null,null,null,null,null,null,null,null,null,null,null,null,null,null,null,null,null,null,null,null,null,null,null,null,null,0]
["37º",null,null,null,null,null,null,null,null,null,null,null,null,null,null,null,null,null,null,null,null,null,null,null,null,null,null,0]
["38º",null,null,null,null,null,null,null,null,null,null,null,null,null,null,null,null,null,null,null,null,null,null,null,null,null,null,0]
["39º",null,null,null,null,null,null,null,null,null,null,null,null,null,null,null,null,null,null,null,null,null,null,null,null,null,null,0]
["40º",null,null,null,null,null,null,null,null,null,null,null,null,null,null,null,null,null,null,null,null,null,null,null,null,null,null,0]
["41º",null,null,null,null,null,null,null,null,null,null,null,null,null,null,null,null,null,null,null,null,null,null,null,null,null,null,0]
["42º",null,null,null,null,null,null,null,null,null,null,null,null,null,null,null,null,null,null,null,null,null,null,null,null,null,null,0]
["43º",null,null,null,null,null,null,null,null,null,null,null,null,null,null,null,null,null,null,null,null,null,null,null,null,null,null,0]
["44º",null,null,null,null,null,null,null,null,null,null,null,null,null,null,null,null,null,null,null,null,null,null,null,null,null,null,0]
["45º",null,null,null,null,null,null,null,null,null,null,null,null,null,null,null,null,null,null,null,null,null,null,null,null,null,null,0]
["46º",null,null,null,null,null,null,null,null,null,null,null,null,null,null,null,null,null,null,null,null,null,null,null,null,null,null,0]
["47º",null,null,null,null,null,null,null,null,null,null,null,null,null,null,null,null,null,null,null,null,null,null,null,null,null,null,0]
["48º",null,null,null,null,null,null,null,null,null,null,null,null,null,null,null,null,null,null,null,null,null,null,null,null,null,null,0]
["49º",null,null,null,null,null,null,null,null,null,null,null,null,null,null,null,null,null,null,null,null,null,null,null,null,null,null,0]
["50º",null,null,null,null,null,null,null,null,null,null,null,null,null,null,null,null,null,null,null,null,null,null,null,null,null,null,0]
["51º",null,null,null,null,null,null,null,null,null,null,null,null,null,null,null,null,null,null,null,null,null,null,null,null,null,null,0]
["52º",null,null,null,null,null,null,null,null,null,null,null,null,null,null,null,null,null,null,null,null,null,null,null,null,null,null,0]
["53º",null,null,null,null,null,null,null,null,null,null,null,null,null,null,null,null,null,null,null,null,null,null,null,null,null,null,0]
["54º",null,null,null,null,null,null,null,null,null,null,null,null,null,null,null,null,null,null,null,null,null,null,null,null,null,null,0]
["55º",null,null,null,null,null,null,null,null,null,null,null,null,null,null,null,null,null,null,null,null,null,null,null,null,null,null,0]
["56º",null,null,null,null,null,null,null,null,null,null,null,null,null,null,null,null,null,null,null,null,null,null,null,null,null,null,0]
["57º",null,null,null,null,null,null,null,null,null,null,null,null,null,null,null,null,null,null,null,null,null,null,null,null,null,null,0]
["58º",null,null,null,null,null,null,null,null,null,null,null,null,null,null,null,null,null,null,null,null,null,null,null,null,null,null,0]
["59º",null,null,null,null,null,null,null,null,null,null,null,null,null,null,null,null,null,null,null,null,null,null,null,null,null,null,0]
["60º",null,null,null,null,null,null,null,null,null,null,null,null,null,null,null,null,null,null,null,null,null,null,null,null,null,null,0]
["61º",null,null,null,null,null,null,null,null,null,null,null,null,null,null,null,null,null,null,null,null,null,null,null,null,null,null,0]
["62º",null,null,null,null,null,null,null,null,null,null,null,null,null,null,null,null,null,null,null,null,null,null,null,null,null,null,0]
["63º",null,null,null,null,null,null,null,null,null,null,null,null,null,null,null,null,null,null,null,null,null,null,null,null,null,null,0]
["64º",null,null,null,null,null,null,null,null,null,null,null,null,null,null,null,null,null,null,null,null,null,null,null,null,null,null,0]
["65º",null,null,null,null,null,null,null,null,null,null,null,null,null,null,null,null,null,null,null,null,null,null,null,null,null,null,{"$f":"SUM(D75:AA75)","v":0}]
["66º",null,null,null,null,null,null,null,null,null,null,null,null,null,null,null,null,null,null,null,null,null,null,null,null,null,null,0]
["67º",null,null,null,null,null,null,null,null,null,null,null,null,null,null,null,null,null,null,null,null,null,null,null,null,null,null,0]
["68º",null,null,null,null,null,null,null,null,null,null,null,null,null,null,null,null,null,null,null,null,null,null,null,null,null,null,0]
["69º",null,null,null,null,null,null,null,null,null,null,null,null,null,null,null,null,null,null,null,null,null,null,null,null,null,null,0]
["70º",null,null,null,null,null,null,null,null,null,null,null,null,null,null,null,null,null,null,null,null,null,null,null,null,null,null,0]
["71º",null,null,null,null,null,null,null,null,null,null,null,null,null,null,null,null,null,null,null,null,null,null,null,null,null,null,0]
["72º",null,null,null,null,null,null,null,null,null,null,null,null,null,null,null,null,null,null,null,null,null,null,null,null,null,null,0]
["73º",null,null,null,null,null,null,null,null,null,null,null,null,null,null,null,null,null,null,null,null,null,null,null,null,null,null,0]
["74º",null,null,null,null,null,null,null,null,null,null,null,null,null,null,null,null,null,null,null,null,null,null,null,null,null,null,0]
["75º",null,null,null,null,null,null,null,null,null,null,null,null,null,null,null,null,null,null,null,null,null,null,null,null,null,null,0]
["76º",null,null,null,null,null,null,null,null,null,null,null,null,null,null,null,null,null,null,null,null,null,null,null,null,null,null,0]
["77º",null,null,null,null,null,null,null,null,null,null,null,null,null,null,null,null,null,null,null,null,null,null,null,null,null,null,0]
["78º",null,null,null,null,null,null,null,null,null,null,null,null,null,null,null,null,null,null,null,null,null,null,null,null,null,null,0]
["79º",null,null,null,null,null,null,null,null,null,null,null,null,null,null,null,null,null,null,null,null,null,null,null,null,null,null,0]
["80º",null,null,null,null,null,null,null,null,null,null,null,null,null,null,null,null,null,null,null,null,null,null,null,null,null,null,0]
["81º",null,null,null,null,null,null,null,null,null,null,null,null,null,null,null,null,null,null,null,null,null,null,null,null,null,null,0]
["82º",null,null,null,null,null,null,null,null,null,null,null,null,null,null,null,null,null,null,null,null,null,null,null,null,null,null,0]
["83º",null,null,null,null,null,null,null,null,null,null,null,null,null,null,null,null,null,null,null,null,null,null,null,null,null,null,0]
["84º",null,null,null,null,null,null,null,null,null,null,null,null,null,null,null,null,null,null,null,null,null,null,null,null,null,null,0]
["85º",null,null,null,null,null,null,null,null,null,null,null,null,null,null,null,null,null,null,null,null,null,null,null,null,null,null,0]
["86º",null,null,null,null,null,null,null,null,null,null,null,null,null,null,null,null,null,null,null,null,null,null,null,null,null,null,0]
["87º",null,null,null,null,null,null,null,null,null,null,null,null,null,null,null,null,null,null,null,null,null,null,null,null,null,null,0]
["88º",null,null,null,null,null,null,null,null,null,null,null,null,null,null,null,null,null,null,null,null,null,null,null,null,null,null,0]
["89º",null,null,null,null,null,null,null,null,null,null,null,null,null,null,null,null,null,null,null,null,null,null,null,null,null,null,0]
["90º",null,null,null,null,null,null,null,null,null,null,null,null,null,null,null,null,null,null,null,null,null,null,null,null,null,null,0]
[]
[null,"LEGENDA"]
[null,"BONIFICAÇÃO POR ETAPA PARTICIPADA"]
[null,"PARTICIPOU DE 1 ETAPA=",null,5]
[null,"PARTICIPOU DE 2 ETAPAS=",null,"1X+10"]
[null,"PARTICIPOU DE 3 ETAPAS=",null,"2X+15"]
[null,"PARTICIPOU DE 4 ETAPAS=",null,"3X+25"]
[null,"PARTICIPOU DE 5 ETAPAS",null,"4X+40"]
[null,"PARTICIPOU DE 6 ETAPAS=",null,"5X+50"]
[null,"BONUS RECORD",null,20]
[null,"PROVA EM BRANCO",null,"NÃO TEVE ELIMINATORIAS"]

{"sheet":"PM","index":14,"n_rows":111,"n_cols":28,"rows_kept":111,"cut":false,"hidden":false,"merged":[[7,19,7,20],[7,21,7,22],[7,23,7,24],[7,25,7,26],[0,2,0,26],[1,2,1,26],[4,15,4,18],[6,15,6,18],[5,15,5,18],[6,3,6,6],[5,3,5,6],[4,3,4,6],[6,23,6,26],[5,23,5,26],[4,23,4,26],[6,19,6,22],[5,19,5,22],[8,0,8,1],[4,19,4,22],[6,11,6,14],[5,11,5,14],[4,11,4,14],[6,7,6,10],[5,7,5,10],[4,7,4,10],[7,3,7,4],[7,5,7,6],[7,7,7,8],[7,9,7,10],[7,11,7,12],[7,13,7,14],[7,15,7,16],[7,17,7,18],[102,1,102,7],[103,1,103,2],[104,1,104,2],[105,1,105,2],[110,3,110,7],[106,1,106,2],[107,1,107,2],[108,1,108,2],[109,1,109,2],[110,1,110,2]]}
[]
[null,null,"CLASSIFICAÇÃO OFICIAL DO CAMPEONATO BRASILEIRO 2013 DE ARRANCADA 402 M. "]
[]
[]
[null,null,"Evento","1º",null,null,null,"2º",null,null,null,"3º",null,null,null,"4º",null,null,null,"5º",null,null,null,"6º"]
[null,null,"Local","VELOPARK",null,null,null,"Curitiba",null,null,null,"VELOPARK",null,null,null,"VELOPARK",null,null,null,null,null,null,null,"VELOPARK"]
[null,null,"Data","15 a 17/03",null,null,null,"03 a 05/05/2013",null,null,null,"16 a 18/08/2013",null,null,null,"27 a 29/09/2013",null,null,null,null,null,null,null,"17/11"]
[]
["PRO MOD",null,null,"bonus","bonus","bonus",null,"bonus","bonus","bonus",null,"bonus","bonus","bonus",null,"bonus","bonus","bonus",null,"bonus","bonus","bonus",null,"bonus","bonus","bonus"]
["POS","PILOTO","Nº","partic.","record","classif.","Prova","partic.","record","classif.","Prova","partic.","record","classif.","Prova","partic.","record","classif.","Prova","partic.","record","classif.","Prova","partic.","record","classif.","Prova","TOTAL"]
["1º","RODERJAN BUSATO",174,"X",null,80,100,"X",null,80,null,"X",null,80,100,"X",null,80,100,null,null,null,null,50,null,160,200,{"$f":"SUM(D11:AA11)","v":1030}]
["2º","ANTONIO ROSSALVO",777,5,null,75,80,0,null,0,null,0,null,0,0,0,null,0,0,null,null,null,null,0,null,0,0,160]
["3º","FABIO COSTA",21,0,null,0,0,5,null,75,null,0,null,0,0,0,null,0,0,null,null,null,null,0,null,0,0,80]
["4º","ANDREY JASPER",75,0,null,0,0,5,null,70,null,0,null,0,0,0,null,0,0,null,null,null,null,0,null,0,0,75]
["5º","RAMON TOMAS",22,0,null,0,0,5,null,65,null,0,null,0,0,0,null,0,0,null,null,null,null,0,null,0,0,70]
["6º","ALBERTO AIRES",10,0,null,0,0,5,null,60,null,0,null,0,0,0,null,0,0,null,null,null,null,0,null,0,0,65]
["7º",null,null,0,null,null,null,null,null,null,null,null,null,null,null,null,null,null,null,null,null,null,null,null,null,null,null,0]
["8º",null,null,null,null,null,null,null,null,null,null,null,null,null,null,null,null,null,null,null,null,null,null,null,null,null,null,0]
["9º",null,null,null,null,null,null,null,null,null,null,null,null,null,null,null,null,null,null,null,null,null,null,null,null,null,null,0]
["10º",null,null,null,null,null,null,null,null,null,null,null,null,null,null,null,null,null,null,null,null,null,null,null,null,null,null,0]
["11º",null,null,null,null,null,null,null,null,null,null,null,null,null,null,null,null,null,null,null,null,null,null,null,null,null,null,0]
["12º",null,null,null,null,null,null,null,null,null,null,null,null,null,null,null,null,null,null,null,null,null,null,null,null,null,null,0]
["13º",null,null,null,null,null,null,null,null,null,null,null,null,null,null,null,null,null,null,null,null,null,null,null,null,null,null,0]
["14º",null,null,null,null,null,null,null,null,null,null,null,null,null,null,null,null,null,null,null,null,null,null,null,null,null,null,0]
["15º",null,null,null,null,null,null,null,null,null,null,null,null,null,null,null,null,null,null,null,null,null,null,null,null,null,null,0]
["16º",null,null,null,null,null,null,null,null,null,null,null,null,null,null,null,null,null,null,null,null,null,null,null,null,null,null,0]
["17º",null,null,null,null,null,null,null,null,null,null,null,null,null,null,null,null,null,null,null,null,null,null,null,null,null,null,0]
["18º",null,null,null,null,null,null,null,null,null,null,null,null,null,null,null,null,null,null,null,null,null,null,null,null,null,null,0]
["19º",null,null,null,null,null,null,null,null,null,null,null,null,null,null,null,null,null,null,null,null,null,null,null,null,null,null,0]
["20º",null,null,null,null,null,null,null,null,null,null,null,null,null,null,null,null,null,null,null,null,null,null,null,null,null,null,0]
["21º",null,null,null,null,null,null,null,null,null,null,null,null,null,null,null,null,null,null,null,null,null,null,null,null,null,null,0]
["22º",null,null,null,null,null,null,null,null,null,null,null,null,null,null,null,null,null,null,null,null,null,null,null,null,null,null,0]
["23º",null,null,null,null,null,null,null,null,null,null,null,null,null,null,null,null,null,null,null,null,null,null,null,null,null,null,0]
["24º",null,null,null,null,null,null,null,null,null,null,null,null,null,null,null,null,null,null,null,null,null,null,null,null,null,null,0]
["25º",null,null,null,null,null,null,null,null,null,null,null,null,null,null,null,null,null,null,null,null,null,null,null,null,null,null,0]
["26º",null,null,null,null,null,null,null,null,null,null,null,null,null,null,null,null,null,null,null,null,null,null,null,null,null,null,0]
["27º",null,null,null,null,null,null,null,null,null,null,null,null,null,null,null,null,null,null,null,null,null,null,null,null,null,null,0]
["28º",null,null,null,null,null,null,null,null,null,null,null,null,null,null,null,null,null,null,null,null,null,null,null,null,null,null,0]
["29º",null,null,null,null,null,null,null,null,null,null,null,null,null,null,null,null,null,null,null,null,null,null,null,null,null,null,0]
["30º",null,null,null,null,null,null,null,null,null,null,null,null,null,null,null,null,null,null,null,null,null,null,null,null,null,null,0]
["31º",null,null,null,null,null,null,null,null,null,null,null,null,null,null,null,null,null,null,null,null,null,null,null,null,null,null,0]
["32º",null,null,null,null,null,null,null,null,null,null,null,null,null,null,null,null,null,null,null,null,null,null,null,null,null,null,0]
["33º",null,null,null,null,null,null,null,null,null,null,null,null,null,null,null,null,null,null,null,null,null,null,null,null,null,null,{"$f":"SUM(D43:AA43)","v":0}]
["34º",null,null,null,null,null,null,null,null,null,null,null,null,null,null,null,null,null,null,null,null,null,null,null,null,null,null,0]
["35º",null,null,null,null,null,null,null,null,null,null,null,null,null,null,null,null,null,null,null,null,null,null,null,null,null,null,0]
["36º",null,null,null,null,null,null,null,null,null,null,null,null,null,null,null,null,null,null,null,null,null,null,null,null,null,null,0]
["37º",null,null,null,null,null,null,null,null,null,null,null,null,null,null,null,null,null,null,null,null,null,null,null,null,null,null,0]
["38º",null,null,null,null,null,null,null,null,null,null,null,null,null,null,null,null,null,null,null,null,null,null,null,null,null,null,0]
["39º",null,null,null,null,null,null,null,null,null,null,null,null,null,null,null,null,null,null,null,null,null,null,null,null,null,null,0]
["40º",null,null,null,null,null,null,null,null,null,null,null,null,null,null,null,null,null,null,null,null,null,null,null,null,null,null,0]
["41º",null,null,null,null,null,null,null,null,null,null,null,null,null,null,null,null,null,null,null,null,null,null,null,null,null,null,0]
["42º",null,null,null,null,null,null,null,null,null,null,null,null,null,null,null,null,null,null,null,null,null,null,null,null,null,null,0]
["43º",null,null,null,null,null,null,null,null,null,null,null,null,null,null,null,null,null,null,null,null,null,null,null,null,null,null,0]
["44º",null,null,null,null,null,null,null,null,null,null,null,null,null,null,null,null,null,null,null,null,null,null,null,null,null,null,0]
["45º",null,null,null,null,null,null,null,null,null,null,null,null,null,null,null,null,null,null,null,null,null,null,null,null,null,null,0]
["46º",null,null,null,null,null,null,null,null,null,null,null,null,null,null,null,null,null,null,null,null,null,null,null,null,null,null,0]
["47º",null,null,null,null,null,null,null,null,null,null,null,null,null,null,null,null,null,null,null,null,null,null,null,null,null,null,0]
["48º",null,null,null,null,null,null,null,null,null,null,null,null,null,null,null,null,null,null,null,null,null,null,null,null,null,null,0]
["49º",null,null,null,null,null,null,null,null,null,null,null,null,null,null,null,null,null,null,null,null,null,null,null,null,null,null,0]
["50º",null,null,null,null,null,null,null,null,null,null,null,null,null,null,null,null,null,null,null,null,null,null,null,null,null,null,0]
["51º",null,null,null,null,null,null,null,null,null,null,null,null,null,null,null,null,null,null,null,null,null,null,null,null,null,null,0]
["52º",null,null,null,null,null,null,null,null,null,null,null,null,null,null,null,null,null,null,null,null,null,null,null,null,null,null,0]
["53º",null,null,null,null,null,null,null,null,null,null,null,null,null,null,null,null,null,null,null,null,null,null,null,null,null,null,0]
["54º",null,null,null,null,null,null,null,null,null,null,null,null,null,null,null,null,null,null,null,null,null,null,null,null,null,null,0]
["55º",null,null,null,null,null,null,null,null,null,null,null,null,null,null,null,null,null,null,null,null,null,null,null,null,null,null,0]
["56º",null,null,null,null,null,null,null,null,null,null,null,null,null,null,null,null,null,null,null,null,null,null,null,null,null,null,0]
["57º",null,null,null,null,null,null,null,null,null,null,null,null,null,null,null,null,null,null,null,null,null,null,null,null,null,null,0]
["58º",null,null,null,null,null,null,null,null,null,null,null,null,null,null,null,null,null,null,null,null,null,null,null,null,null,null,0]
["59º",null,null,null,null,null,null,null,null,null,null,null,null,null,null,null,null,null,null,null,null,null,null,null,null,null,null,0]
["60º",null,null,null,null,null,null,null,null,null,null,null,null,null,null,null,null,null,null,null,null,null,null,null,null,null,null,0]
["61º",null,null,null,null,null,null,null,null,null,null,null,null,null,null,null,null,null,null,null,null,null,null,null,null,null,null,0]
["62º",null,null,null,null,null,null,null,null,null,null,null,null,null,null,null,null,null,null,null,null,null,null,null,null,null,null,0]
["63º",null,null,null,null,null,null,null,null,null,null,null,null,null,null,null,null,null,null,null,null,null,null,null,null,null,null,0]
["64º",null,null,null,null,null,null,null,null,null,null,null,null,null,null,null,null,null,null,null,null,null,null,null,null,null,null,0]
["65º",null,null,null,null,null,null,null,null,null,null,null,null,null,null,null,null,null,null,null,null,null,null,null,null,null,null,{"$f":"SUM(D75:AA75)","v":0}]
["66º",null,null,null,null,null,null,null,null,null,null,null,null,null,null,null,null,null,null,null,null,null,null,null,null,null,null,0]
["67º",null,null,null,null,null,null,null,null,null,null,null,null,null,null,null,null,null,null,null,null,null,null,null,null,null,null,0]
["68º",null,null,null,null,null,null,null,null,null,null,null,null,null,null,null,null,null,null,null,null,null,null,null,null,null,null,0]
["69º",null,null,null,null,null,null,null,null,null,null,null,null,null,null,null,null,null,null,null,null,null,null,null,null,null,null,0]
["70º",null,null,null,null,null,null,null,null,null,null,null,null,null,null,null,null,null,null,null,null,null,null,null,null,null,null,0]
["71º",null,null,null,null,null,null,null,null,null,null,null,null,null,null,null,null,null,null,null,null,null,null,null,null,null,null,0]
["72º",null,null,null,null,null,null,null,null,null,null,null,null,null,null,null,null,null,null,null,null,null,null,null,null,null,null,0]
["73º",null,null,null,null,null,null,null,null,null,null,null,null,null,null,null,null,null,null,null,null,null,null,null,null,null,null,0]
["74º",null,null,null,null,null,null,null,null,null,null,null,null,null,null,null,null,null,null,null,null,null,null,null,null,null,null,0]
["75º",null,null,null,null,null,null,null,null,null,null,null,null,null,null,null,null,null,null,null,null,null,null,null,null,null,null,0]
["76º",null,null,null,null,null,null,null,null,null,null,null,null,null,null,null,null,null,null,null,null,null,null,null,null,null,null,0]
["77º",null,null,null,null,null,null,null,null,null,null,null,null,null,null,null,null,null,null,null,null,null,null,null,null,null,null,0]
["78º",null,null,null,null,null,null,null,null,null,null,null,null,null,null,null,null,null,null,null,null,null,null,null,null,null,null,0]
["79º",null,null,null,null,null,null,null,null,null,null,null,null,null,null,null,null,null,null,null,null,null,null,null,null,null,null,0]
["80º",null,null,null,null,null,null,null,null,null,null,null,null,null,null,null,null,null,null,null,null,null,null,null,null,null,null,0]
["81º",null,null,null,null,null,null,null,null,null,null,null,null,null,null,null,null,null,null,null,null,null,null,null,null,null,null,0]
["82º",null,null,null,null,null,null,null,null,null,null,null,null,null,null,null,null,null,null,null,null,null,null,null,null,null,null,0]
["83º",null,null,null,null,null,null,null,null,null,null,null,null,null,null,null,null,null,null,null,null,null,null,null,null,null,null,0]
["84º",null,null,null,null,null,null,null,null,null,null,null,null,null,null,null,null,null,null,null,null,null,null,null,null,null,null,0]
["85º",null,null,null,null,null,null,null,null,null,null,null,null,null,null,null,null,null,null,null,null,null,null,null,null,null,null,0]
["86º",null,null,null,null,null,null,null,null,null,null,null,null,null,null,null,null,null,null,null,null,null,null,null,null,null,null,0]
["87º",null,null,null,null,null,null,null,null,null,null,null,null,null,null,null,null,null,null,null,null,null,null,null,null,null,null,0]
["88º",null,null,null,null,null,null,null,null,null,null,null,null,null,null,null,null,null,null,null,null,null,null,null,null,null,null,0]
["89º",null,null,null,null,null,null,null,null,null,null,null,null,null,null,null,null,null,null,null,null,null,null,null,null,null,null,0]
["90º",null,null,null,null,null,null,null,null,null,null,null,null,null,null,null,null,null,null,null,null,null,null,null,null,null,null,0]
[]
[null,"LEGENDA"]
[null,"BONIFICAÇÃO POR ETAPA PARTICIPADA"]
[null,"PARTICIPOU DE 1 ETAPA=",null,5]
[null,"PARTICIPOU DE 2 ETAPAS=",null,"1X+10"]
[null,"PARTICIPOU DE 3 ETAPAS=",null,"2X+15"]
[null,"PARTICIPOU DE 4 ETAPAS=",null,"3X+25"]
[null,"PARTICIPOU DE 5 ETAPAS",null,"4X+40"]
[null,"PARTICIPOU DE 6 ETAPAS=",null,"5X+50"]
[null,"BONUS RECORD",null,20]
[null,"PROVA EM BRANCO",null,"NÃO TEVE ELIMINATORIAS"]

{"sheet":"DL","index":15,"n_rows":111,"n_cols":28,"rows_kept":111,"cut":false,"hidden":false,"merged":[[7,19,7,20],[7,21,7,22],[7,23,7,24],[7,25,7,26],[0,2,0,26],[1,2,1,26],[4,15,4,18],[6,15,6,18],[5,15,5,18],[6,3,6,6],[5,3,5,6],[4,3,4,6],[6,23,6,26],[5,23,5,26],[4,23,4,26],[6,19,6,22],[5,19,5,22],[8,0,8,1],[4,19,4,22],[6,11,6,14],[5,11,5,14],[4,11,4,14],[6,7,6,10],[5,7,5,10],[4,7,4,10],[7,3,7,4],[7,5,7,6],[7,7,7,8],[7,9,7,10],[7,11,7,12],[7,13,7,14],[7,15,7,16],[7,17,7,18],[102,1,102,7],[103,1,103,2],[104,1,104,2],[105,1,105,2],[110,3,110,7],[106,1,106,2],[107,1,107,2],[108,1,108,2],[109,1,109,2],[110,1,110,2]]}
[null,null,"CLASSIFICAÇÃO OFICIAL DO CAMPEONATO BRASILEIRO 2013 DE ARRANCADA 402 M. "]
[]
[]
[]
[null,null,"Evento","1º",null,null,null,"2º",null,null,null,"3º",null,null,null,"4º",null,null,null,"5º",null,null,null,"6º"]
[null,null,"Local","Velopark",null,null,null,"Curitiba",null,null,null,"VELOPARK",null,null,null,"VELOPARK",null,null,null,null,null,null,null,"VELOPARK"]
[null,null,"Data","15 a 17/03/2013",null,null,null,"03 a 05/05/2013",null,null,null,"16 a 18/08/2013",null,null,null,"27 a 29/09/2013",null,null,null,null,null,null,null,"17/11"]
[null,null,null,"Record",null,"06,828",null,"Record",null,"59,999",null,"Record",null,"06,828",null,"Record",null,"59,999",null,"Record",null,"59,999",null,"Record",null,"59,999"]
["DRAGSTER LIGTH",null,null,"bonus","bonus","bonus",null,"bonus","bonus","bonus",null,"bonus","bonus","bonus",null,"bonus","bonus","bonus",null,"bonus","bonus","bonus",null,"bonus","bonus","bonus"]
["POS","PILOTO","Nº","partic.","record","classif.","Prova","partic.","record","classif.","Prova","partic.","record","classif.","Prova","partic.","record","classif.","Prova","partic.","record","classif.","Prova","partic.","record","classif.","Prova","TOTAL"]
["1º","MANOEL CASTANON",11,"X",null,75,80,"X",null,80,null,"X",null,80,100,"X",null,80,100,null,null,null,null,50,null,150,120,{"$f":"SUM(D11:AA11)","v":915}]
["2º","MARCELO GRIEBLER",48,"X",null,80,100,0,null,0,null,"X",null,75,80,15,null,75,80,null,null,null,null,0,null,0,0,505]
["3º","JADER KROLOW",938,"X",null,65,0,0,null,0,null,0,null,0,0,"X",null,65,60,null,null,null,null,25,null,120,80,415]
["4º","EDER CARDOSO",200,0,null,0,0,0,null,0,null,0,null,0,0,0,null,0,0,null,null,null,null,5,20,140,200,365]
["5º","AIRTON CARRARO",7,0,null,0,0,0,null,0,null,0,null,0,0,"X",null,70,60,null,null,null,null,15,null,130,80,355]
["6º","MAURICIO DEBARBA",12,0,null,0,0,0,null,0,null,0,null,0,0,0,null,0,0,null,null,null,null,5,null,160,160,325]
["7º","HELDER GANDOLFO",742,0,null,0,0,0,null,0,null,0,null,0,0,0,null,0,0,null,null,null,null,5,null,110,0,115]
["8º","BRENO CASTANON",22,5,null,70,0,0,null,0,null,0,null,0,0,0,null,0,0,null,null,null,null,0,null,0,0,75]
["9º",null,null,null,null,null,null,null,null,null,null,null,null,null,null,null,null,null,null,null,null,null,null,null,null,null,null,0]
["10º",null,null,null,null,null,null,null,null,null,null,null,null,null,null,null,null,null,null,null,null,null,null,null,null,null,null,0]
["11º",null,null,null,null,null,null,null,null,null,null,null,null,null,null,null,null,null,null,null,null,null,null,null,null,null,null,0]
["12º",null,null,null,null,null,null,null,null,null,null,null,null,null,null,null,null,null,null,null,null,null,null,null,null,null,null,0]
["13º",null,null,null,null,null,null,null,null,null,null,null,null,null,null,null,null,null,null,null,null,null,null,null,null,null,null,0]
["14º",null,null,null,null,null,null,null,null,null,null,null,null,null,null,null,null,null,null,null,null,null,null,null,null,null,null,0]
["15º",null,null,null,null,null,null,null,null,null,null,null,null,null,null,null,null,null,null,null,null,null,null,null,null,null,null,0]
["16º",null,null,null,null,null,null,null,null,null,null,null,null,null,null,null,null,null,null,null,null,null,null,null,null,null,null,0]
["17º",null,null,null,null,null,null,null,null,null,null,null,null,null,null,null,null,null,null,null,null,null,null,null,null,null,null,0]
["18º",null,null,null,null,null,null,null,null,null,null,null,null,null,null,null,null,null,null,null,null,null,null,null,null,null,null,0]
["19º",null,null,null,null,null,null,null,null,null,null,null,null,null,null,null,null,null,null,null,null,null,null,null,null,null,null,0]
["20º",null,null,null,null,null,null,null,null,null,null,null,null,null,null,null,null,null,null,null,null,null,null,null,null,null,null,0]
["21º",null,null,null,null,null,null,null,null,null,null,null,null,null,null,null,null,null,null,null,null,null,null,null,null,null,null,0]
["22º",null,null,null,null,null,null,null,null,null,null,null,null,null,null,null,null,null,null,null,null,null,null,null,null,null,null,0]
["23º",null,null,null,null,null,null,null,null,null,null,null,null,null,null,null,null,null,null,null,null,null,null,null,null,null,null,0]
["24º",null,null,null,null,null,null,null,null,null,null,null,null,null,null,null,null,null,null,null,null,null,null,null,null,null,null,0]
["25º",null,null,null,null,null,null,null,null,null,null,null,null,null,null,null,null,null,null,null,null,null,null,null,null,null,null,0]
["26º",null,null,null,null,null,null,null,null,null,null,null,null,null,null,null,null,null,null,null,null,null,null,null,null,null,null,0]
["27º",null,null,null,null,null,null,null,null,null,null,null,null,null,null,null,null,null,null,null,null,null,null,null,null,null,null,0]
["28º",null,null,null,null,null,null,null,null,null,null,null,null,null,null,null,null,null,null,null,null,null,null,null,null,null,null,0]
["29º",null,null,null,null,null,null,null,null,null,null,null,null,null,null,null,null,null,null,null,null,null,null,null,null,null,null,0]
["30º",null,null,null,null,null,null,null,null,null,null,null,null,null,null,null,null,null,null,null,null,null,null,null,null,null,null,0]
["31º",null,null,null,null,null,null,null,null,null,null,null,null,null,null,null,null,null,null,null,null,null,null,null,null,null,null,0]
["32º",null,null,null,null,null,null,null,null,null,null,null,null,null,null,null,null,null,null,null,null,null,null,null,null,null,null,0]
["33º",null,null,null,null,null,null,null,null,null,null,null,null,null,null,null,null,null,null,null,null,null,null,null,null,null,null,{"$f":"SUM(D43:AA43)","v":0}]
["34º",null,null,null,null,null,null,null,null,null,null,null,null,null,null,null,null,null,null,null,null,null,null,null,null,null,null,0]
["35º",null,null,null,null,null,null,null,null,null,null,null,null,null,null,null,null,null,null,null,null,null,null,null,null,null,null,0]
["36º",null,null,null,null,null,null,null,null,null,null,null,null,null,null,null,null,null,null,null,null,null,null,null,null,null,null,0]
["37º",null,null,null,null,null,null,null,null,null,null,null,null,null,null,null,null,null,null,null,null,null,null,null,null,null,null,0]
["38º",null,null,null,null,null,null,null,null,null,null,null,null,null,null,null,null,null,null,null,null,null,null,null,null,null,null,0]
["39º",null,null,null,null,null,null,null,null,null,null,null,null,null,null,null,null,null,null,null,null,null,null,null,null,null,null,0]
["40º",null,null,null,null,null,null,null,null,null,null,null,null,null,null,null,null,null,null,null,null,null,null,null,null,null,null,0]
["41º",null,null,null,null,null,null,null,null,null,null,null,null,null,null,null,null,null,null,null,null,null,null,null,null,null,null,0]
["42º",null,null,null,null,null,null,null,null,null,null,null,null,null,null,null,null,null,null,null,null,null,null,null,null,null,null,0]
["43º",null,null,null,null,null,null,null,null,null,null,null,null,null,null,null,null,null,null,null,null,null,null,null,null,null,null,0]
["44º",null,null,null,null,null,null,null,null,null,null,null,null,null,null,null,null,null,null,null,null,null,null,null,null,null,null,0]
["45º",null,null,null,null,null,null,null,null,null,null,null,null,null,null,null,null,null,null,null,null,null,null,null,null,null,null,0]
["46º",null,null,null,null,null,null,null,null,null,null,null,null,null,null,null,null,null,null,null,null,null,null,null,null,null,null,0]
["47º",null,null,null,null,null,null,null,null,null,null,null,null,null,null,null,null,null,null,null,null,null,null,null,null,null,null,0]
["48º",null,null,null,null,null,null,null,null,null,null,null,null,null,null,null,null,null,null,null,null,null,null,null,null,null,null,0]
["49º",null,null,null,null,null,null,null,null,null,null,null,null,null,null,null,null,null,null,null,null,null,null,null,null,null,null,0]
["50º",null,null,null,null,null,null,null,null,null,null,null,null,null,null,null,null,null,null,null,null,null,null,null,null,null,null,0]
["51º",null,null,null,null,null,null,null,null,null,null,null,null,null,null,null,null,null,null,null,null,null,null,null,null,null,null,0]
["52º",null,null,null,null,null,null,null,null,null,null,null,null,null,null,null,null,null,null,null,null,null,null,null,null,null,null,0]
["53º",null,null,null,null,null,null,null,null,null,null,null,null,null,null,null,null,null,null,null,null,null,null,null,null,null,null,0]
["54º",null,null,null,null,null,null,null,null,null,null,null,null,null,null,null,null,null,null,null,null,null,null,null,null,null,null,0]
["55º",null,null,null,null,null,null,null,null,null,null,null,null,null,null,null,null,null,null,null,null,null,null,null,null,null,null,0]
["56º",null,null,null,null,null,null,null,null,null,null,null,null,null,null,null,null,null,null,null,null,null,null,null,null,null,null,0]
["57º",null,null,null,null,null,null,null,null,null,null,null,null,null,null,null,null,null,null,null,null,null,null,null,null,null,null,0]
["58º",null,null,null,null,null,null,null,null,null,null,null,null,null,null,null,null,null,null,null,null,null,null,null,null,null,null,0]
["59º",null,null,null,null,null,null,null,null,null,null,null,null,null,null,null,null,null,null,null,null,null,null,null,null,null,null,0]
["60º",null,null,null,null,null,null,null,null,null,null,null,null,null,null,null,null,null,null,null,null,null,null,null,null,null,null,0]
["61º",null,null,null,null,null,null,null,null,null,null,null,null,null,null,null,null,null,null,null,null,null,null,null,null,null,null,0]
["62º",null,null,null,null,null,null,null,null,null,null,null,null,null,null,null,null,null,null,null,null,null,null,null,null,null,null,0]
["63º",null,null,null,null,null,null,null,null,null,null,null,null,null,null,null,null,null,null,null,null,null,null,null,null,null,null,0]
["64º",null,null,null,null,null,null,null,null,null,null,null,null,null,null,null,null,null,null,null,null,null,null,null,null,null,null,0]
["65º",null,null,null,null,null,null,null,null,null,null,null,null,null,null,null,null,null,null,null,null,null,null,null,null,null,null,{"$f":"SUM(D75:AA75)","v":0}]
["66º",null,null,null,null,null,null,null,null,null,null,null,null,null,null,null,null,null,null,null,null,null,null,null,null,null,null,0]
["67º",null,null,null,null,null,null,null,null,null,null,null,null,null,null,null,null,null,null,null,null,null,null,null,null,null,null,0]
["68º",null,null,null,null,null,null,null,null,null,null,null,null,null,null,null,null,null,null,null,null,null,null,null,null,null,null,0]
["69º",null,null,null,null,null,null,null,null,null,null,null,null,null,null,null,null,null,null,null,null,null,null,null,null,null,null,0]
["70º",null,null,null,null,null,null,null,null,null,null,null,null,null,null,null,null,null,null,null,null,null,null,null,null,null,null,0]
["71º",null,null,null,null,null,null,null,null,null,null,null,null,null,null,null,null,null,null,null,null,null,null,null,null,null,null,0]
["72º",null,null,null,null,null,null,null,null,null,null,null,null,null,null,null,null,null,null,null,null,null,null,null,null,null,null,0]
["73º",null,null,null,null,null,null,null,null,null,null,null,null,null,null,null,null,null,null,null,null,null,null,null,null,null,null,0]
["74º",null,null,null,null,null,null,null,null,null,null,null,null,null,null,null,null,null,null,null,null,null,null,null,null,null,null,0]
["75º",null,null,null,null,null,null,null,null,null,null,null,null,null,null,null,null,null,null,null,null,null,null,null,null,null,null,0]
["76º",null,null,null,null,null,null,null,null,null,null,null,null,null,null,null,null,null,null,null,null,null,null,null,null,null,null,0]
["77º",null,null,null,null,null,null,null,null,null,null,null,null,null,null,null,null,null,null,null,null,null,null,null,null,null,null,0]
["78º",null,null,null,null,null,null,null,null,null,null,null,null,null,null,null,null,null,null,null,null,null,null,null,null,null,null,0]
["79º",null,null,null,null,null,null,null,null,null,null,null,null,null,null,null,null,null,null,null,null,null,null,null,null,null,null,0]
["80º",null,null,null,null,null,null,null,null,null,null,null,null,null,null,null,null,null,null,null,null,null,null,null,null,null,null,0]
["81º",null,null,null,null,null,null,null,null,null,null,null,null,null,null,null,null,null,null,null,null,null,null,null,null,null,null,0]
["82º",null,null,null,null,null,null,null,null,null,null,null,null,null,null,null,null,null,null,null,null,null,null,null,null,null,null,0]
["83º",null,null,null,null,null,null,null,null,null,null,null,null,null,null,null,null,null,null,null,null,null,null,null,null,null,null,0]
["84º",null,null,null,null,null,null,null,null,null,null,null,null,null,null,null,null,null,null,null,null,null,null,null,null,null,null,0]
["85º",null,null,null,null,null,null,null,null,null,null,null,null,null,null,null,null,null,null,null,null,null,null,null,null,null,null,0]
["86º",null,null,null,null,null,null,null,null,null,null,null,null,null,null,null,null,null,null,null,null,null,null,null,null,null,null,0]
["87º",null,null,null,null,null,null,null,null,null,null,null,null,null,null,null,null,null,null,null,null,null,null,null,null,null,null,0]
["88º",null,null,null,null,null,null,null,null,null,null,null,null,null,null,null,null,null,null,null,null,null,null,null,null,null,null,0]
["89º",null,null,null,null,null,null,null,null,null,null,null,null,null,null,null,null,null,null,null,null,null,null,null,null,null,null,0]
["90º",null,null,null,null,null,null,null,null,null,null,null,null,null,null,null,null,null,null,null,null,null,null,null,null,null,null,0]
[]
[null,"LEGENDA"]
[null,"BONIFICAÇÃO POR ETAPA PARTICIPADA"]
[null,"PARTICIPOU DE 1 ETAPA=",null,5]
[null,"PARTICIPOU DE 2 ETAPAS=",null,"1X+10"]
[null,"PARTICIPOU DE 3 ETAPAS=",null,"2X+15"]
[null,"PARTICIPOU DE 4 ETAPAS=",null,"3X+25"]
[null,"PARTICIPOU DE 5 ETAPAS",null,"4X+40"]
[null,"PARTICIPOU DE 6 ETAPAS=",null,"5X+50"]
[null,"BONUS RECORD",null,20]
[null,"PROVA EM BRANCO",null,"NÃO TEVE ELIMINATORIAS"]

{"sheet":"DTOP","index":16,"n_rows":111,"n_cols":28,"rows_kept":111,"cut":false,"hidden":false,"merged":[[7,25,7,26],[7,15,7,16],[7,17,7,18],[7,19,7,20],[7,21,7,22],[7,23,7,24],[7,5,7,6],[7,7,7,8],[7,9,7,10],[7,11,7,12],[7,13,7,14],[109,1,109,2],[110,1,110,2],[110,3,110,7],[102,1,102,7],[103,1,103,2],[104,1,104,2],[105,1,105,2],[106,1,106,2],[107,1,107,2],[108,1,108,2],[5,23,5,26],[6,3,6,6],[6,7,6,10],[6,11,6,14],[6,15,6,18],[6,19,6,22],[8,0,8,1],[7,3,7,4],[0,2,0,26],[1,2,1,26],[4,3,4,6],[4,7,4,10],[4,11,4,14],[4,15,4,18],[4,19,4,22],[4,23,4,26],[6,23,6,26],[5,3,5,6],[5,7,5,10],[5,11,5,14],[5,15,5,18],[5,19,5,22]]}
[null,null,"CLASSIFICAÇÃO OFICIAL DO CAMPEONATO BRASILEIRO 2013 DE ARRANCADA 402 M. "]
[]
[]
[]
[null,null,"Evento","1º",null,null,null,"2º",null,null,null,"3º",null,null,null,"4º",null,null,null,"5º",null,null,null,"6º"]
[null,null,"Local","Velopark",null,null,null,"Curitiba",null,null,null,"VELOPARK",null,null,null,"VELOPARK",null,null,null,null,null,null,null,"VELOPARK"]
[null,null,"Data","15 a 17/03/2013",null,null,null,"03 a 05/05/2013",null,null,null,"16 a 18/08/2013",null,null,null,"27 a 29/09/2013",null,null,null,null,null,null,null,"17/11"]
[]
["DRAG TOP  DT",null,null,"bonus","bonus","bonus",null,"bonus","bonus","bonus",null,"bonus","bonus","bonus",null,"bonus","bonus","bonus",null,"bonus","bonus","bonus",null,"bonus","bonus","bonus"]
["POS","PILOTO","Nº","partic.","record","classif.","Prova","partic.","record","classif.","Prova","partic.","record","classif.","Prova","partic.","record","classif.","Prova","partic.","record","classif.","Prova","partic.","record","classif.","Prova","TOTAL"]
["1º","BRENO CASTANON",22,0,0,0,0,0,null,0,0,"X",null,80,null,"X",null,80,null,null,null,null,null,25,null,160,200,{"$f":"SUM(D11:AA11)","v":545}]
["2º",null,null,null,null,null,null,null,null,null,null,null,null,null,null,null,null,null,null,null,null,null,null,null,null,null,null,0]
["3º",null,null,null,null,null,null,null,null,null,null,null,null,null,null,null,null,null,null,null,null,null,null,null,null,null,null,0]
["4º",null,null,null,null,null,null,null,null,null,null,null,null,null,null,null,null,null,null,null,null,null,null,null,null,null,null,0]
["5º",null,null,null,null,null,null,null,null,null,null,null,null,null,null,null,null,null,null,null,null,null,null,null,null,null,null,0]
["6º",null,null,null,null,null,null,null,null,null,null,null,null,null,null,null,null,null,null,null,null,null,null,null,null,null,null,0]
["7º",null,null,null,null,null,null,null,null,null,null,null,null,null,null,null,null,null,null,null,null,null,null,null,null,null,null,0]
["8º",null,null,null,null,null,null,null,null,null,null,null,null,null,null,null,null,null,null,null,null,null,null,null,null,null,null,0]
["9º",null,null,null,null,null,null,null,null,null,null,null,null,null,null,null,null,null,null,null,null,null,null,null,null,null,null,0]
["10º",null,null,null,null,null,null,null,null,null,null,null,null,null,null,null,null,null,null,null,null,null,null,null,null,null,null,0]
["11º",null,null,null,null,null,null,null,null,null,null,null,null,null,null,null,null,null,null,null,null,null,null,null,null,null,null,0]
["12º",null,null,null,null,null,null,null,null,null,null,null,null,null,null,null,null,null,null,null,null,null,null,null,null,null,null,0]
["13º",null,null,null,null,null,null,null,null,null,null,null,null,null,null,null,null,null,null,null,null,null,null,null,null,null,null,0]
["14º",null,null,null,null,null,null,null,null,null,null,null,null,null,null,null,null,null,null,null,null,null,null,null,null,null,null,0]
["15º",null,null,null,null,null,null,null,null,null,null,null,null,null,null,null,null,null,null,null,null,null,null,null,null,null,null,0]
["16º",null,null,null,null,null,null,null,null,null,null,null,null,null,null,null,null,null,null,null,null,null,null,null,null,null,null,0]
["17º",null,null,null,null,null,null,null,null,null,null,null,null,null,null,null,null,null,null,null,null,null,null,null,null,null,null,0]
["18º",null,null,null,null,null,null,null,null,null,null,null,null,null,null,null,null,null,null,null,null,null,null,null,null,null,null,0]
["19º",null,null,null,null,null,null,null,null,null,null,null,null,null,null,null,null,null,null,null,null,null,null,null,null,null,null,0]
["20º",null,null,null,null,null,null,null,null,null,null,null,null,null,null,null,null,null,null,null,null,null,null,null,null,null,null,0]
["21º",null,null,null,null,null,null,null,null,null,null,null,null,null,null,null,null,null,null,null,null,null,null,null,null,null,null,0]
["22º",null,null,null,null,null,null,null,null,null,null,null,null,null,null,null,null,null,null,null,null,null,null,null,null,null,null,0]
["23º",null,null,null,null,null,null,null,null,null,null,null,null,null,null,null,null,null,null,null,null,null,null,null,null,null,null,0]
["24º",null,null,null,null,null,null,null,null,null,null,null,null,null,null,null,null,null,null,null,null,null,null,null,null,null,null,0]
["25º",null,null,null,null,null,null,null,null,null,null,null,null,null,null,null,null,null,null,null,null,null,null,null,null,null,null,0]
["26º",null,null,null,null,null,null,null,null,null,null,null,null,null,null,null,null,null,null,null,null,null,null,null,null,null,null,0]
["27º",null,null,null,null,null,null,null,null,null,null,null,null,null,null,null,null,null,null,null,null,null,null,null,null,null,null,0]
["28º",null,null,null,null,null,null,null,null,null,null,null,null,null,null,null,null,null,null,null,null,null,null,null,null,null,null,0]
["29º",null,null,null,null,null,null,null,null,null,null,null,null,null,null,null,null,null,null,null,null,null,null,null,null,null,null,0]
["30º",null,null,null,null,null,null,null,null,null,null,null,null,null,null,null,null,null,null,null,null,null,null,null,null,null,null,0]
["31º",null,null,null,null,null,null,null,null,null,null,null,null,null,null,null,null,null,null,null,null,null,null,null,null,null,null,0]
["32º",null,null,null,null,null,null,null,null,null,null,null,null,null,null,null,null,null,null,null,null,null,null,null,null,null,null,0]
["33º",null,null,null,null,null,null,null,null,null,null,null,null,null,null,null,null,null,null,null,null,null,null,null,null,null,null,{"$f":"SUM(D43:AA43)","v":0}]
["34º",null,null,null,null,null,null,null,null,null,null,null,null,null,null,null,null,null,null,null,null,null,null,null,null,null,null,0]
["35º",null,null,null,null,null,null,null,null,null,null,null,null,null,null,null,null,null,null,null,null,null,null,null,null,null,null,0]
["36º",null,null,null,null,null,null,null,null,null,null,null,null,null,null,null,null,null,null,null,null,null,null,null,null,null,null,0]
["37º",null,null,null,null,null,null,null,null,null,null,null,null,null,null,null,null,null,null,null,null,null,null,null,null,null,null,0]
["38º",null,null,null,null,null,null,null,null,null,null,null,null,null,null,null,null,null,null,null,null,null,null,null,null,null,null,0]
["39º",null,null,null,null,null,null,null,null,null,null,null,null,null,null,null,null,null,null,null,null,null,null,null,null,null,null,0]
["40º",null,null,null,null,null,null,null,null,null,null,null,null,null,null,null,null,null,null,null,null,null,null,null,null,null,null,0]
["41º",null,null,null,null,null,null,null,null,null,null,null,null,null,null,null,null,null,null,null,null,null,null,null,null,null,null,0]
["42º",null,null,null,null,null,null,null,null,null,null,null,null,null,null,null,null,null,null,null,null,null,null,null,null,null,null,0]
["43º",null,null,null,null,null,null,null,null,null,null,null,null,null,null,null,null,null,null,null,null,null,null,null,null,null,null,0]
["44º",null,null,null,null,null,null,null,null,null,null,null,null,null,null,null,null,null,null,null,null,null,null,null,null,null,null,0]
["45º",null,null,null,null,null,null,null,null,null,null,null,null,null,null,null,null,null,null,null,null,null,null,null,null,null,null,0]
["46º",null,null,null,null,null,null,null,null,null,null,null,null,null,null,null,null,null,null,null,null,null,null,null,null,null,null,0]
["47º",null,null,null,null,null,null,null,null,null,null,null,null,null,null,null,null,null,null,null,null,null,null,null,null,null,null,0]
["48º",null,null,null,null,null,null,null,null,null,null,null,null,null,null,null,null,null,null,null,null,null,null,null,null,null,null,0]
["49º",null,null,null,null,null,null,null,null,null,null,null,null,null,null,null,null,null,null,null,null,null,null,null,null,null,null,0]
["50º",null,null,null,null,null,null,null,null,null,null,null,null,null,null,null,null,null,null,null,null,null,null,null,null,null,null,0]
["51º",null,null,null,null,null,null,null,null,null,null,null,null,null,null,null,null,null,null,null,null,null,null,null,null,null,null,0]
["52º",null,null,null,null,null,null,null,null,null,null,null,null,null,null,null,null,null,null,null,null,null,null,null,null,null,null,0]
["53º",null,null,null,null,null,null,null,null,null,null,null,null,null,null,null,null,null,null,null,null,null,null,null,null,null,null,0]
["54º",null,null,null,null,null,null,null,null,null,null,null,null,null,null,null,null,null,null,null,null,null,null,null,null,null,null,0]
["55º",null,null,null,null,null,null,null,null,null,null,null,null,null,null,null,null,null,null,null,null,null,null,null,null,null,null,0]
["56º",null,null,null,null,null,null,null,null,null,null,null,null,null,null,null,null,null,null,null,null,null,null,null,null,null,null,0]
["57º",null,null,null,null,null,null,null,null,null,null,null,null,null,null,null,null,null,null,null,null,null,null,null,null,null,null,0]
["58º",null,null,null,null,null,null,null,null,null,null,null,null,null,null,null,null,null,null,null,null,null,null,null,null,null,null,0]
["59º",null,null,null,null,null,null,null,null,null,null,null,null,null,null,null,null,null,null,null,null,null,null,null,null,null,null,0]
["60º",null,null,null,null,null,null,null,null,null,null,null,null,null,null,null,null,null,null,null,null,null,null,null,null,null,null,0]
["61º",null,null,null,null,null,null,null,null,null,null,null,null,null,null,null,null,null,null,null,null,null,null,null,null,null,null,0]
["62º",null,null,null,null,null,null,null,null,null,null,null,null,null,null,null,null,null,null,null,null,null,null,null,null,null,null,0]
["63º",null,null,null,null,null,null,null,null,null,null,null,null,null,null,null,null,null,null,null,null,null,null,null,null,null,null,0]
["64º",null,null,null,null,null,null,null,null,null,null,null,null,null,null,null,null,null,null,null,null,null,null,null,null,null,null,0]
["65º",null,null,null,null,null,null,null,null,null,null,null,null,null,null,null,null,null,null,null,null,null,null,null,null,null,null,{"$f":"SUM(D75:AA75)","v":0}]
["66º",null,null,null,null,null,null,null,null,null,null,null,null,null,null,null,null,null,null,null,null,null,null,null,null,null,null,0]
["67º",null,null,null,null,null,null,null,null,null,null,null,null,null,null,null,null,null,null,null,null,null,null,null,null,null,null,0]
["68º",null,null,null,null,null,null,null,null,null,null,null,null,null,null,null,null,null,null,null,null,null,null,null,null,null,null,0]
["69º",null,null,null,null,null,null,null,null,null,null,null,null,null,null,null,null,null,null,null,null,null,null,null,null,null,null,0]
["70º",null,null,null,null,null,null,null,null,null,null,null,null,null,null,null,null,null,null,null,null,null,null,null,null,null,null,0]
["71º",null,null,null,null,null,null,null,null,null,null,null,null,null,null,null,null,null,null,null,null,null,null,null,null,null,null,0]
["72º",null,null,null,null,null,null,null,null,null,null,null,null,null,null,null,null,null,null,null,null,null,null,null,null,null,null,0]
["73º",null,null,null,null,null,null,null,null,null,null,null,null,null,null,null,null,null,null,null,null,null,null,null,null,null,null,0]
["74º",null,null,null,null,null,null,null,null,null,null,null,null,null,null,null,null,null,null,null,null,null,null,null,null,null,null,0]
["75º",null,null,null,null,null,null,null,null,null,null,null,null,null,null,null,null,null,null,null,null,null,null,null,null,null,null,0]
["76º",null,null,null,null,null,null,null,null,null,null,null,null,null,null,null,null,null,null,null,null,null,null,null,null,null,null,0]
["77º",null,null,null,null,null,null,null,null,null,null,null,null,null,null,null,null,null,null,null,null,null,null,null,null,null,null,0]
["78º",null,null,null,null,null,null,null,null,null,null,null,null,null,null,null,null,null,null,null,null,null,null,null,null,null,null,0]
["79º",null,null,null,null,null,null,null,null,null,null,null,null,null,null,null,null,null,null,null,null,null,null,null,null,null,null,0]
["80º",null,null,null,null,null,null,null,null,null,null,null,null,null,null,null,null,null,null,null,null,null,null,null,null,null,null,0]
["81º",null,null,null,null,null,null,null,null,null,null,null,null,null,null,null,null,null,null,null,null,null,null,null,null,null,null,0]
["82º",null,null,null,null,null,null,null,null,null,null,null,null,null,null,null,null,null,null,null,null,null,null,null,null,null,null,0]
["83º",null,null,null,null,null,null,null,null,null,null,null,null,null,null,null,null,null,null,null,null,null,null,null,null,null,null,0]
["84º",null,null,null,null,null,null,null,null,null,null,null,null,null,null,null,null,null,null,null,null,null,null,null,null,null,null,0]
["85º",null,null,null,null,null,null,null,null,null,null,null,null,null,null,null,null,null,null,null,null,null,null,null,null,null,null,0]
["86º",null,null,null,null,null,null,null,null,null,null,null,null,null,null,null,null,null,null,null,null,null,null,null,null,null,null,0]
["87º",null,null,null,null,null,null,null,null,null,null,null,null,null,null,null,null,null,null,null,null,null,null,null,null,null,null,0]
["88º",null,null,null,null,null,null,null,null,null,null,null,null,null,null,null,null,null,null,null,null,null,null,null,null,null,null,0]
["89º",null,null,null,null,null,null,null,null,null,null,null,null,null,null,null,null,null,null,null,null,null,null,null,null,null,null,0]
["90º",null,null,null,null,null,null,null,null,null,null,null,null,null,null,null,null,null,null,null,null,null,null,null,null,null,null,0]
[]
[null,"LEGENDA"]
[null,"BONIFICAÇÃO POR ETAPA PARTICIPADA"]
[null,"PARTICIPOU DE 1 ETAPA=",null,5]
[null,"PARTICIPOU DE 2 ETAPAS=",null,"1X+10"]
[null,"PARTICIPOU DE 3 ETAPAS=",null,"2X+15"]
[null,"PARTICIPOU DE 4 ETAPAS=",null,"3X+25"]
[null,"PARTICIPOU DE 5 ETAPAS",null,"4X+40"]
[null,"PARTICIPOU DE 6 ETAPAS=",null,"5X+50"]
[null,"BONUS RECORD",null,20]
[null,"PROVA EM BRANCO",null,"NÃO TEVE ELIMINATORIAS"]

{"sheet":"Pontos","index":17,"n_rows":49,"n_cols":14,"rows_kept":49,"cut":false,"hidden":false,"merged":[[42,10,42,13],[0,0,0,13],[26,0,26,3],[26,5,26,8],[26,10,26,13],[34,0,34,3],[34,5,34,8],[34,10,34,13],[10,5,10,8],[18,0,18,3],[18,5,18,8],[2,10,2,13],[10,10,10,13],[18,10,18,13],[2,0,2,3],[2,5,2,8],[10,0,10,3],[42,0,42,3],[42,5,42,8]]}
[{"$f":"(ST!$C$2)","v":"CLASSIFICAÇÃO OFICIAL DO CAMPEONATO BRASILEIRO 2013 DE ARRANCADA 402 M. "}]
[]
[{"$f":"(ST!$A$9)","v":"STANDARD - ST"},null,null,null,null,{"$f":"(DO!$A$9)","v":"DIANTEIRA ORIGINAL DO"},null,null,null,null,{"$f":"(TO!$A$9)","v":"TRASEIRA ORIGINAL -TO"}]
["POS","PILOTO","Nº","TOTAL",null,"POS","PILOTO","Nº","TOTAL",null,"POS","PILOTO","Nº","TOTAL"]
["1º",{"$f":"(ST!$B$11)","v":"CLÓVIS WAECHTER"},{"$f":"(ST!$C$11)","v":98},{"$f":"(ST!$AB$11)","v":715},null,"1º",{"$f":"(DO!$B$11)","v":"JULIO DALLA ROSA"},{"$f":"(DO!$C$11)","v":42},{"$f":"(DO!$AB$11)","v":960},null,"1º",{"$f":"(TO!B$11)","v":"BRENO CASTAGNON"},{"$f":"(TO!C$11)","v":22},{"$f":"(TO!$AB$11)","v":665}]
["2º",{"$f":"(ST!$B$12)","v":"EDUARDO ANDRETA"},{"$f":"(ST!$C$12)","v":555},{"$f":"(ST!$AB$12)","v":565},null,"2º",{"$f":"(DO!$B$12)","v":"MALTON PORTO"},{"$f":"(DO!$C$12)","v":177},{"$f":"(DO!$AB$12)","v":675},null,"2º",{"$f":"(TO!B$12)","v":"RAUL CORREIA"},{"$f":"(TO!C$12)","v":101},{"$f":"(TO!$AB$12)","v":590}]
["3º",{"$f":"(ST!$B$13)","v":"LEANDRO SCHULTZ"},{"$f":"(ST!$C$13)","v":96},{"$f":"(ST!$AB$13)","v":520},null,"3º",{"$f":"(DO!$B$13)","v":"IVO LEAL"},{"$f":"(DO!$C$13)","v":79},{"$f":"(DO!$AB$13)","v":650},null,"3º",{"$f":"(TO!B$13)","v":"ALVARO DIAS"},{"$f":"(TO!C$13)","v":7},{"$f":"(TO!$AB$13)","v":560}]
["4º",{"$f":"(ST!$B$14)","v":"MARCIO SOUZA"},{"$f":"(ST!$C$14)","v":333},{"$f":"(ST!$AB$14)","v":510},null,"4º",{"$f":"(DO!$B$14)","v":"PAULO SERGIO"},{"$f":"(DO!$C$14)","v":728},{"$f":"(DO!$AB$14)","v":260},null,"4º",{"$f":"(TO!B$14)","v":"CLAUDIO CASTAGNON"},{"$f":"(TO!C$14)","v":12},{"$f":"(TO!$AB$14)","v":550}]
["5º",{"$f":"(ST!$B$15)","v":"OBERDAN TAETI"},{"$f":"(ST!$C$15)","v":77},{"$f":"(ST!$AB$15)","v":420},null,"5º",{"$f":"(DO!$B$15)","v":"WELLINGTON MARCELINO"},{"$f":"(DO!$C$15)","v":2301},{"$f":"(DO!$AB$15)","v":230},null,"5º",{"$f":"(TO!B$15)","v":"THIAGO FERREIRA"},{"$f":"(TO!C$15)","v":200},{"$f":"(TO!$AB$15)","v":465}]
[]
[{"$f":"(DTC!$A$9)","v":"DIANTEIRA TURBO C - DTC"},null,null,null,null,{"$f":"(DTB!$A$9)","v":"DIANTEIRA TURBO B DTB"},null,null,null,null,{"$f":"(DTA!$A$9)","v":"DIANTEIRA TURBO A DTA"}]
["POS","PILOTO","Nº","TOTAL",null,"POS","PILOTO","Nº","TOTAL",null,"POS","PILOTO","Nº","TOTAL"]
["1º",{"$f":"(DTC!$B$11)","v":"GINESIO CASSOL"},{"$f":"(DTC!$C$11)","v":286},{"$f":"(DTC!$AB$11)","v":755},null,"1º",{"$f":"(DTB!$B$11)","v":"VILSON FERREIRA"},{"$f":"(DTB!$C$11)","v":231},{"$f":"(DTB!$AB$11)","v":810},null,"1º",{"$f":"(DTA!$B$11)","v":"VALMOR MENEGATTI"},{"$f":"(DTA!$C$11)","v":5},{"$f":"(DTA!$AB$11)","v":740}]
["2º",{"$f":"(DTC!$B$12)","v":"ROGERIO BERNARDI"},{"$f":"(DTC!$C$12)","v":1322},{"$f":"(DTC!$AB$12)","v":730},null,"2º",{"$f":"(DTB!$B$12)","v":"THIAGO VASCONCELOS"},{"$f":"(DTB!$C$12)","v":712},{"$f":"(DTB!$AB$12)","v":650},null,"2º",{"$f":"(DTA!$B$12)","v":"RENATO BRIZOLARI"},{"$f":"(DTA!$C$12)","v":330},{"$f":"(DTA!$AB$12)","v":625}]
["3º",{"$f":"(DTC!$B$13)","v":"FABIANO SERRO"},{"$f":"(DTC!$C$13)","v":336},{"$f":"(DTC!$AB$13)","v":630},null,"3º",{"$f":"(DTB!$B$13)","v":"WLADMIR CARRANZA"},{"$f":"(DTB!$C$13)","v":284},{"$f":"(DTB!$AB$13)","v":560},null,"3º",{"$f":"(DTA!$B$13)","v":"LEANDRO CASTILHOS "},{"$f":"(DTA!$C$13)","v":778},{"$f":"(DTA!$AB$13)","v":580}]
["4º",{"$f":"(DTC!$B$14)","v":"FABIANO BORTONCELLO"},{"$f":"(DTC!$C$14)","v":168},{"$f":"(DTC!$AB$14)","v":440},null,"4º",{"$f":"(DTB!$B$14)","v":"CHARLES USCOCOVICH"},{"$f":"(DTB!$C$14)","v":34},{"$f":"(DTB!$AB$14)","v":455},null,"4º",{"$f":"(DTA!$B$14)","v":"PAULO E. S. RAMOS"},{"$f":"(DTA!$C$14)","v":222},{"$f":"(DTA!$AB$14)","v":575}]
["5º",{"$f":"(DTC!$B$15)","v":"MICHEL GOLIN"},{"$f":"(DTC!$C$15)","v":288},{"$f":"(DTC!$AB$15)","v":370},null,"5º",{"$f":"(DTB!$B$15)","v":"JOACIR CORDOVA"},{"$f":"(DTB!$C$15)","v":2009},{"$f":"(DTB!$AB$15)","v":445},null,"5º",{"$f":"(DTA!$B$15)","v":"ADRIANO SALTON"},{"$f":"(DTA!$C$15)","v":31},{"$f":"(DTA!$AB$15)","v":555}]
[]
[{"$f":"(TT!$A$9)","v":"CATEGORIA TT"},null,null,null,null,{"$f":"(DS!$A$9)","v":"DIANTEIRA SUPER - DS"},null,null,null,null,{"$f":"(TS!$A$9)","v":"TRASEIRA SUPER  TS"}]
["POS","PILOTO","Nº","TOTAL",null,"POS","PILOTO","Nº","TOTAL",null,"POS","PILOTO","Nº","TOTAL"]
["1º",{"$f":"(TT!$B$11)","v":"CLEVERSON BERTOLIM"},{"$f":"(TT!$C$11)","v":875},{"$f":"(TT!$AB$11)","v":775},null,"1º",{"$f":"(DS!$B$11)","v":"HARRISSON MARQUES"},{"$f":"(DS!$C$11)","v":222},{"$f":"(DS!$AB$11)","v":645},null,"1º",{"$f":"(TS!$B$11)","v":"GUSTAVO CASTANON"},{"$f":"(TS!$C$11)","v":10},{"$f":"(TS!$AB$11)","v":950}]
["2º",{"$f":"(TT!$B$12)","v":"FABRICIO CHICON"},{"$f":"(TT!$C$12)","v":62},{"$f":"(TT!$AB$12)","v":505},null,"2º",{"$f":"(DS!$B$12)","v":"RODRIGO BERNIERI"},{"$f":"(DS!$C$12)","v":80},{"$f":"(DS!$AB$12)","v":620},null,"2º",{"$f":"(TS!$B$12)","v":"MARCIO VALMOR JULIO"},{"$f":"(TS!$C$12)","v":332},{"$f":"(TS!$AB$12)","v":725}]
["3º",{"$f":"(TT!$B$13)","v":"ANSELMO SEPP"},{"$f":"(TT!$C$13)","v":1972},{"$f":"(TT!$AB$13)","v":495},null,"3º",{"$f":"(DS!$B$13)","v":"VINICIUS BERTA"},{"$f":"(DS!$C$13)","v":119},{"$f":"(DS!$AB$13)","v":490},null,"3º",{"$f":"(TS!$B$13)","v":"MANOEL CASTANON"},{"$f":"(TS!$C$13)","v":11},{"$f":"(TS!$AB$13)","v":220}]
["4º",{"$f":"(TT!$B$14)","v":"CELSO CAMARGO"},{"$f":"(TT!$C$14)","v":101},{"$f":"(TT!$AB$14)","v":485},null,"4º",{"$f":"(DS!$B$14)","v":"EVANIR FORTUNATO"},{"$f":"(DS!$C$14)","v":747},{"$f":"(DS!$AB$14)","v":355},null,"4º",{"$f":"(TS!$B$14)","v":"RODERJAN"},{"$f":"(TS!$C$14)","v":88},{"$f":"(TS!$AB$14)","v":160}]
["5º",{"$f":"(TT!$B$15)","v":"CRISTIAN CORDEIRO"},{"$f":"(TT!$C$15)","v":333},{"$f":"(TT!$AB$15)","v":345},null,"5º",{"$f":"(DS!$B$15)","v":"LUIZ BONACORSO"},{"$f":"(DS!$C$15)","v":2100},{"$f":"(DS!$AB$15)","v":285},null,"5º",{"$f":"(TS!$B$15)","v":"JAIRO DALLA VALLE"},{"$f":"(TS!$C$15)","v":35},{"$f":"(TS!$AB$15)","v":135}]
[]
[{"$f":"(FLD!$A$9)","v":"FORÇA LIVRE DIANTEIRA FLD"},null,null,null,null,{"$f":"(STT!$A$9)","v":"STREET TRAÇÃO TRASEIRA STT"},null,null,null,null,{"$f":"(FLT!$A$9)","v":"FORÇA LIVRE TRASEIRA FLT"}]
["POS","PILOTO","Nº","TOTAL",null,"POS","PILOTO","Nº","TOTAL",null,"POS","PILOTO","Nº","TOTAL"]
["1º",{"$f":"(FLD!$B$11)","v":"AIRTON CARRARO"},{"$f":"(FLD!$C$11)","v":9},{"$f":"(FLD!$AB$11)","v":800},null,"1º",{"$f":"(STT!$B$11)","v":"GIOVANI CHEMIN"},{"$f":"(STT!$C$11)","v":1979},{"$f":"(STT!$AB$11)","v":825},null,"1º",{"$f":"(FLT!$B$11)","v":"ANDERSON MALTEZO"},{"$f":"(FLT!$C$11)","v":11},{"$f":"(FLT!$AB$11)","v":880}]
["2º",{"$f":"(FLD!$B$12)","v":"LUIZ DONATO"},{"$f":"(FLD!$C$12)","v":494},{"$f":"(FLD!$AB$12)","v":700},null,"2º",{"$f":"(STT!$B$12)","v":"CRISTIAN CORDEIRO"},{"$f":"(STT!$C$12)","v":332},{"$f":"(STT!$AB$12)","v":725},null,"2º",{"$f":"(FLT!$B$12)","v":"ALEX SANDER SILVA"},{"$f":"(FLT!$C$12)","v":181},{"$f":"(FLT!$AB$12)","v":595}]
["3º",{"$f":"(FLD!$B$13)","v":"JÕAO TASSO"},{"$f":"(FLD!$C$13)","v":39},{"$f":"(FLD!$AB$13)","v":490},null,"3º",{"$f":"(STT!$B$13)","v":"ARIELSON MUTERLE"},{"$f":"(STT!$C$13)","v":"167"},{"$f":"(STT!$AB$13)","v":710},null,"3º",{"$f":"(FLT!$B$13)","v":"GLEISON MOREIRA"},{"$f":"(FLT!$C$13)","v":2},{"$f":"(FLT!$AB$13)","v":490}]
["4º",{"$f":"(FLD!$B$14)","v":"JADER KROLOW"},{"$f":"(FLD!$C$14)","v":938},{"$f":"(FLD!$AB$14)","v":425},null,"4º",{"$f":"(STT!$B$14)","v":"VILSON FERREORA"},{"$f":"(STT!$C$14)","v":2},{"$f":"(STT!$AB$14)","v":430},null,"4º",{"$f":"(FLT!$B$14)","v":"MARCOS MARTINS"},{"$f":"(FLT!$C$14)","v":10},{"$f":"(FLT!$AB$14)","v":440}]
["5º",{"$f":"(FLD!$B$15)","v":"JOSÉ R. PASQUALETE"},{"$f":"(FLD!$C$15)","v":55},{"$f":"(FLD!$AB$15)","v":395},null,"5º",{"$f":"(STT!$B$15)","v":"PEDRO PISKA"},{"$f":"(STT!$C$15)","v":1978},{"$f":"(STT!$AB$15)","v":310},null,"5º",{"$f":"(FLT!$B$15)","v":"VALDEMIR BORBA"},{"$f":"(FLT!$C$15)","v":197},{"$f":"(FLT!$AB$15)","v":385}]
[]
[{"$f":"(XTM!$A$9)","v":"XTM 10.5"},null,null,null,null,{"$f":"(PM!$A$9)","v":"PRO MOD"},null,null,null,null,{"$f":"(DL!$A$9)","v":"DRAGSTER LIGTH"}]
["POS","PILOTO","Nº","TOTAL",null,"POS","PILOTO","Nº","TOTAL",null,"POS","PILOTO","Nº","TOTAL"]
["1º",{"$f":"(XTM!$B$11)","v":"CRISTIANO JULIO"},{"$f":"(XTM!$C$11)","v":331},{"$f":"(XTM!$AB$11)","v":850},null,"1º",{"$f":"(PM!$B$11)","v":"RODERJAN BUSATO"},{"$f":"(PM!$C$11)","v":174},{"$f":"(PM!$AB$11)","v":1030},null,"1º",{"$f":"(DL!$B$11)","v":"MANOEL CASTANON"},{"$f":"(DL!$C$11)","v":11},{"$f":"(DL!$AB$11)","v":915}]
["2º",{"$f":"(XTM!$B$12)","v":"DANIEL RANIOWSKI"},{"$f":"(XTM!$C$12)","v":17},{"$f":"(XTM!$AB$12)","v":575},null,"2º",{"$f":"(PM!$B$12)","v":"ANTONIO ROSSALVO"},{"$f":"(PM!$C$12)","v":777},{"$f":"(PM!$AB$12)","v":160},null,"2º",{"$f":"(DL!$B$12)","v":"MARCELO GRIEBLER"},{"$f":"(DL!$C$12)","v":48},{"$f":"(DL!$AB$12)","v":505}]
["3º",{"$f":"(XTM!$B$13)","v":"RAFAEL ANTONETTI"},{"$f":"(XTM!$C$13)","v":77},{"$f":"(XTM!$AB$13)","v":540},null,"3º",{"$f":"(PM!$B$13)","v":"FABIO COSTA"},{"$f":"(PM!$C$13)","v":21},{"$f":"(PM!$AB$13)","v":80},null,"3º",{"$f":"(DL!$B$13)","v":"JADER KROLOW"},{"$f":"(DL!$C$13)","v":938},{"$f":"(DL!$AB$13)","v":415}]
["4º",{"$f":"(XTM!$B$14)","v":"GELSON DIAS SILVA"},{"$f":"(XTM!$C$14)","v":11},{"$f":"(XTM!$AB$14)","v":395},null,"4º",{"$f":"(PM!$B$14)","v":"ANDREY JASPER"},{"$f":"(PM!$C$14)","v":75},{"$f":"(PM!$AB$14)","v":75},null,"4º",{"$f":"(DL!$B$14)","v":"EDER CARDOSO"},{"$f":"(DL!$C$14)","v":200},{"$f":"(DL!$AB$14)","v":365}]
["5º",{"$f":"(XTM!$B$15)","v":"CARLOS DAUD"},{"$f":"(XTM!$C$15)","v":245},{"$f":"(XTM!$AB$15)","v":385},null,"5º",{"$f":"(PM!$B$15)","v":"RAMON TOMAS"},{"$f":"(PM!$C$15)","v":22},{"$f":"(PM!$AB$15)","v":70},null,"5º",{"$f":"(DL!$B$15)","v":"AIRTON CARRARO"},{"$f":"(DL!$C$15)","v":7},{"$f":"(DL!$AB$15)","v":355}]
[]
[{"$f":"(DJ!$A$9)","v":"DRAG JUNIOR"},null,null,null,null,{"$f":"(DTOP!$A$9)","v":"DRAG TOP  DT"}]
["POS","PILOTO","Nº","TOTAL",null,"POS","PILOTO","Nº","TOTAL",null,"POS","PILOTO","Nº","TOTAL"]
["1º",{"$f":"(DJ!$B$11)","v":"FELIPE LUNA"},{"$f":"(DJ!$C$11)","v":0},{"$f":"(DJ!$AB$11)","v":105},null,"1º",{"$f":"(DTOP!$B$11)","v":"BRENO CASTANON"},{"$f":"(DTOP!$C$11)","v":22},{"$f":"(DTOP!$AB$11)","v":545},null,"1º"]
["2º",{"$f":"(DJ!$B$12)","v":"THOMAS SILVA"},{"$f":"(DJ!$C$12)","v":121},{"$f":"(DJ!$AB$12)","v":85},null,"2º",{"$f":"(DTOP!$B$12)","v":0},{"$f":"(DTOP!$C$12)","v":0},{"$f":"(DTOP!$AB$12)","v":0},null,"2º"]
["3º",{"$f":"(DJ!$B$13)","v":0},{"$f":"(DJ!$C$13)","v":0},{"$f":"(DJ!$AB$13)","v":0},null,"3º",{"$f":"(DTOP!$B$13)","v":0},{"$f":"(DTOP!$C$13)","v":0},{"$f":"(DTOP!$AB$13)","v":0},null,"3º"]
["4º",{"$f":"(DJ!$B$14)","v":0},{"$f":"(DJ!$C$14)","v":0},{"$f":"(DJ!$AB$14)","v":0},null,"4º",{"$f":"(DTOP!$B$14)","v":0},{"$f":"(DTOP!$C$14)","v":0},{"$f":"(DTOP!$AB$14)","v":0},null,"4º"]
["5º",{"$f":"(DJ!$B$15)","v":0},{"$f":"(DJ!$C$15)","v":0},{"$f":"(DJ!$AB$15)","v":0},null,"5º",{"$f":"(DTOP!$B$15)","v":0},{"$f":"(DTOP!$C$15)","v":0},{"$f":"(DTOP!$AB$15)","v":0},null,"5º"]